DepartmentFamily,Entity,Date,ExpenseType,ExpenseArea,Supplier,PaymentNumber,InvoiceDistributionAmount,InvoiceLineDescription,SupplierPostCode,TransactionType
FOOD STANDARDS AGENCY - Westminster,FOOD STANDARDS AGENCY - Westminster,2016-07-25,EXP - PURCHASE OF GOODS/SERVICES - ICT OUTSOURCING & MAINT/SUPPORT,IT Service Delivery,CAPITA SECURE INFORMATION SOLUTIONS LTD,1011700448,279190.83,CORE SERVICE CHARGE,SN14 0TW,ADMIN
FOOD STANDARDS AGENCY - Westminster,FOOD STANDARDS AGENCY - Westminster,2016-07-28,EXP - PURCHASE OF GOODS/SERVICES - OTHER - PROGRAMME EXPENDITURE,Animal Feed     ,TRADING STANDARDS INSTITUTE (GRANTS),1011700474,225000,Feed Off. Conts 2016/17 Prog delivery (inland/ports). Feed Official Controls funding 2016/17: To deliver a programme of Official Controls (inland inspections/sampling & ports work) in 2016/17.,SS15 6TH,PROGRAMME
FOOD STANDARDS AGENCY - Westminster,FOOD STANDARDS AGENCY - Westminster,2016-07-12,EXP - PURCHASE OF GOODS/SERVICES - SHARED SERV OUTSRCG- CIVIL SERV PENSION ADMIN,Finance Director & Branch,LONDON PENSIONS FUND AUTHORITY,1011700340,149333,MAY 16 FUND VAL 2013,EC3N 4LP,ADMIN
FOOD STANDARDS AGENCY - Westminster,FOOD STANDARDS AGENCY - Westminster,2016-07-06,EXP - PURCHASE OF GOODS/SERVICES - ACCOMMODATION & BLDNG MANAGEMENT - CILOR,Security & Estates,LONDON BOROUGH OF CAMDEN,1011700288,105468,A/C 68351658 PROP REF 01120601250013,WC1H 8EQ,ADMIN
FOOD STANDARDS AGENCY - Westminster,FOOD STANDARDS AGENCY - Westminster,2016-07-08,EXP - PURCHASE OF GOODS/SERVICES - OTHER - PROGRAMME EXPENDITURE,Chemical Risk Assessment Unit,PUBLIC HEALTH ENGLAND,2012700018,93026.36,NRL - MICROBIOLOGY,SP4 0JG,PROGRAMME
FOOD STANDARDS AGENCY - Westminster,FOOD STANDARDS AGENCY - Westminster,2016-07-29,EXP - PURCHASE OF GOODS/SERVICES - OTHER - PROGRAMME EXPENDITURE,Contaminants HoD,C E F A S,2012700026,69649.85,PROJECT CODE FS102066A,NR33 0HT,PROGRAMME
FOOD STANDARDS AGENCY - Westminster,FOOD STANDARDS AGENCY - Westminster,2016-07-29,EXP - PURCHASE OF GOODS/SERVICES - OTHER - PROGRAMME EXPENDITURE,Contaminants HoD,C E F A S,2012700026,69649.85,PROJECT CODE FS102066A,NR33 0HT,PROGRAMME
FOOD STANDARDS AGENCY - Westminster,FOOD STANDARDS AGENCY - Westminster,2016-07-27,EXP - PURCHASE OF GOODS/SERVICES - OTHER - PROGRAMME EXPENDITURE,Chemical Risk Assessment Unit,FERA SCIENCE LIMITED,1011700469,55557.94,13 APR - JUN 16,YO41 1LZ,PROGRAMME
FOOD STANDARDS AGENCY - Westminster,FOOD STANDARDS AGENCY - Westminster,2016-07-04,EXP - PURCHASE OF GOODS/SERVICES - OTHER - PROGRAMME EXPENDITURE,Chief Scientist,ECONOMICS FOR THE ENVIRONMENT CONSULTANCY LTD,1011700264,54073.87,PROFECT FS102087,W1W 7SQ,PROGRAMME
FOOD STANDARDS AGENCY - Westminster,FOOD STANDARDS AGENCY - Westminster,2016-07-01,EXP - PURCHASE OF GOODS/SERVICES - OTHER - PROGRAMME EXPENDITURE,Chief Scientist,UNIVERSITY OF SOUTHAMPTON,1011700250,50000,PO 424050 COMPLETION OF LITERATURE,SO17 1BJ,PROGRAMME
FOOD STANDARDS AGENCY - Westminster,FOOD STANDARDS AGENCY - Westminster,2016-07-05,EXP - PURCHASE OF GOODS/SERVICES - OTHER ICT COSTS - COMPUTER SOFTWARE,IT Service Delivery,TRUSTMARQUE SOLUTIONS LTD,1011700284,45480.96,ORDER NO SO647857 MICROSOFT CORE INFRASTRUCTURE SVRSTEDATACTR MTHLY SUB,YO32 9GZ,ADMIN
FOOD STANDARDS AGENCY - Westminster,FOOD STANDARDS AGENCY - Westminster,2016-07-05,EXP - PURCHASE OF GOODS/SERVICES - OTHER ICT COSTS - COMPUTER SOFTWARE,IT Service Delivery,TRUSTMARQUE SOLUTIONS LTD,1011700284,39567.5,ORDER NO SO647856,YO32 9GZ,ADMIN
FOOD STANDARDS AGENCY - Westminster,FOOD STANDARDS AGENCY - Westminster,2016-07-22,EXP - PURCHASE OF GOODS/SERVICES - OTHER - PROGRAMME EXPENDITURE,Contaminants HoD,C E F A S,2012700022,37434.75,PROJECT #C6028,NR33 0HT,PROGRAMME
FOOD STANDARDS AGENCY - Westminster,FOOD STANDARDS AGENCY - Westminster,2016-07-05,EXP - PURCHASE OF GOODS/SERVICES - OTHER ICT COSTS - COMPUTER SOFTWARE,IT Service Delivery,TRUSTMARQUE SOLUTIONS LTD,1011700284,37020,ORDER NO SO647856,YO32 9GZ,ADMIN
FOOD STANDARDS AGENCY - Westminster,FOOD STANDARDS AGENCY - Westminster,2016-07-05,EXP - PURCHASE OF GOODS/SERVICES - OTHER ICT COSTS - COMPUTER SOFTWARE,IT Service Delivery,TRUSTMARQUE SOLUTIONS LTD,1011700284,34307.69,ORDER NO SO647856,YO32 9GZ,ADMIN
FOOD STANDARDS AGENCY - Westminster,FOOD STANDARDS AGENCY - Westminster,2016-07-05,EXP - PURCHASE OF GOODS/SERVICES - OTHER ICT COSTS - COMPUTER SOFTWARE,IT Service Delivery,TRUSTMARQUE SOLUTIONS LTD,1011700284,33725,ORDER NO SO647856,YO32 9GZ,ADMIN
FOOD STANDARDS AGENCY - Westminster,FOOD STANDARDS AGENCY - Westminster,2016-07-01,EXP - PURCHASE OF GOODS/SERVICES - OTHER FACILITIES COSTS  - MEETING ROOM HIRE,Comms Directors Office,CALDER CONFERENCES LTD,1011700237,33536.68,CONFERENCE 2016 MANCHESTER,LS16 6RF,ADMIN
FOOD STANDARDS AGENCY - Westminster,FOOD STANDARDS AGENCY - Westminster,2016-07-06,EXP - PURCHASE OF GOODS/SERVICES - OTHER - PROGRAMME EXPENDITURE,Analysis & Research Branch,C E F A S,2012700014,32445.4,APRIL TO JUNE F/Y2016/17,NR33 0HT,PROGRAMME
FOOD STANDARDS AGENCY - Westminster,FOOD STANDARDS AGENCY - Westminster,2016-07-28,EXP - PURCHASE OF GOODS/SERVICES - OTHER - PROGRAMME EXPENDITURE,Animal Feed     ,TRADING STANDARDS INSTITUTE (GRANTS),1011700474,32210,Feed Off. Conts 2016/17 NTS/TSI fees. Feed Official Controls funding 2016/17: NTS/TSI fees,SS15 6TH,PROGRAMME
FOOD STANDARDS AGENCY - Westminster,FOOD STANDARDS AGENCY - Westminster,2016-07-21,EXP - PURCHASE OF GOODS/SERVICES - OTHER - PROGRAMME EXPENDITURE,Operations Local Delivery ,C E F A S,2012700021,31883.98,THE PROVISION OF OFFICAL CONTROL SRVICES OF SHELLFISH,NR33 0HT,PROGRAMME
FOOD STANDARDS AGENCY - Westminster,FOOD STANDARDS AGENCY - Westminster,2016-07-21,EXP - PURCHASE OF GOODS/SERVICES - TELECOMS - TELEPHONE,IT Service Delivery,VODAFONE LTD,1011700422,31548.78,CHARGES,MK3 5JL,ADMIN
FOOD STANDARDS AGENCY - Westminster,FOOD STANDARDS AGENCY - Westminster,2016-07-06,EXP - PURCHASE OF GOODS/SERVICES - ACCOMM & BLDNG MGMT - SHARED SITE RECHARGE,Security & Estates,G4S FACILITIES MANAGEMENT UK LTD,1011700289,28299.76,G4S INVOICE 90118486 CONTRACT CHARGES,S81 7QF,ADMIN
FOOD STANDARDS AGENCY - Westminster,FOOD STANDARDS AGENCY - Westminster,2016-07-21,EXP - PURCHASE OF GOODS/SERVICES - ACCOMM & BLDNG MGMT - SHARED SITE RECHARGE,Security & Estates,G4S FACILITIES MANAGEMENT UK LTD,1011700420,28299.76,G4S INVOICE 90123745,S81 7QF,ADMIN
FOOD STANDARDS AGENCY - Westminster,FOOD STANDARDS AGENCY - Westminster,2016-07-01,EXP - AMORTISATION - INTANGIBLE ASSETS,Operations Assurance ,S F W LTD,1011700215,27840,"FSA01:4, 5, 6 & 7",GU22 7UY,PROGRAMME
FOOD STANDARDS AGENCY - Westminster,FOOD STANDARDS AGENCY - Westminster,2016-07-06,EXP - PURCHASE OF GOODS/SERVICES - OTHER,Analysis & Research Branch,MINTEL INTERNATIONAL GROUP LTD,1011700296,26040,SUB ALLOCATIONS/FOOD/DRINK,EC4V 6RN,ADMIN
FOOD STANDARDS AGENCY - Westminster,FOOD STANDARDS AGENCY - Westminster,2016-07-01,EXP - AMORTISATION - INTANGIBLE ASSETS,Operations Assurance ,S F W LTD,1011700215,25661,"FSA01:4, 5, 6 & 7",GU22 7UY,PROGRAMME
FOOD STANDARDS AGENCY - Westminster,FOOD STANDARDS AGENCY - Westminster,2016-07-15,EXP - PURCHASE OF GOODS/SERVICES - OTHER ENERGY/UTILITIES/WASTE COST,Security & Estates,EDF ENERGY PLC,1011700377,25647.13,EDF ENGERGY 1834783 JUN16,EX1 3UT,ADMIN
FOOD STANDARDS AGENCY - Westminster,FOOD STANDARDS AGENCY - Westminster,2016-07-04,EXP - PURCHASE OF GOODS/SERVICES - OTHER - PROGRAMME EXPENDITURE,EU Regulatory Reform Branch,THE ROYAL VETERINARY COLLEGE,1011700255,25000,DELIVERABLE 5 FINAL REPORT,NW1 0TV,PROGRAMME
FOOD STANDARDS AGENCY - Westminster,FOOD STANDARDS AGENCY - Westminster,2016-07-13,EXP - PURCHASE OF GOODS/SERVICES - OTHER ENERGY/UTILITIES/WASTE COST,Security & Estates,EDF ENERGY PLC,1011700349,24643.35,1735597 - MAY2016,EX1 3UT,ADMIN
FOOD STANDARDS AGENCY - Westminster,FOOD STANDARDS AGENCY - Westminster,2016-07-13,EXP - PURCHASE OF GOODS/SERVICES - OTHER - PROGRAMME EXPENDITURE,Chief Scientist,B A E SYSTEMS (OPS) T/A CORDA,1011700361,23780,WORK COMPLETED BY CORDA,GU14 6YU,PROGRAMME
FOOD STANDARDS AGENCY - Westminster,FOOD STANDARDS AGENCY - Westminster,2016-07-11,EXP - PURCHASE OF GOODS/SERV-ICT OUTSOURC&MAINT/SUPP- IT SUPPORT SERVICES,Finance Director & Branch,SHARED SERVICES CONNECTED LTD,1011700318,23335.37,CCHARGES FOR SERVICES 1JULY/31JULY,HP2 7AH,ADMIN
FOOD STANDARDS AGENCY - Westminster,FOOD STANDARDS AGENCY - Westminster,2016-07-21,EXP - PURCHASE OF GOODS/SERVICES - OTHER - PROGRAMME EXPENDITURE,Operations Local Delivery ,C E F A S,2012700021,23050.22,THE PROVISION OF OFFICAL CONTROL SRVICES OF SHELLFISH,NR33 0HT,PROGRAMME
FOOD STANDARDS AGENCY - Westminster,FOOD STANDARDS AGENCY - Westminster,2016-07-21,EXP - PURCHASE OF GOODS/SERVICES - OTHER - PROGRAMME EXPENDITURE,Operations Local Delivery ,C E F A S,2012700021,22526.56,THE PROVISION OF OFFICAL CONTROL SERVICES OF SHELLFISH,NR33 0HT,PROGRAMME
FOOD STANDARDS AGENCY - Westminster,FOOD STANDARDS AGENCY - Westminster,2016-07-21,EXP - PURCHASE OF GOODS/SERVICES - OTHER - PROGRAMME EXPENDITURE,Operations Local Delivery ,C E F A S,2012700021,20652.32,THE PROVISION OF OFFICAL CONTROL SERVICES OF SHELLFISH,NR33 0HT,PROGRAMME
FOOD STANDARDS AGENCY - Westminster,FOOD STANDARDS AGENCY - Westminster,2016-07-08,EXP - PURCHASE OF GOODS/SERVICES - OTHER - PROGRAMME EXPENDITURE,Comms Directors Office,T N S UK LTD,1011700315,20650,FSA CAMPAIGN TRACKER JUNE WAVE,SE1 2QY,PROGRAMME
FOOD STANDARDS AGENCY - Westminster,FOOD STANDARDS AGENCY - Westminster,2016-07-28,"EXP - PURCHASE OF GOODS/SERVICES - TRICHINELLA TESTING, CARRIAGE & CONSUMABLES",Operational Delivery,TOPSPEED COURIERS LIMITED,1011700475,17730,TRICH X 394,WA16 8XN,PROGRAMME
FOOD STANDARDS AGENCY - Westminster,FOOD STANDARDS AGENCY - Westminster,2016-07-01,EXP - PURCHASE OF GOODS/SERVICES - OTHER - PROGRAMME EXPENDITURE,Chief Scientist,T N S UK LTD,1011700223,17630,PO 424443 MANUKA HONEY,SE1 2QY,PROGRAMME
FOOD STANDARDS AGENCY - Westminster,FOOD STANDARDS AGENCY - Westminster,2016-07-05,EXP - PURCHASE OF GOODS/SERVICES - OTHER ICT COSTS - COMPUTER SOFTWARE,IT Service Delivery,TRUSTMARQUE SOLUTIONS LTD,1011700284,17327.31,ORDER NO SO647856,YO32 9GZ,ADMIN
FOOD STANDARDS AGENCY - Westminster,FOOD STANDARDS AGENCY - Westminster,2016-07-06,EXP - PURCHASE OF GOODS/SERVICES - OTHER FACILTIES COSTS - SECURITY,Security & Estates,G4S FACILITIES MANAGEMENT UK LTD,1011700289,17155.2,G4S INVOICE 90118486 CONTRACT CHARGES,S81 7QF,ADMIN
FOOD STANDARDS AGENCY - Westminster,FOOD STANDARDS AGENCY - Westminster,2016-07-21,EXP - PURCHASE OF GOODS/SERVICES - ACCOMM & BLDNG MGMT - SHARED SITE RECHARGE,Security & Estates,G4S FACILITIES MANAGEMENT UK LTD,1011700420,17155.2,G4S INVOICE 90123745,S81 7QF,ADMIN
FOOD STANDARDS AGENCY - Westminster,FOOD STANDARDS AGENCY - Westminster,2016-07-29,EXP - PURCHASE OF GOODS/SERVICES - OTHER - PROGRAMME EXPENDITURE,Contaminants HoD,C E F A S,2012700026,17047,FS102066S,NR33 0HT,PROGRAMME
FOOD STANDARDS AGENCY - Westminster,FOOD STANDARDS AGENCY - Westminster,2016-07-29,EXP - PURCHASE OF GOODS/SERVICES - OTHER - PROGRAMME EXPENDITURE,Contaminants HoD,C E F A S,2012700026,17047,May-16,NR33 0HT,PROGRAMME
FOOD STANDARDS AGENCY - Westminster,FOOD STANDARDS AGENCY - Westminster,2016-07-28,EXP - PURCHASE OF GOODS/SERVICES - OTHER - CARRIAGE OF SAMPLES,Operational Delivery,TOPSPEED COURIERS LIMITED,1011700475,16964.4,RIM X 352,WA16 8XN,PROGRAMME
FOOD STANDARDS AGENCY - Westminster,FOOD STANDARDS AGENCY - Westminster,2016-07-06,EXP - PURCHASE OF GOODS/SERVICES - ACCOMM & BLDNG MGMT - SHARED SITE RECHARGE,Security & Estates,G4S FACILITIES MANAGEMENT UK LTD,1011700289,16938.25,G4S INVOICE 90118486 CONTRACT CHARGES,S81 7QF,ADMIN
FOOD STANDARDS AGENCY - Westminster,FOOD STANDARDS AGENCY - Westminster,2016-07-21,EXP - PURCHASE OF GOODS/SERVICES - ACCOMM & BLDNG MGMT - SHARED SITE RECHARGE,Security & Estates,G4S FACILITIES MANAGEMENT UK LTD,1011700420,16938.25,G4S INVOICE 90123745,S81 7QF,ADMIN
FOOD STANDARDS AGENCY - Westminster,FOOD STANDARDS AGENCY - Westminster,2016-07-05,EXP - PURCHASE OF GOODS/SERVICES - OTHER ICT COSTS - COMPUTER SOFTWARE,IT Service Delivery,TRUSTMARQUE SOLUTIONS LTD,1011700284,15631.82,ORDER NO SO647857 MICROSOFT CORE INFRASTRUCTURE SVRSTEDATACTR MTHLY SUB,YO32 9GZ,ADMIN
FOOD STANDARDS AGENCY - Westminster,FOOD STANDARDS AGENCY - Westminster,2016-07-12,EXP - PURCHASE OF GOODS/SERVICES - OTHER - PROGRAMME EXPENDITURE,Analysis & Research Branch,NATIONAL CENTRE FOR SOCIAL RESEARCH,1011700345,15442,P11314.00 FOOD,EC1V 0AX,PROGRAMME
FOOD STANDARDS AGENCY - Westminster,FOOD STANDARDS AGENCY - Westminster,2016-07-08,EXP - PURCHASE OF GOODS/SERVICES - OTHER - PROGRAMME EXPENDITURE,Comms Directors Office,T N S UK LTD,1011700315,15000,FSA EAT LESS MEAT,SE1 2QY,PROGRAMME
FOOD STANDARDS AGENCY - Westminster,FOOD STANDARDS AGENCY - Westminster,2016-07-05,EXP - PURCHASE OF GOODS/SERVICES - OTHER ICT COSTS - COMPUTER SOFTWARE,IT Service Delivery,TRUSTMARQUE SOLUTIONS LTD,1011700284,14867.5,ORDER NO SO647856,YO32 9GZ,ADMIN
FOOD STANDARDS AGENCY - Westminster,FOOD STANDARDS AGENCY - Westminster,2016-07-05,EXP - PURCHASE OF GOODS/SERVICES - OTHER ICT COSTS - COMPUTER SOFTWARE,IT Service Delivery,TRUSTMARQUE SOLUTIONS LTD,1011700284,13426.56,ORDER NO SO647857 MICROSOFT CORE INFRASTRUCTURE SVRSTEDATACTR MTHLY SUB,YO32 9GZ,ADMIN
FOOD STANDARDS AGENCY - Westminster,FOOD STANDARDS AGENCY - Westminster,2016-07-05,EXP - PURCHASE OF GOODS/SERVICES - OTHER ICT COSTS - COMPUTER SOFTWARE,IT Service Delivery,TRUSTMARQUE SOLUTIONS LTD,1011700284,12866.4,ORDER NO SO647857 MICROSOFT CORE INFRASTRUCTURE SVRSTEDATACTR MTHLY SUB,YO32 9GZ,ADMIN
FOOD STANDARDS AGENCY - Westminster,FOOD STANDARDS AGENCY - Westminster,2016-07-04,EXP - AMORTISATION - INTANGIBLE ASSETS,Operations Assurance ,CAPITA SECURE INFORMATION SOLUTIONS LTD,1011700257,12727,SIR APP SERVER MIGRANTION TEST,SN14 0TW,PROGRAMME
FOOD STANDARDS AGENCY - Westminster,FOOD STANDARDS AGENCY - Westminster,2016-07-21,EXP - PURCHASE OF GOODS/SERVICES - ACCOMM & BLDNG MGMT - SHARED SITE RECHARGE,Security & Estates,G4S FACILITIES MANAGEMENT UK LTD,1011700420,12478.64,G4S INVOICE 90123745,S81 7QF,ADMIN
FOOD STANDARDS AGENCY - Westminster,FOOD STANDARDS AGENCY - Westminster,2016-07-04,EXP - PURCHASE OF GOODS/SERVICES - OTHER - PROGRAMME EXPENDITURE,Comms Directors Office,S K V COMMUNICATIONS,1011700252,12080,FSW COSTS,M3 7NA,PROGRAMME
FOOD STANDARDS AGENCY - Westminster,FOOD STANDARDS AGENCY - Westminster,2016-07-06,EXP - PURCHASE OF GOODS/SERVICES - ACCOMM & BLDNG MGMT - SHARED SITE RECHARGE,Security & Estates,G4S FACILITIES MANAGEMENT UK LTD,1011700289,9047.6,G4S INVOICE 90118486 CONTRACT CHARGES,S81 7QF,ADMIN
FOOD STANDARDS AGENCY - Westminster,FOOD STANDARDS AGENCY - Westminster,2016-07-27,EXP - PURCHASE OF GOODS/SERVICES - OTHER - PROGRAMME EXPENDITURE,Chemical Risk Assessment Unit,FERA SCIENCE LIMITED,1011700469,8714.38,13 APR - JUN 16,YO41 1LZ,PROGRAMME
FOOD STANDARDS AGENCY - Westminster,FOOD STANDARDS AGENCY - Westminster,2016-07-04,EXP - AMORTISATION - INTANGIBLE ASSETS,IT Strategy,CAPITA SECURE INFORMATION SOLUTIONS LTD,1011700257,8673.68,SSCM  DEPLOYMENT RESOURCE,SN14 0TW,ADMIN
FOOD STANDARDS AGENCY - Westminster,FOOD STANDARDS AGENCY - Westminster,2016-07-05,EXP - PURCHASE OF GOODS/SERVICES - OTHER ICT COSTS - COMPUTER SOFTWARE,IT Service Delivery,TRUSTMARQUE SOLUTIONS LTD,1011700284,8550,ORDER NO SO647856,YO32 9GZ,ADMIN
FOOD STANDARDS AGENCY - Westminster,FOOD STANDARDS AGENCY - Westminster,2016-07-04,EXP - PURCHASE OF GOODS/SERVICES - OTHER ICT COSTS - IT DEVELOPMENT,IT Strategy,CAPITA SECURE INFORMATION SOLUTIONS LTD,1011700257,8110.42,INFRASTRUCTURE CONVERGENCE,SN14 0TW,ADMIN
FOOD STANDARDS AGENCY - Westminster,FOOD STANDARDS AGENCY - Westminster,2016-07-01,EXP - PURCHASE OF GOODS/SERVICES - OTHER - PROGRAMME EXPENDITURE,Comms Directors Office,T N S UK LTD,1011700223,7920,JOB 260127904,SE1 2QY,PROGRAMME
FOOD STANDARDS AGENCY - Westminster,FOOD STANDARDS AGENCY - Westminster,2016-07-28,EXP - PURCHASE OF GOODS/SERVICES - OTHER - CARRIAGE OF SAMPLES,Operational Delivery,TOPSPEED COURIERS LIMITED,1011700475,7785,TB RED X 71,WA16 8XN,PROGRAMME
FOOD STANDARDS AGENCY - Westminster,FOOD STANDARDS AGENCY - Westminster,2016-07-22,EXP - PURCHASE OF GOODS/SERVICES - OTHER - PROGRAMME EXPENDITURE,Contaminants HoD,C E F A S,2012700022,7486.95,PROJECT #C6028,NR33 0HT,PROGRAMME
FOOD STANDARDS AGENCY - Westminster,FOOD STANDARDS AGENCY - Westminster,2016-07-06,EXP - PURCHASE OF GOODS/SERVICES - OTHER - PROGRAMME EXPENDITURE,Chief Scientist,C E F A S,2012700014,7134.2,APRIL TO JUNE F/Y2016/17,NR33 0HT,PROGRAMME
FOOD STANDARDS AGENCY - Westminster,FOOD STANDARDS AGENCY - Westminster,2016-07-05,EXP - PURCHASE OF GOODS/SERVICES - OTHER ICT COSTS - COMPUTER SOFTWARE,IT Service Delivery,TRUSTMARQUE SOLUTIONS LTD,1011700284,6385.2,ORDER NO SO647857 MICROSOFT CORE INFRASTRUCTURE SVRSTEDATACTR MTHLY SUB,YO32 9GZ,ADMIN
FOOD STANDARDS AGENCY - Westminster,FOOD STANDARDS AGENCY - Westminster,2016-07-21,EXP - PURCHASE OF GOODS/SERVICES - TELECOMS - TELEPHONE,IT Service Delivery,VODAFONE LTD,1011700422,6309.76,CHARGES,MK3 5JL,ADMIN
FOOD STANDARDS AGENCY - Westminster,FOOD STANDARDS AGENCY - Westminster,2016-07-05,EXP - PURCHASE OF GOODS/SERVICES - OTHER ICT COSTS - COMPUTER SOFTWARE,IT Service Delivery,TRUSTMARQUE SOLUTIONS LTD,1011700284,5722.5,ORDER NO SO647856,YO32 9GZ,ADMIN
FOOD STANDARDS AGENCY - Westminster,FOOD STANDARDS AGENCY - Westminster,2016-07-15,EXP - PURCHASE OF GOODS/SERVICES - OTHER ENERGY/UTILITIES/WASTE COST,Security & Estates,EDF ENERGY PLC,1011700377,5123.73,EDF ENGERGY 1834783 JUN16,EX1 3UT,ADMIN
FOOD STANDARDS AGENCY - Westminster,FOOD STANDARDS AGENCY - Westminster,2016-07-04,EXP - AMORTISATION - INTANGIBLE ASSETS,IT Strategy,CAPITA SECURE INFORMATION SOLUTIONS LTD,1011700257,5068.53,COLLABORATION SUITE,SN14 0TW,ADMIN
FOOD STANDARDS AGENCY - Westminster,FOOD STANDARDS AGENCY - Westminster,2016-07-13,EXP - PURCHASE OF GOODS/SERVICES - OTHER ENERGY/UTILITIES/WASTE COST,Security & Estates,EDF ENERGY PLC,1011700349,4921.16,1735597 - MAY2016,EX1 3UT,ADMIN
FOOD STANDARDS AGENCY - Westminster,FOOD STANDARDS AGENCY - Westminster,2016-07-05,EXP - PURCHASE OF GOODS/SERVICES - OTHER ICT COSTS - COMPUTER SOFTWARE,IT Service Delivery,TRUSTMARQUE SOLUTIONS LTD,1011700284,4340.8,ORDER NO SO647856,YO32 9GZ,ADMIN
FOOD STANDARDS AGENCY - Westminster,FOOD STANDARDS AGENCY - Westminster,2016-07-01,EXP - AMORTISATION - INTANGIBLE ASSETS,Operations Assurance ,S F W LTD,1011700215,4230,"FSA01:4, 5, 6 & 7",GU22 7UY,PROGRAMME
FOOD STANDARDS AGENCY - Westminster,FOOD STANDARDS AGENCY - Westminster,2016-07-01,EXP - PURCHASE OF GOODS/SERVICES - OTHER - PROGRAMME EXPENDITURE,Chief Scientist,T N S UK LTD,1011700223,3526,PO 424443 MANUKA HONEY,SE1 2QY,PROGRAMME
FOOD STANDARDS AGENCY - Westminster,FOOD STANDARDS AGENCY - Westminster,2016-07-06,EXP - PURCHASE OF GOODS/SERVICES - OTHER FACILTIES COSTS - SECURITY,Security & Estates,G4S FACILITIES MANAGEMENT UK LTD,1011700289,3431.04,G4S INVOICE 90118486 CONTRACT CHARGES,S81 7QF,ADMIN
FOOD STANDARDS AGENCY - Westminster,FOOD STANDARDS AGENCY - Westminster,2016-07-29,EXP - PURCHASE OF GOODS/SERVICES - OTHER - PROGRAMME EXPENDITURE,Contaminants HoD,C E F A S,2012700026,3409.4,FS102066S,NR33 0HT,PROGRAMME
FOOD STANDARDS AGENCY - Westminster,FOOD STANDARDS AGENCY - Westminster,2016-07-29,EXP - PURCHASE OF GOODS/SERVICES - OTHER - PROGRAMME EXPENDITURE,Contaminants HoD,C E F A S,2012700026,3409.4,May-16,NR33 0HT,PROGRAMME
FOOD STANDARDS AGENCY - Westminster,FOOD STANDARDS AGENCY - Westminster,2016-07-01,EXP - PURCHASE OF GOODS/SERVICES - OTHER - PROGRAMME EXPENDITURE,Comms Directors Office,T N S UK LTD,1011700223,3311,JOB 260136149,SE1 2QY,PROGRAMME
FOOD STANDARDS AGENCY - Westminster,FOOD STANDARDS AGENCY - Westminster,2016-07-05,EXP - PURCHASE OF GOODS/SERVICES - OTHER ICT COSTS - COMPUTER SOFTWARE,IT Service Delivery,TRUSTMARQUE SOLUTIONS LTD,1011700284,3177,ORDER NO SO647856,YO32 9GZ,ADMIN
FOOD STANDARDS AGENCY - Westminster,FOOD STANDARDS AGENCY - Westminster,2016-07-05,EXP - PURCHASE OF GOODS/SERVICES - OTHER ICT COSTS - COMPUTER SOFTWARE,IT Service Delivery,TRUSTMARQUE SOLUTIONS LTD,1011700284,3030,ORDER NO SO647856,YO32 9GZ,ADMIN
FOOD STANDARDS AGENCY - Westminster,FOOD STANDARDS AGENCY - Westminster,2016-07-01,EXP - PURCHASE OF GOODS/SERVICES - RAIL TRAVEL,Operations Local Delivery ,REDFERN TRAVEL LTD,1011700226,2838.05,INV 1908 TRAVEL & SUBSISTENCE WEEK 25,BD1 1PL,ADMIN
FOOD STANDARDS AGENCY - Westminster,FOOD STANDARDS AGENCY - Westminster,2016-07-15,EXP - PURCHASE OF GOODS/SERVICES - RAIL TRAVEL,Operations Local Delivery ,REDFERN TRAVEL LTD,1011700375,2786.35,INV 2054 TRAVEL & SUBSISTENCE WEEK 28,BD1 5HQ,ADMIN
FOOD STANDARDS AGENCY - Westminster,FOOD STANDARDS AGENCY - Westminster,2016-07-01,EXP - AMORTISATION - INTANGIBLE ASSETS,Operations Assurance ,S F W LTD,1011700215,2629,"FSA01:4, 5, 6 & 7",GU22 7UY,PROGRAMME
FOOD STANDARDS AGENCY - Westminster,FOOD STANDARDS AGENCY - Westminster,2016-07-04,EXP - AMORTISATION - INTANGIBLE ASSETS,Operations Assurance ,CAPITA SECURE INFORMATION SOLUTIONS LTD,1011700257,2545.4,SIR APP SERVER MIGRANTION TEST,SN14 0TW,PROGRAMME
FOOD STANDARDS AGENCY - Westminster,FOOD STANDARDS AGENCY - Westminster,2016-07-04,EXP - PURCHASE OF GOODS/SERVICES - OTHER - PROGRAMME EXPENDITURE,Comms Directors Office,S K V COMMUNICATIONS,1011700252,2500,CONSUMER PARTNERSHIP SERVICES,M3 7NA,PROGRAMME
FOOD STANDARDS AGENCY - Westminster,FOOD STANDARDS AGENCY - Westminster,2016-07-04,EXP - PURCHASE OF GOODS/SERVICES - OTHER - PROGRAMME EXPENDITURE,Comms Directors Office,S K V COMMUNICATIONS,1011700252,2500,CONSUMER PARTNERSHIP SERVICES,M3 7NA,PROGRAMME
FOOD STANDARDS AGENCY - Westminster,FOOD STANDARDS AGENCY - Westminster,2016-07-04,EXP - PURCHASE OF GOODS/SERVICES - OTHER - PROGRAMME EXPENDITURE,Comms Directors Office,S K V COMMUNICATIONS,1011700252,2500,CONSUMER PARTNERSHIP SERVICES,M3 7NA,PROGRAMME
FOOD STANDARDS AGENCY - Westminster,FOOD STANDARDS AGENCY - Westminster,2016-07-04,EXP - PURCHASE OF GOODS/SERVICES - OTHER - PROGRAMME EXPENDITURE,Comms Directors Office,S K V COMMUNICATIONS,1011700252,2500,FOOD & BUSINESS PARTNERSHIPS,M3 7NA,PROGRAMME
FOOD STANDARDS AGENCY - Westminster,FOOD STANDARDS AGENCY - Westminster,2016-07-04,EXP - PURCHASE OF GOODS/SERVICES - OTHER - PROGRAMME EXPENDITURE,Comms Directors Office,S K V COMMUNICATIONS,1011700252,2500,CONSUMER PARTNERSHIP SERVICES,M3 7NA,PROGRAMME
FOOD STANDARDS AGENCY - Westminster,FOOD STANDARDS AGENCY - Westminster,2016-07-04,EXP - PURCHASE OF GOODS/SERVICES - OTHER - PROGRAMME EXPENDITURE,Comms Directors Office,S K V COMMUNICATIONS,1011700252,2500,FOOD & BUSINESS PARTNERSHIPS,M3 7NA,PROGRAMME
FOOD STANDARDS AGENCY - Westminster,FOOD STANDARDS AGENCY - Westminster,2016-07-04,EXP - PURCHASE OF GOODS/SERVICES - OTHER ICT COSTS - IT DEVELOPMENT,IT Strategy,CAPITA SECURE INFORMATION SOLUTIONS LTD,1011700257,2390.16,LAEMS UPGRADE RESOURCE,SN14 0TW,ADMIN
FOOD STANDARDS AGENCY - Westminster,FOOD STANDARDS AGENCY - Westminster,2016-07-15,EXP - PURCHASE OF GOODS/SERVICES - RAIL TRAVEL,Operational Delivery,REDFERN TRAVEL LTD,1011700375,2308.6,INV 2054 TRAVEL & SUBSISTENCE WEEK 28,BD1 5HQ,PROGRAMME
FOOD STANDARDS AGENCY - Westminster,FOOD STANDARDS AGENCY - Westminster,2016-07-15,EXP - PURCHASE OF GOODS/SERVICES - RAIL TRAVEL,Operational Delivery,REDFERN TRAVEL LTD,1011700375,1989.65,INV 1720 TRAVEL & SUBSISTENCE WEEK 21,BD1 5HQ,PROGRAMME
FOOD STANDARDS AGENCY - Westminster,FOOD STANDARDS AGENCY - Westminster,2016-07-21,EXP - PURCHASE OF GOODS/SERVICES - OTHER - PROGRAMME EXPENDITURE,Operations Local Delivery ,C E F A S,2012700021,1973.76,THE PROVISION OF OFFICAL CONTROL SRVICES OF SHELLFISH,NR33 0HT,PROGRAMME
FOOD STANDARDS AGENCY - Westminster,FOOD STANDARDS AGENCY - Westminster,2016-07-21,EXP - PURCHASE OF GOODS/SERVICES - ACCOMM & BLDNG MGMT - SHARED SITE RECHARGE,Security & Estates,G4S FACILITIES MANAGEMENT UK LTD,1011700420,1919.16,G4S INVOICE 90123746,S81 7QF,ADMIN
FOOD STANDARDS AGENCY - Westminster,FOOD STANDARDS AGENCY - Westminster,2016-07-25,EXP - PURCHASE OF GOODS/SERVICES - OTHER ICT COSTS,IT Service Delivery,CAPITA SECURE INFORMATION SOLUTIONS LTD,1011700448,1884,PLAN PRINTER BUFFER STOCK,SN14 0TW,ADMIN
FOOD STANDARDS AGENCY - Westminster,FOOD STANDARDS AGENCY - Westminster,2016-07-25,EXP - PURCHASE OF GOODS/SERVICES - OTHER ICT COSTS,IT Service Delivery,CAPITA SECURE INFORMATION SOLUTIONS LTD,1011700448,1880,PLANT PRINTERS,SN14 0TW,ADMIN
FOOD STANDARDS AGENCY - Westminster,FOOD STANDARDS AGENCY - Westminster,2016-07-01,EXP - PURCHASE OF GOODS/SERVICES - OTHER - PROGRAMME EXPENDITURE,Comms Directors Office,CALDER CONFERENCES LTD,1011700237,1845.09,FSA MEETING LONDON,LS16 6RF,PROGRAMME
FOOD STANDARDS AGENCY - Westminster,FOOD STANDARDS AGENCY - Westminster,2016-07-13,EXP - PURCHASE OF GOODS/SERVICES - RAIL TRAVEL,Finance Director & Branch,REDFERN TRAVEL LTD,1011700358,1815.45,INV 1830 TRAVEL & SUBSISTENCE WEEK 23,BD1 1PL,ADMIN
FOOD STANDARDS AGENCY - Westminster,FOOD STANDARDS AGENCY - Westminster,2016-07-28,EXP - PURCHASE OF GOODS/SERVICES - OTHER - CARRIAGE OF SAMPLES,Operational Delivery,TOPSPEED COURIERS LIMITED,1011700475,1800,CAMPY X 40,WA16 8XN,PROGRAMME
FOOD STANDARDS AGENCY - Westminster,FOOD STANDARDS AGENCY - Westminster,2016-07-15,EXP - PURCHASE OF GOODS/SERVICES - RAIL TRAVEL,Operations Local Delivery ,REDFERN TRAVEL LTD,1011700375,1783.07,INV 1720 TRAVEL & SUBSISTENCE WEEK 21,BD1 5HQ,ADMIN
FOOD STANDARDS AGENCY - Westminster,FOOD STANDARDS AGENCY - Westminster,2016-07-01,EXP - PURCHASE OF GOODS/SERVICES - SUBSISTENCE,Food Incidents & Resilience - Prog,REDFERN TRAVEL LTD,1011700226,1743.23,INV 1908 TRAVEL & SUBSISTENCE WEEK 25,BD1 1PL,PROGRAMME
FOOD STANDARDS AGENCY - Westminster,FOOD STANDARDS AGENCY - Westminster,2016-07-04,EXP - AMORTISATION - INTANGIBLE ASSETS,IT Strategy,CAPITA SECURE INFORMATION SOLUTIONS LTD,1011700257,1734.74,SSCM  DEPLOYMENT RESOURCE,SN14 0TW,ADMIN
FOOD STANDARDS AGENCY - Westminster,FOOD STANDARDS AGENCY - Westminster,2016-07-13,EXP - PURCHASE OF GOODS/SERVICES - RAIL TRAVEL,Operations Local Delivery ,REDFERN TRAVEL LTD,1011700358,1684.26,INV 1923 TRAVEL & SUBSISTENCE WEEK 26,BD1 1PL,ADMIN
FOOD STANDARDS AGENCY - Westminster,FOOD STANDARDS AGENCY - Westminster,2016-07-13,EXP - PURCHASE OF GOODS/SERVICES - SUBSISTENCE,Operational Delivery,REDFERN TRAVEL LTD,1011700358,1651.27,INV 1923 TRAVEL & SUBSISTENCE WEEK 26,BD1 1PL,PROGRAMME
FOOD STANDARDS AGENCY - Westminster,FOOD STANDARDS AGENCY - Westminster,2016-07-13,EXP - PURCHASE OF GOODS/SERVICES - RAIL TRAVEL,Operations Local Delivery ,REDFERN TRAVEL LTD,1011700358,1636.05,INV 1830 TRAVEL & SUBSISTENCE WEEK 23,BD1 1PL,ADMIN
FOOD STANDARDS AGENCY - Westminster,FOOD STANDARDS AGENCY - Westminster,2016-07-04,EXP - PURCHASE OF GOODS/SERVICES - OTHER ICT COSTS - IT DEVELOPMENT,IT Strategy,CAPITA SECURE INFORMATION SOLUTIONS LTD,1011700257,1622.08,INFRASTRUCTURE CONVERGENCE,SN14 0TW,ADMIN
FOOD STANDARDS AGENCY - Westminster,FOOD STANDARDS AGENCY - Westminster,2016-07-01,EXP - PURCHASE OF GOODS/SERVICES - RAIL TRAVEL,Planning and Performance,REDFERN TRAVEL LTD,1011700226,1608.95,INV 1908 TRAVEL & SUBSISTENCE WEEK 25,BD1 1PL,ADMIN
FOOD STANDARDS AGENCY - Westminster,FOOD STANDARDS AGENCY - Westminster,2016-07-28,EXP - PURCHASE OF GOODS/SERVICES - OTHER - CARRIAGE OF SAMPLES,Operational Delivery,TOPSPEED COURIERS LIMITED,1011700475,1601.6,RCDM COLLECTIONS X16,WA16 8XN,PROGRAMME
FOOD STANDARDS AGENCY - Westminster,FOOD STANDARDS AGENCY - Westminster,2016-07-01,EXP - PURCHASE OF GOODS/SERVICES - RAIL TRAVEL,Operational Delivery,REDFERN TRAVEL LTD,1011700226,1550.7,INV 1908 TRAVEL & SUBSISTENCE WEEK 25,BD1 1PL,PROGRAMME
FOOD STANDARDS AGENCY - Westminster,FOOD STANDARDS AGENCY - Westminster,2016-07-05,EXP - PURCHASE OF GOODS/SERVICES - OTHER ICT COSTS - COMPUTER SOFTWARE,IT Service Delivery,TRUSTMARQUE SOLUTIONS LTD,1011700284,1513.56,ORDER NO SO647856,YO32 9GZ,ADMIN
FOOD STANDARDS AGENCY - Westminster,FOOD STANDARDS AGENCY - Westminster,2016-07-01,EXP - PURCHASE OF GOODS/SERVICES - RAIL TRAVEL,Finance Director & Branch,REDFERN TRAVEL LTD,1011700226,1472.15,INV 1908 TRAVEL & SUBSISTENCE WEEK 25,BD1 1PL,ADMIN
FOOD STANDARDS AGENCY - Westminster,FOOD STANDARDS AGENCY - Westminster,2016-07-15,EXP - PURCHASE OF GOODS/SERVICES - RAIL TRAVEL,Operations Assurance ,REDFERN TRAVEL LTD,1011700375,1431.65,INV 2054 TRAVEL & SUBSISTENCE WEEK 28,BD1 5HQ,PROGRAMME
FOOD STANDARDS AGENCY - Westminster,FOOD STANDARDS AGENCY - Westminster,2016-07-13,EXP - PURCHASE OF GOODS/SERVICES - RAIL TRAVEL,Operational Delivery,REDFERN TRAVEL LTD,1011700358,1320.15,INV 1923 TRAVEL & SUBSISTENCE WEEK 26,BD1 1PL,PROGRAMME
FOOD STANDARDS AGENCY - Westminster,FOOD STANDARDS AGENCY - Westminster,2016-07-15,EXP - PURCHASE OF GOODS/SERVICES - SUBSISTENCE,Operations Local Delivery ,REDFERN TRAVEL LTD,1011700375,1258.71,INV 2054 TRAVEL & SUBSISTENCE WEEK 28,BD1 5HQ,ADMIN
FOOD STANDARDS AGENCY - Westminster,FOOD STANDARDS AGENCY - Westminster,2016-07-01,EXP - PURCHASE OF GOODS/SERVICES - RAIL TRAVEL,Operations Assurance ,REDFERN TRAVEL LTD,1011700226,1251.5,INV 1908 TRAVEL & SUBSISTENCE WEEK 25,BD1 1PL,PROGRAMME
FOOD STANDARDS AGENCY - Westminster,FOOD STANDARDS AGENCY - Westminster,2016-07-15,EXP - PURCHASE OF GOODS/SERVICES - RAIL TRAVEL,Chief Executive & Private Office,REDFERN TRAVEL LTD,1011700375,1200.3,INV 1720 TRAVEL & SUBSISTENCE WEEK 21,BD1 5HQ,ADMIN
FOOD STANDARDS AGENCY - Westminster,FOOD STANDARDS AGENCY - Westminster,2016-07-21,EXP - PURCHASE OF GOODS/SERVICES - ACCOMM & BLDNG MGMT - SHARED SITE RECHARGE,Security & Estates,G4S FACILITIES MANAGEMENT UK LTD,1011700420,1164.89,G4S INVOICE 90123746,S81 7QF,ADMIN
FOOD STANDARDS AGENCY - Westminster,FOOD STANDARDS AGENCY - Westminster,2016-07-21,EXP - PURCHASE OF GOODS/SERVICES - ACCOMM & BLDNG MGMT - SHARED SITE RECHARGE,Security & Estates,G4S FACILITIES MANAGEMENT UK LTD,1011700420,1163.39,G4S INVOICE 90123746,S81 7QF,ADMIN
FOOD STANDARDS AGENCY - Westminster,FOOD STANDARDS AGENCY - Westminster,2016-07-13,EXP - PURCHASE OF GOODS/SERVICES - SUBSISTENCE,Food Incidents & Resilience - Prog,REDFERN TRAVEL LTD,1011700358,1147.46,INV 1923 TRAVEL & SUBSISTENCE WEEK 26,BD1 1PL,PROGRAMME
FOOD STANDARDS AGENCY - Westminster,FOOD STANDARDS AGENCY - Westminster,2016-07-15,EXP - PURCHASE OF GOODS/SERVICES - SUBSISTENCE,Operational Delivery,REDFERN TRAVEL LTD,1011700375,1048.04,INV 1720 TRAVEL & SUBSISTENCE WEEK 21,BD1 5HQ,PROGRAMME
FOOD STANDARDS AGENCY - Westminster,FOOD STANDARDS AGENCY - Westminster,2016-07-13,EXP - PURCHASE OF GOODS/SERVICES - RAIL TRAVEL,Operations Assurance ,REDFERN TRAVEL LTD,1011700358,1041.9,INV 1923 TRAVEL & SUBSISTENCE WEEK 26,BD1 1PL,PROGRAMME
FOOD STANDARDS AGENCY - Westminster,FOOD STANDARDS AGENCY - Westminster,2016-07-15,EXP - PURCHASE OF GOODS/SERVICES - RAIL TRAVEL,Operations Assurance ,REDFERN TRAVEL LTD,1011700375,1040.6,INV 1720 TRAVEL & SUBSISTENCE WEEK 21,BD1 5HQ,PROGRAMME
FOOD STANDARDS AGENCY - Westminster,FOOD STANDARDS AGENCY - Westminster,2016-07-04,EXP - AMORTISATION - INTANGIBLE ASSETS,IT Strategy,CAPITA SECURE INFORMATION SOLUTIONS LTD,1011700257,1013.71,COLLABORATION SUITE,SN14 0TW,ADMIN
FOOD STANDARDS AGENCY - Westminster,FOOD STANDARDS AGENCY - Westminster,2016-07-13,EXP - PURCHASE OF GOODS/SERVICES - RAIL TRAVEL,Operations Assurance ,REDFERN TRAVEL LTD,1011700358,1012,INV 1830 TRAVEL & SUBSISTENCE WEEK 23,BD1 1PL,PROGRAMME
FOOD STANDARDS AGENCY - Westminster,FOOD STANDARDS AGENCY - Westminster,2016-07-13,EXP - PURCHASE OF GOODS/SERVICES - RAIL TRAVEL,Comms Directors Office,REDFERN TRAVEL LTD,1011700358,936.36,INV 1830 TRAVEL & SUBSISTENCE WEEK 23,BD1 1PL,ADMIN
FOOD STANDARDS AGENCY - Westminster,FOOD STANDARDS AGENCY - Westminster,2016-07-15,EXP - PURCHASE OF GOODS/SERVICES - RAIL TRAVEL,IT Service Delivery,REDFERN TRAVEL LTD,1011700375,934.1,INV 2054 TRAVEL & SUBSISTENCE WEEK 28,BD1 5HQ,ADMIN
FOOD STANDARDS AGENCY - Westminster,FOOD STANDARDS AGENCY - Westminster,2016-07-13,EXP - PURCHASE OF GOODS/SERVICES - RAIL TRAVEL,Planning and Performance,REDFERN TRAVEL LTD,1011700358,885.95,INV 1923 TRAVEL & SUBSISTENCE WEEK 26,BD1 1PL,ADMIN
FOOD STANDARDS AGENCY - Westminster,FOOD STANDARDS AGENCY - Westminster,2016-07-21,EXP - PURCHASE OF GOODS/SERVICES - ACCOMM & BLDNG MGMT - SHARED SITE RECHARGE,Security & Estates,G4S FACILITIES MANAGEMENT UK LTD,1011700420,849.49,G4S INVOICE 90123746,S81 7QF,ADMIN
FOOD STANDARDS AGENCY - Westminster,FOOD STANDARDS AGENCY - Westminster,2016-07-15,EXP - PURCHASE OF GOODS/SERVICES - RAIL TRAVEL,Finance Director & Branch,REDFERN TRAVEL LTD,1011700375,823.55,INV 2054 TRAVEL & SUBSISTENCE WEEK 28,BD1 5HQ,ADMIN
FOOD STANDARDS AGENCY - Westminster,FOOD STANDARDS AGENCY - Westminster,2016-07-13,EXP - PURCHASE OF GOODS/SERVICES - RAIL TRAVEL,Directorate Support Unit,REDFERN TRAVEL LTD,1011700358,797.7,INV 1923 TRAVEL & SUBSISTENCE WEEK 26,BD1 1PL,ADMIN
FOOD STANDARDS AGENCY - Westminster,FOOD STANDARDS AGENCY - Westminster,2016-07-15,EXP - PURCHASE OF GOODS/SERVICES - RAIL TRAVEL,Planning and Performance,REDFERN TRAVEL LTD,1011700375,777.15,INV 2054 TRAVEL & SUBSISTENCE WEEK 28,BD1 5HQ,ADMIN
FOOD STANDARDS AGENCY - Westminster,FOOD STANDARDS AGENCY - Westminster,2016-07-25,EXP - PURCHASE OF GOODS/SERVICES - OTHER ICT COSTS,IT Service Delivery,CAPITA SECURE INFORMATION SOLUTIONS LTD,1011700448,760,ENCRYPTED MEMORY STICKS,SN14 0TW,ADMIN
FOOD STANDARDS AGENCY - Westminster,FOOD STANDARDS AGENCY - Westminster,2016-07-05,EXP - PURCHASE OF GOODS/SERVICES - OTHER ICT COSTS - COMPUTER SOFTWARE,IT Service Delivery,TRUSTMARQUE SOLUTIONS LTD,1011700284,756.84,ORDER NO SO647856,YO32 9GZ,ADMIN
FOOD STANDARDS AGENCY - Westminster,FOOD STANDARDS AGENCY - Westminster,2016-07-13,EXP - PURCHASE OF GOODS/SERVICES - RAIL TRAVEL,Operational Delivery,REDFERN TRAVEL LTD,1011700358,746.2,INV 1830 TRAVEL & SUBSISTENCE WEEK 23,BD1 1PL,PROGRAMME
FOOD STANDARDS AGENCY - Westminster,FOOD STANDARDS AGENCY - Westminster,2016-07-15,EXP - PURCHASE OF GOODS/SERVICES - RAIL TRAVEL,Planning and Performance,REDFERN TRAVEL LTD,1011700375,731.2,INV 1720 TRAVEL & SUBSISTENCE WEEK 21,BD1 5HQ,ADMIN
FOOD STANDARDS AGENCY - Westminster,FOOD STANDARDS AGENCY - Westminster,2016-07-13,EXP - PURCHASE OF GOODS/SERVICES - RAIL TRAVEL,Planning and Performance,REDFERN TRAVEL LTD,1011700358,722.4,INV 1830 TRAVEL & SUBSISTENCE WEEK 23,BD1 1PL,ADMIN
FOOD STANDARDS AGENCY - Westminster,FOOD STANDARDS AGENCY - Westminster,2016-07-15,EXP - PURCHASE OF GOODS/SERVICES - RAIL TRAVEL,Food Crime Unit - Admin,REDFERN TRAVEL LTD,1011700375,720.05,INV 2054 TRAVEL & SUBSISTENCE WEEK 28,BD1 5HQ,ADMIN
FOOD STANDARDS AGENCY - Westminster,FOOD STANDARDS AGENCY - Westminster,2016-07-15,EXP - PURCHASE OF GOODS/SERVICES - SUBSISTENCE,Operations Assurance ,REDFERN TRAVEL LTD,1011700375,718.45,INV 1720 TRAVEL & SUBSISTENCE WEEK 21,BD1 5HQ,PROGRAMME
FOOD STANDARDS AGENCY - Westminster,FOOD STANDARDS AGENCY - Westminster,2016-07-01,EXP - PURCHASE OF GOODS/SERVICES - RAIL TRAVEL,Food Incidents & Resilience - Prog,REDFERN TRAVEL LTD,1011700226,712.1,INV 1908 TRAVEL & SUBSISTENCE WEEK 25,BD1 1PL,PROGRAMME
FOOD STANDARDS AGENCY - Westminster,FOOD STANDARDS AGENCY - Westminster,2016-07-13,EXP - PURCHASE OF GOODS/SERVICES - RAIL TRAVEL,Area 6 South East England - Cluster 66,REDFERN TRAVEL LTD,1011700358,655.55,INV 1830 TRAVEL & SUBSISTENCE WEEK 23,BD1 1PL,PROGRAMME
FOOD STANDARDS AGENCY - Westminster,FOOD STANDARDS AGENCY - Westminster,2016-07-01,EXP - PURCHASE OF GOODS/SERVICES - SUBSISTENCE,Operational Delivery,REDFERN TRAVEL LTD,1011700226,655.11,INV 1908 TRAVEL & SUBSISTENCE WEEK 25,BD1 1PL,PROGRAMME
FOOD STANDARDS AGENCY - Westminster,FOOD STANDARDS AGENCY - Westminster,2016-07-13,EXP - PURCHASE OF GOODS/SERVICES - RAIL TRAVEL,Food Incidents & Resilience - Prog,REDFERN TRAVEL LTD,1011700358,654.7,INV 1830 TRAVEL & SUBSISTENCE WEEK 23,BD1 1PL,PROGRAMME
FOOD STANDARDS AGENCY - Westminster,FOOD STANDARDS AGENCY - Westminster,2016-07-05,EXP - PURCHASE OF GOODS/SERVICES - OTHER ICT COSTS - COMPUTER SOFTWARE,IT Service Delivery,TRUSTMARQUE SOLUTIONS LTD,1011700284,653.03,ORDER NO SO647856,YO32 9GZ,ADMIN
FOOD STANDARDS AGENCY - Westminster,FOOD STANDARDS AGENCY - Westminster,2016-07-13,EXP - PURCHASE OF GOODS/SERVICES - RAIL TRAVEL,IT Information & Knowledge Management,REDFERN TRAVEL LTD,1011700358,649.2,INV 1830 TRAVEL & SUBSISTENCE WEEK 23,BD1 1PL,ADMIN
FOOD STANDARDS AGENCY - Westminster,FOOD STANDARDS AGENCY - Westminster,2016-07-13,EXP - PURCHASE OF GOODS/SERVICES - RAIL TRAVEL,Area 6 South East England - Cluster 62,REDFERN TRAVEL LTD,1011700358,629.8,INV 1923 TRAVEL & SUBSISTENCE WEEK 26,BD1 1PL,PROGRAMME
FOOD STANDARDS AGENCY - Westminster,FOOD STANDARDS AGENCY - Westminster,2016-07-01,EXP - PURCHASE OF GOODS/SERVICES - RAIL TRAVEL,Operations Local Delivery ,REDFERN TRAVEL LTD,1011700226,623.4,INV 1908 TRAVEL & SUBSISTENCE WEEK 25,BD1 1PL,ADMIN
FOOD STANDARDS AGENCY - Westminster,FOOD STANDARDS AGENCY - Westminster,2016-07-01,EXP - PURCHASE OF GOODS/SERVICES - RAIL TRAVEL,Comms Directors Office,REDFERN TRAVEL LTD,1011700226,623.1,INV 1908 TRAVEL & SUBSISTENCE WEEK 25,BD1 1PL,ADMIN
FOOD STANDARDS AGENCY - Westminster,FOOD STANDARDS AGENCY - Westminster,2016-07-01,EXP - PURCHASE OF GOODS/SERVICES - AIR TRAVEL,Regulatory & International,REDFERN TRAVEL LTD,1011700226,622.5,INV 1908 TRAVEL & SUBSISTENCE WEEK 25,BD1 1PL,ADMIN
FOOD STANDARDS AGENCY - Westminster,FOOD STANDARDS AGENCY - Westminster,2016-07-15,EXP - PURCHASE OF GOODS/SERVICES - SUBSISTENCE,Area 6 South East England - Cluster 65,REDFERN TRAVEL LTD,1011700375,588.38,INV 1720 TRAVEL & SUBSISTENCE WEEK 21,BD1 5HQ,PROGRAMME
FOOD STANDARDS AGENCY - Westminster,FOOD STANDARDS AGENCY - Westminster,2016-07-01,EXP - PURCHASE OF GOODS/SERVICES - SUBSISTENCE,Operations Assurance ,REDFERN TRAVEL LTD,1011700226,578.13,INV 1908 TRAVEL & SUBSISTENCE WEEK 25,BD1 1PL,PROGRAMME
FOOD STANDARDS AGENCY - Westminster,FOOD STANDARDS AGENCY - Westminster,2016-07-13,EXP - PURCHASE OF GOODS/SERVICES - SUBSISTENCE,Operations Assurance ,REDFERN TRAVEL LTD,1011700358,565.59,INV 1923 TRAVEL & SUBSISTENCE WEEK 26,BD1 1PL,PROGRAMME
FOOD STANDARDS AGENCY - Westminster,FOOD STANDARDS AGENCY - Westminster,2016-07-01,EXP - PURCHASE OF GOODS/SERVICES - RAIL TRAVEL,Organisational Development,REDFERN TRAVEL LTD,1011700226,564.3,INV 1908 TRAVEL & SUBSISTENCE WEEK 25,BD1 1PL,ADMIN
FOOD STANDARDS AGENCY - Westminster,FOOD STANDARDS AGENCY - Westminster,2016-07-13,EXP - PURCHASE OF GOODS/SERVICES - SUBSISTENCE,Operational Delivery,REDFERN TRAVEL LTD,1011700358,562.99,INV 1830 TRAVEL & SUBSISTENCE WEEK 23,BD1 1PL,PROGRAMME
FOOD STANDARDS AGENCY - Westminster,FOOD STANDARDS AGENCY - Westminster,2016-07-13,EXP - PURCHASE OF GOODS/SERVICES - RAIL TRAVEL,Food Crime Unit - Admin,REDFERN TRAVEL LTD,1011700358,551.2,INV 1830 TRAVEL & SUBSISTENCE WEEK 23,BD1 1PL,ADMIN
FOOD STANDARDS AGENCY - Westminster,FOOD STANDARDS AGENCY - Westminster,2016-07-13,EXP - PURCHASE OF GOODS/SERVICES - RAIL TRAVEL,Chief Executive & Private Office,REDFERN TRAVEL LTD,1011700358,544.6,INV 1830 TRAVEL & SUBSISTENCE WEEK 23,BD1 1PL,ADMIN
FOOD STANDARDS AGENCY - Westminster,FOOD STANDARDS AGENCY - Westminster,2016-07-15,EXP - PURCHASE OF GOODS/SERVICES - SUBSISTENCE,Planning and Performance,REDFERN TRAVEL LTD,1011700375,533.2,INV 1720 TRAVEL & SUBSISTENCE WEEK 21,BD1 5HQ,ADMIN
FOOD STANDARDS AGENCY - Westminster,FOOD STANDARDS AGENCY - Westminster,2016-07-13,EXP - PURCHASE OF GOODS/SERVICES - SUBSISTENCE,Directorate Support Unit,REDFERN TRAVEL LTD,1011700358,505.2,INV 1923 TRAVEL & SUBSISTENCE WEEK 26,BD1 1PL,ADMIN
FOOD STANDARDS AGENCY - Westminster,FOOD STANDARDS AGENCY - Westminster,2016-07-15,EXP - PURCHASE OF GOODS/SERVICES - SUBSISTENCE,Additives,REDFERN TRAVEL LTD,1011700375,505.15,INV 1720 TRAVEL & SUBSISTENCE WEEK 21,BD1 5HQ,ADMIN
FOOD STANDARDS AGENCY - Westminster,FOOD STANDARDS AGENCY - Westminster,2016-07-15,EXP - PURCHASE OF GOODS/SERVICES - RAIL TRAVEL,Comms Directors Office,REDFERN TRAVEL LTD,1011700375,503.8,INV 1720 TRAVEL & SUBSISTENCE WEEK 21,BD1 5HQ,ADMIN
FOOD STANDARDS AGENCY - Westminster,FOOD STANDARDS AGENCY - Westminster,2016-07-13,EXP - PURCHASE OF GOODS/SERVICES - SUBSISTENCE,Legal Branch A & Investigations,REDFERN TRAVEL LTD,1011700358,485.4,INV 1923 TRAVEL & SUBSISTENCE WEEK 26,BD1 1PL,ADMIN
FOOD STANDARDS AGENCY - Westminster,FOOD STANDARDS AGENCY - Westminster,2016-07-15,EXP - PURCHASE OF GOODS/SERVICES - SUBSISTENCE,Operational Delivery,REDFERN TRAVEL LTD,1011700375,478.2,INV 2054 TRAVEL & SUBSISTENCE WEEK 28,BD1 5HQ,PROGRAMME
FOOD STANDARDS AGENCY - Westminster,FOOD STANDARDS AGENCY - Westminster,2016-07-15,EXP - PURCHASE OF GOODS/SERVICES - RAIL TRAVEL,Area 4 North East England - Cluster 46,REDFERN TRAVEL LTD,1011700375,477.15,INV 2054 TRAVEL & SUBSISTENCE WEEK 28,BD1 5HQ,PROGRAMME
FOOD STANDARDS AGENCY - Westminster,FOOD STANDARDS AGENCY - Westminster,2016-07-13,EXP - PURCHASE OF GOODS/SERVICES - SUBSISTENCE,Operations Local Delivery ,REDFERN TRAVEL LTD,1011700358,473.02,INV 1923 TRAVEL & SUBSISTENCE WEEK 26,BD1 1PL,ADMIN
FOOD STANDARDS AGENCY - Westminster,FOOD STANDARDS AGENCY - Westminster,2016-07-01,EXP - PURCHASE OF GOODS/SERVICES - SUBSISTENCE,Operations Local Delivery ,REDFERN TRAVEL LTD,1011700226,468.2,INV 1908 TRAVEL & SUBSISTENCE WEEK 25,BD1 1PL,ADMIN
FOOD STANDARDS AGENCY - Westminster,FOOD STANDARDS AGENCY - Westminster,2016-07-15,EXP - PURCHASE OF GOODS/SERVICES - SUBSISTENCE,Chief Executive & Private Office,REDFERN TRAVEL LTD,1011700375,468.2,INV 2054 TRAVEL & SUBSISTENCE WEEK 28,BD1 5HQ,ADMIN
FOOD STANDARDS AGENCY - Westminster,FOOD STANDARDS AGENCY - Westminster,2016-07-13,EXP - PURCHASE OF GOODS/SERVICES - SUBSISTENCE,Food Incidents & Resilience - Prog,REDFERN TRAVEL LTD,1011700358,468.12,INV 1830 TRAVEL & SUBSISTENCE WEEK 23,BD1 1PL,PROGRAMME
FOOD STANDARDS AGENCY - Westminster,FOOD STANDARDS AGENCY - Westminster,2016-07-13,EXP - PURCHASE OF GOODS/SERVICES - SUBSISTENCE,Area 5 South West England - Cluster 57,REDFERN TRAVEL LTD,1011700358,438.87,INV 1923 TRAVEL & SUBSISTENCE WEEK 26,BD1 1PL,PROGRAMME
FOOD STANDARDS AGENCY - Westminster,FOOD STANDARDS AGENCY - Westminster,2016-07-13,EXP - PURCHASE OF GOODS/SERVICES - SUBSISTENCE,Area 3 North West England - Cluster 32,REDFERN TRAVEL LTD,1011700358,436.32,INV 1923 TRAVEL & SUBSISTENCE WEEK 26,BD1 1PL,PROGRAMME
FOOD STANDARDS AGENCY - Westminster,FOOD STANDARDS AGENCY - Westminster,2016-07-01,EXP - PURCHASE OF GOODS/SERVICES - RAIL TRAVEL,Operational Delivery,REDFERN TRAVEL LTD,1011700226,424.66,INV 1908 TRAVEL & SUBSISTENCE WEEK 25,BD1 1PL,PROGRAMME
FOOD STANDARDS AGENCY - Westminster,FOOD STANDARDS AGENCY - Westminster,2016-07-15,EXP - PURCHASE OF GOODS/SERVICES - RAIL TRAVEL,Organisational Development,REDFERN TRAVEL LTD,1011700375,420.4,INV 1720 TRAVEL & SUBSISTENCE WEEK 21,BD1 5HQ,ADMIN
FOOD STANDARDS AGENCY - Westminster,FOOD STANDARDS AGENCY - Westminster,2016-07-13,EXP - PURCHASE OF GOODS/SERVICES - RAIL TRAVEL,IT Service Delivery,REDFERN TRAVEL LTD,1011700358,416.8,INV 1830 TRAVEL & SUBSISTENCE WEEK 23,BD1 1PL,ADMIN
FOOD STANDARDS AGENCY - Westminster,FOOD STANDARDS AGENCY - Westminster,2016-07-01,EXP - PURCHASE OF GOODS/SERVICES - FOREIGN SUBSISTENCE,Animal Feed Branch,REDFERN TRAVEL LTD,1011700226,414.7,INV 1908 TRAVEL & SUBSISTENCE WEEK 25,BD1 1PL,ADMIN
FOOD STANDARDS AGENCY - Westminster,FOOD STANDARDS AGENCY - Westminster,2016-07-15,EXP - PURCHASE OF GOODS/SERVICES - RAIL TRAVEL,Finance Director & Branch,REDFERN TRAVEL LTD,1011700375,410.2,INV 1720 TRAVEL & SUBSISTENCE WEEK 21,BD1 5HQ,ADMIN
FOOD STANDARDS AGENCY - Westminster,FOOD STANDARDS AGENCY - Westminster,2016-07-13,EXP - PURCHASE OF GOODS/SERVICES - RAIL TRAVEL,Finance Director & Branch,REDFERN TRAVEL LTD,1011700358,407.1,INV 1923 TRAVEL & SUBSISTENCE WEEK 26,BD1 1PL,ADMIN
FOOD STANDARDS AGENCY - Westminster,FOOD STANDARDS AGENCY - Westminster,2016-07-25,EXP - PURCHASE OF GOODS/SERVICES - OTHER ICT COSTS - COMPUTER HARDWARE,IT Service Delivery,CAPITA SECURE INFORMATION SOLUTIONS LTD,1011700448,402.5,REPLACEMENT OF PLANT ROUTER,SN14 0TW,ADMIN
FOOD STANDARDS AGENCY - Westminster,FOOD STANDARDS AGENCY - Westminster,2016-07-13,EXP - PURCHASE OF GOODS/SERVICES - RAIL TRAVEL,IT Information & Knowledge Management,REDFERN TRAVEL LTD,1011700358,395,INV 1923 TRAVEL & SUBSISTENCE WEEK 26,BD1 1PL,ADMIN
FOOD STANDARDS AGENCY - Westminster,FOOD STANDARDS AGENCY - Westminster,2016-07-01,EXP - PURCHASE OF GOODS/SERVICES - FOREIGN SUBSISTENCE,Chief Scientist,REDFERN TRAVEL LTD,1011700226,393.17,INV 1908 TRAVEL & SUBSISTENCE WEEK 25,BD1 1PL,ADMIN
FOOD STANDARDS AGENCY - Westminster,FOOD STANDARDS AGENCY - Westminster,2016-07-13,EXP - PURCHASE OF GOODS/SERVICES - RAIL TRAVEL,Area 2 Wales - Cluster 21,REDFERN TRAVEL LTD,1011700358,390.3,INV 1923 TRAVEL & SUBSISTENCE WEEK 26,BD1 1PL,PROGRAMME
FOOD STANDARDS AGENCY - Westminster,FOOD STANDARDS AGENCY - Westminster,2016-07-15,EXP - PURCHASE OF GOODS/SERVICES - SUBSISTENCE,Non Meat Field Ops,REDFERN TRAVEL LTD,1011700375,380.6,INV 1720 TRAVEL & SUBSISTENCE WEEK 21,BD1 5HQ,PROGRAMME
FOOD STANDARDS AGENCY - Westminster,FOOD STANDARDS AGENCY - Westminster,2016-07-25,EXP - PURCHASE OF GOODS/SERVICES - OTHER ICT COSTS,IT Service Delivery,CAPITA SECURE INFORMATION SOLUTIONS LTD,1011700448,378.3,PLAN PRINTER BUFFER STOCK,SN14 0TW,ADMIN
FOOD STANDARDS AGENCY - Westminster,FOOD STANDARDS AGENCY - Westminster,2016-07-13,EXP - PURCHASE OF GOODS/SERVICES - AIR TRAVEL,EU Regulatory Reform Branch,REDFERN TRAVEL LTD,1011700358,378,INV 1923 TRAVEL & SUBSISTENCE WEEK 26,BD1 1PL,ADMIN
FOOD STANDARDS AGENCY - Westminster,FOOD STANDARDS AGENCY - Westminster,2016-07-25,EXP - PURCHASE OF GOODS/SERVICES - OTHER ICT COSTS,IT Service Delivery,CAPITA SECURE INFORMATION SOLUTIONS LTD,1011700448,377.5,PLANT PRINTERS,SN14 0TW,ADMIN
FOOD STANDARDS AGENCY - Westminster,FOOD STANDARDS AGENCY - Westminster,2016-07-15,EXP - PURCHASE OF GOODS/SERVICES - RAIL TRAVEL,IT Information & Knowledge Management,REDFERN TRAVEL LTD,1011700375,376.5,INV 2054 TRAVEL & SUBSISTENCE WEEK 28,BD1 5HQ,ADMIN
FOOD STANDARDS AGENCY - Westminster,FOOD STANDARDS AGENCY - Westminster,2016-07-13,EXP - PURCHASE OF GOODS/SERVICES - RAIL TRAVEL,Organisational Development,REDFERN TRAVEL LTD,1011700358,375.5,INV 1830 TRAVEL & SUBSISTENCE WEEK 23,BD1 1PL,ADMIN
FOOD STANDARDS AGENCY - Westminster,FOOD STANDARDS AGENCY - Westminster,2016-07-13,EXP - PURCHASE OF GOODS/SERVICES - RAIL TRAVEL,Procurement,REDFERN TRAVEL LTD,1011700358,369.1,INV 1923 TRAVEL & SUBSISTENCE WEEK 26,BD1 1PL,ADMIN
FOOD STANDARDS AGENCY - Westminster,FOOD STANDARDS AGENCY - Westminster,2016-07-13,EXP - PURCHASE OF GOODS/SERVICES - AIR TRAVEL,Operations Assurance ,REDFERN TRAVEL LTD,1011700358,345.96,INV 1923 TRAVEL & SUBSISTENCE WEEK 26,BD1 1PL,PROGRAMME
FOOD STANDARDS AGENCY - Westminster,FOOD STANDARDS AGENCY - Westminster,2016-07-13,EXP - PURCHASE OF GOODS/SERVICES - RAIL TRAVEL,Area 5 South West England - Cluster 57,REDFERN TRAVEL LTD,1011700358,328,INV 1923 TRAVEL & SUBSISTENCE WEEK 26,BD1 1PL,PROGRAMME
FOOD STANDARDS AGENCY - Westminster,FOOD STANDARDS AGENCY - Westminster,2016-07-13,EXP - PURCHASE OF GOODS/SERVICES - RAIL TRAVEL,Internal Audit,REDFERN TRAVEL LTD,1011700358,326.05,INV 1830 TRAVEL & SUBSISTENCE WEEK 23,BD1 1PL,ADMIN
FOOD STANDARDS AGENCY - Westminster,FOOD STANDARDS AGENCY - Westminster,2016-07-13,EXP - PURCHASE OF GOODS/SERVICES - RAIL TRAVEL,Directorate Support Unit,REDFERN TRAVEL LTD,1011700358,325.5,INV 1830 TRAVEL & SUBSISTENCE WEEK 23,BD1 1PL,ADMIN
FOOD STANDARDS AGENCY - Westminster,FOOD STANDARDS AGENCY - Westminster,2016-07-01,EXP - PURCHASE OF GOODS/SERVICES - RAIL TRAVEL,Chief Executive & Private Office,REDFERN TRAVEL LTD,1011700226,324.9,INV 1908 TRAVEL & SUBSISTENCE WEEK 25,BD1 1PL,ADMIN
FOOD STANDARDS AGENCY - Westminster,FOOD STANDARDS AGENCY - Westminster,2016-07-15,EXP - PURCHASE OF GOODS/SERVICES - SUBSISTENCE,Chair & Deputy Chair,REDFERN TRAVEL LTD,1011700375,319.2,INV 1720 TRAVEL & SUBSISTENCE WEEK 21,BD1 5HQ,ADMIN
FOOD STANDARDS AGENCY - Westminster,FOOD STANDARDS AGENCY - Westminster,2016-07-13,EXP - PURCHASE OF GOODS/SERVICES - RAIL TRAVEL,Non Meat Field Ops,REDFERN TRAVEL LTD,1011700358,306.9,INV 1923 TRAVEL & SUBSISTENCE WEEK 26,BD1 1PL,PROGRAMME
FOOD STANDARDS AGENCY - Westminster,FOOD STANDARDS AGENCY - Westminster,2016-07-25,EXP - PURCHASE OF GOODS/SERVICES - OTHER ICT COSTS - COMPUTER SOFTWARE,IT Service Delivery,CAPITA SECURE INFORMATION SOLUTIONS LTD,1011700448,306.2,ADOBE PRO LICENCE,SN14 0TW,ADMIN
FOOD STANDARDS AGENCY - Westminster,FOOD STANDARDS AGENCY - Westminster,2016-07-13,EXP - PURCHASE OF GOODS/SERVICES - SUBSISTENCE,Chair & Deputy Chair,REDFERN TRAVEL LTD,1011700358,304.69,INV 1830 TRAVEL & SUBSISTENCE WEEK 23,BD1 1PL,ADMIN
FOOD STANDARDS AGENCY - Westminster,FOOD STANDARDS AGENCY - Westminster,2016-07-15,EXP - PURCHASE OF GOODS/SERVICES - SUBSISTENCE,Operations Assurance ,REDFERN TRAVEL LTD,1011700375,304.02,INV 2054 TRAVEL & SUBSISTENCE WEEK 28,BD1 5HQ,PROGRAMME
FOOD STANDARDS AGENCY - Westminster,FOOD STANDARDS AGENCY - Westminster,2016-07-15,EXP - PURCHASE OF GOODS/SERVICES - RAIL TRAVEL,Food Incidents & Resilience - Prog,REDFERN TRAVEL LTD,1011700375,303.7,INV 1720 TRAVEL & SUBSISTENCE WEEK 21,BD1 5HQ,PROGRAMME
FOOD STANDARDS AGENCY - Westminster,FOOD STANDARDS AGENCY - Westminster,2016-07-25,EXP - PURCHASE OF GOODS/SERVICES - OTHER ICT COSTS,IT Service Delivery,CAPITA SECURE INFORMATION SOLUTIONS LTD,1011700448,301.5,LENOVO X230 LAPTOP POWER SUPPLY,SN14 0TW,ADMIN
FOOD STANDARDS AGENCY - Westminster,FOOD STANDARDS AGENCY - Westminster,2016-07-13,EXP - PURCHASE OF GOODS/SERVICES - SUBSISTENCE,Non Meat Field Ops,REDFERN TRAVEL LTD,1011700358,295.77,INV 1923 TRAVEL & SUBSISTENCE WEEK 26,BD1 1PL,PROGRAMME
FOOD STANDARDS AGENCY - Westminster,FOOD STANDARDS AGENCY - Westminster,2016-07-01,EXP - PURCHASE OF GOODS/SERVICES - FOREIGN SUBSISTENCE,Food Hygiene Policy Branch,REDFERN TRAVEL LTD,1011700226,294.68,INV 1908 TRAVEL & SUBSISTENCE WEEK 25,BD1 1PL,ADMIN
FOOD STANDARDS AGENCY - Westminster,FOOD STANDARDS AGENCY - Westminster,2016-07-01,EXP - PURCHASE OF GOODS/SERVICES - RAIL TRAVEL,Area 2 Wales - Cluster 21,REDFERN TRAVEL LTD,1011700226,281,INV 1908 TRAVEL & SUBSISTENCE WEEK 25,BD1 1PL,PROGRAMME
FOOD STANDARDS AGENCY - Westminster,FOOD STANDARDS AGENCY - Westminster,2016-07-15,EXP - PURCHASE OF GOODS/SERVICES - RAIL TRAVEL,Procurement,REDFERN TRAVEL LTD,1011700375,280.6,INV 2054 TRAVEL & SUBSISTENCE WEEK 28,BD1 5HQ,ADMIN
FOOD STANDARDS AGENCY - Westminster,FOOD STANDARDS AGENCY - Westminster,2016-07-15,EXP - PURCHASE OF GOODS/SERVICES - RAIL TRAVEL,Internal Audit,REDFERN TRAVEL LTD,1011700375,280.5,INV 1720 TRAVEL & SUBSISTENCE WEEK 21,BD1 5HQ,ADMIN
FOOD STANDARDS AGENCY - Westminster,FOOD STANDARDS AGENCY - Westminster,2016-07-05,EXP - PURCHASE OF GOODS/SERVICES - OTHER ICT COSTS - COMPUTER SOFTWARE,IT Service Delivery,TRUSTMARQUE SOLUTIONS LTD,1011700284,277.38,ORDER NO SO647856,YO32 9GZ,ADMIN
FOOD STANDARDS AGENCY - Westminster,FOOD STANDARDS AGENCY - Westminster,2016-07-15,EXP - PURCHASE OF GOODS/SERVICES -  FOREIGN AIR TRAVEL,Contaminants HoD,REDFERN TRAVEL LTD,1011700375,274,INV 2054 TRAVEL & SUBSISTENCE WEEK 28,BD1 5HQ,ADMIN
FOOD STANDARDS AGENCY - Westminster,FOOD STANDARDS AGENCY - Westminster,2016-07-15,EXP - PURCHASE OF GOODS/SERVICES - RAIL TRAVEL,IT Service Delivery,REDFERN TRAVEL LTD,1011700375,269.2,INV 1720 TRAVEL & SUBSISTENCE WEEK 21,BD1 5HQ,ADMIN
FOOD STANDARDS AGENCY - Westminster,FOOD STANDARDS AGENCY - Westminster,2016-07-15,EXP - PURCHASE OF GOODS/SERVICES - RAIL TRAVEL,Food Incidents & Resilience - Prog,REDFERN TRAVEL LTD,1011700375,268.3,INV 2054 TRAVEL & SUBSISTENCE WEEK 28,BD1 5HQ,PROGRAMME
FOOD STANDARDS AGENCY - Westminster,FOOD STANDARDS AGENCY - Westminster,2016-07-15,EXP - PURCHASE OF GOODS/SERVICES - RAIL TRAVEL,IT Information & Knowledge Management,REDFERN TRAVEL LTD,1011700375,265,INV 1720 TRAVEL & SUBSISTENCE WEEK 21,BD1 5HQ,ADMIN
FOOD STANDARDS AGENCY - Westminster,FOOD STANDARDS AGENCY - Westminster,2016-07-13,EXP - PURCHASE OF GOODS/SERVICES - RAIL TRAVEL,Regulatory & International,REDFERN TRAVEL LTD,1011700358,256,INV 1830 TRAVEL & SUBSISTENCE WEEK 23,BD1 1PL,ADMIN
FOOD STANDARDS AGENCY - Westminster,FOOD STANDARDS AGENCY - Westminster,2016-07-15,EXP - PURCHASE OF GOODS/SERVICES - RAIL TRAVEL,Non Meat Field Ops,REDFERN TRAVEL LTD,1011700375,255.2,INV 2054 TRAVEL & SUBSISTENCE WEEK 28,BD1 5HQ,PROGRAMME
FOOD STANDARDS AGENCY - Westminster,FOOD STANDARDS AGENCY - Westminster,2016-07-01,EXP - PURCHASE OF GOODS/SERVICES - RAIL TRAVEL,Food Crime Unit - Admin,REDFERN TRAVEL LTD,1011700226,255,INV 1908 TRAVEL & SUBSISTENCE WEEK 25,BD1 1PL,ADMIN
FOOD STANDARDS AGENCY - Westminster,FOOD STANDARDS AGENCY - Westminster,2016-07-15,EXP - PURCHASE OF GOODS/SERVICES - SUBSISTENCE,Organisational Development,REDFERN TRAVEL LTD,1011700375,254.1,INV 1720 TRAVEL & SUBSISTENCE WEEK 21,BD1 5HQ,ADMIN
FOOD STANDARDS AGENCY - Westminster,FOOD STANDARDS AGENCY - Westminster,2016-07-15,EXP - PURCHASE OF GOODS/SERVICES - RAIL TRAVEL,Area 4 North East England - Cluster 47,REDFERN TRAVEL LTD,1011700375,250.25,INV 2054 TRAVEL & SUBSISTENCE WEEK 28,BD1 5HQ,PROGRAMME
FOOD STANDARDS AGENCY - Westminster,FOOD STANDARDS AGENCY - Westminster,2016-07-15,EXP - PURCHASE OF GOODS/SERVICES - RAIL TRAVEL,Analysis & Research Branch,REDFERN TRAVEL LTD,1011700375,249.2,INV 1720 TRAVEL & SUBSISTENCE WEEK 21,BD1 5HQ,ADMIN
FOOD STANDARDS AGENCY - Westminster,FOOD STANDARDS AGENCY - Westminster,2016-07-13,EXP - PURCHASE OF GOODS/SERVICES - RAIL TRAVEL,Area 5 South West England - Cluster 54,REDFERN TRAVEL LTD,1011700358,247.85,INV 1923 TRAVEL & SUBSISTENCE WEEK 26,BD1 1PL,PROGRAMME
FOOD STANDARDS AGENCY - Westminster,FOOD STANDARDS AGENCY - Westminster,2016-07-01,EXP - PURCHASE OF GOODS/SERVICES - RAIL TRAVEL,Directorate Support Unit,REDFERN TRAVEL LTD,1011700226,247.7,INV 1908 TRAVEL & SUBSISTENCE WEEK 25,BD1 1PL,ADMIN
FOOD STANDARDS AGENCY - Westminster,FOOD STANDARDS AGENCY - Westminster,2016-07-01,EXP - PURCHASE OF GOODS/SERVICES - SUBSISTENCE,Operations Assurance ,REDFERN TRAVEL LTD,1011700226,247.03,INV 1908 TRAVEL & SUBSISTENCE WEEK 25,BD1 1PL,PROGRAMME
FOOD STANDARDS AGENCY - Westminster,FOOD STANDARDS AGENCY - Westminster,2016-07-15,EXP - PURCHASE OF GOODS/SERVICES - SUBSISTENCE,Food Production Branch,REDFERN TRAVEL LTD,1011700375,246.73,INV 2054 TRAVEL & SUBSISTENCE WEEK 28,BD1 5HQ,ADMIN
FOOD STANDARDS AGENCY - Westminster,FOOD STANDARDS AGENCY - Westminster,2016-07-13,EXP - PURCHASE OF GOODS/SERVICES - SUBSISTENCE,Comms Directors Office,REDFERN TRAVEL LTD,1011700358,246.58,INV 1923 TRAVEL & SUBSISTENCE WEEK 26,BD1 1PL,ADMIN
FOOD STANDARDS AGENCY - Westminster,FOOD STANDARDS AGENCY - Westminster,2016-07-13,EXP - PURCHASE OF GOODS/SERVICES - SUBSISTENCE,Internal Audit,REDFERN TRAVEL LTD,1011700358,243.15,INV 1923 TRAVEL & SUBSISTENCE WEEK 26,BD1 1PL,ADMIN
FOOD STANDARDS AGENCY - Westminster,FOOD STANDARDS AGENCY - Westminster,2016-07-13,EXP - PURCHASE OF GOODS/SERVICES - AIR TRAVEL,Food Incidents & Resilience - Prog,REDFERN TRAVEL LTD,1011700358,243.14,INV 1830 TRAVEL & SUBSISTENCE WEEK 23,BD1 1PL,PROGRAMME
FOOD STANDARDS AGENCY - Westminster,FOOD STANDARDS AGENCY - Westminster,2016-07-01,EXP - PURCHASE OF GOODS/SERVICES - SUBSISTENCE,Planning and Performance,REDFERN TRAVEL LTD,1011700226,241.88,INV 1908 TRAVEL & SUBSISTENCE WEEK 25,BD1 1PL,ADMIN
FOOD STANDARDS AGENCY - Westminster,FOOD STANDARDS AGENCY - Westminster,2016-07-01,EXP - PURCHASE OF GOODS/SERVICES - FOREIGN SUBSISTENCE,Regulatory & International,REDFERN TRAVEL LTD,1011700226,237.28,INV 1908 TRAVEL & SUBSISTENCE WEEK 25,BD1 1PL,ADMIN
FOOD STANDARDS AGENCY - Westminster,FOOD STANDARDS AGENCY - Westminster,2016-07-13,EXP - PURCHASE OF GOODS/SERVICES - SUBSISTENCE,Operations Local Delivery ,REDFERN TRAVEL LTD,1011700358,236.05,INV 1923 TRAVEL & SUBSISTENCE WEEK 26,BD1 1PL,ADMIN
FOOD STANDARDS AGENCY - Westminster,FOOD STANDARDS AGENCY - Westminster,2016-07-15,EXP - PURCHASE OF GOODS/SERVICES - AIR TRAVEL,Regulatory & International,REDFERN TRAVEL LTD,1011700375,235.16,INV 2054 TRAVEL & SUBSISTENCE WEEK 28,BD1 5HQ,ADMIN
FOOD STANDARDS AGENCY - Westminster,FOOD STANDARDS AGENCY - Westminster,2016-07-13,EXP - PURCHASE OF GOODS/SERVICES - SUBSISTENCE,Operations Assurance ,REDFERN TRAVEL LTD,1011700358,232.59,INV 1923 TRAVEL & SUBSISTENCE WEEK 26,BD1 1PL,PROGRAMME
FOOD STANDARDS AGENCY - Westminster,FOOD STANDARDS AGENCY - Westminster,2016-07-13,EXP - PURCHASE OF GOODS/SERVICES - FOREIGN SUBSISTENCE,Contaminants Policy & Strategy Unit,REDFERN TRAVEL LTD,1011700358,228.87,INV 1830 TRAVEL & SUBSISTENCE WEEK 23,BD1 1PL,ADMIN
FOOD STANDARDS AGENCY - Westminster,FOOD STANDARDS AGENCY - Westminster,2016-07-13,EXP - PURCHASE OF GOODS/SERVICES - RAIL TRAVEL,Organisational Development,REDFERN TRAVEL LTD,1011700358,224,INV 1923 TRAVEL & SUBSISTENCE WEEK 26,BD1 1PL,ADMIN
FOOD STANDARDS AGENCY - Westminster,FOOD STANDARDS AGENCY - Westminster,2016-07-15,EXP - PURCHASE OF GOODS/SERVICES - RAIL TRAVEL,Comms Directors Office,REDFERN TRAVEL LTD,1011700375,223.3,INV 2054 TRAVEL & SUBSISTENCE WEEK 28,BD1 5HQ,ADMIN
FOOD STANDARDS AGENCY - Westminster,FOOD STANDARDS AGENCY - Westminster,2016-07-15,EXP - PURCHASE OF GOODS/SERVICES - OTHER TRAVEL,Food Incidents & Resilience - Prog,REDFERN TRAVEL LTD,1011700375,223,INV 1720 TRAVEL & SUBSISTENCE WEEK 21,BD1 5HQ,PROGRAMME
FOOD STANDARDS AGENCY - Westminster,FOOD STANDARDS AGENCY - Westminster,2016-07-01,EXP - PURCHASE OF GOODS/SERVICES - SUBSISTENCE,Internal Audit,REDFERN TRAVEL LTD,1011700226,221.8,INV 1908 TRAVEL & SUBSISTENCE WEEK 25,BD1 1PL,ADMIN
FOOD STANDARDS AGENCY - Westminster,FOOD STANDARDS AGENCY - Westminster,2016-07-13,EXP - PURCHASE OF GOODS/SERVICES - RAIL TRAVEL,Area 3 North West England - Cluster 32,REDFERN TRAVEL LTD,1011700358,220.3,INV 1923 TRAVEL & SUBSISTENCE WEEK 26,BD1 1PL,PROGRAMME
FOOD STANDARDS AGENCY - Westminster,FOOD STANDARDS AGENCY - Westminster,2016-07-13,EXP - PURCHASE OF GOODS/SERVICES - SUBSISTENCE,Area 2 Wales - Cluster 23,REDFERN TRAVEL LTD,1011700358,218.4,INV 1923 TRAVEL & SUBSISTENCE WEEK 26,BD1 1PL,PROGRAMME
FOOD STANDARDS AGENCY - Westminster,FOOD STANDARDS AGENCY - Westminster,2016-07-15,EXP - PURCHASE OF GOODS/SERVICES - SUBSISTENCE,Area 2 Wales - Cluster 22,REDFERN TRAVEL LTD,1011700375,217.2,INV 2054 TRAVEL & SUBSISTENCE WEEK 28,BD1 5HQ,PROGRAMME
FOOD STANDARDS AGENCY - Westminster,FOOD STANDARDS AGENCY - Westminster,2016-07-15,EXP - PURCHASE OF GOODS/SERVICES - SUBSISTENCE,Area 6 South East England - Cluster 65,REDFERN TRAVEL LTD,1011700375,216.6,INV 2054 TRAVEL & SUBSISTENCE WEEK 28,BD1 5HQ,PROGRAMME
FOOD STANDARDS AGENCY - Westminster,FOOD STANDARDS AGENCY - Westminster,2016-07-15,EXP - PURCHASE OF GOODS/SERVICES - RAIL TRAVEL,Area 4 North East England - Cluster 43,REDFERN TRAVEL LTD,1011700375,216,INV 1720 TRAVEL & SUBSISTENCE WEEK 21,BD1 5HQ,PROGRAMME
FOOD STANDARDS AGENCY - Westminster,FOOD STANDARDS AGENCY - Westminster,2016-07-15,EXP - PURCHASE OF GOODS/SERVICES - OTHER TRAVEL,Chair & Deputy Chair,REDFERN TRAVEL LTD,1011700375,214.32,INV 1720 TRAVEL & SUBSISTENCE WEEK 21,BD1 5HQ,ADMIN
FOOD STANDARDS AGENCY - Westminster,FOOD STANDARDS AGENCY - Westminster,2016-07-01,EXP - PURCHASE OF GOODS/SERVICES - RAIL TRAVEL,Chair & Deputy Chair,REDFERN TRAVEL LTD,1011700226,214.1,INV 1908 TRAVEL & SUBSISTENCE WEEK 25,BD1 1PL,ADMIN
FOOD STANDARDS AGENCY - Westminster,FOOD STANDARDS AGENCY - Westminster,2016-07-13,EXP - PURCHASE OF GOODS/SERVICES - RAIL TRAVEL,Procurement,REDFERN TRAVEL LTD,1011700358,213,INV 1830 TRAVEL & SUBSISTENCE WEEK 23,BD1 1PL,ADMIN
FOOD STANDARDS AGENCY - Westminster,FOOD STANDARDS AGENCY - Westminster,2016-07-01,EXP - PURCHASE OF GOODS/SERVICES - RAIL TRAVEL,Regulatory & International,REDFERN TRAVEL LTD,1011700226,212.8,INV 1908 TRAVEL & SUBSISTENCE WEEK 25,BD1 1PL,ADMIN
FOOD STANDARDS AGENCY - Westminster,FOOD STANDARDS AGENCY - Westminster,2016-07-01,EXP - PURCHASE OF GOODS/SERVICES - FOREIGN SUBSISTENCE,Operations Assurance ,REDFERN TRAVEL LTD,1011700226,211,INV 1908 TRAVEL & SUBSISTENCE WEEK 25,BD1 1PL,PROGRAMME
FOOD STANDARDS AGENCY - Westminster,FOOD STANDARDS AGENCY - Westminster,2016-07-01,EXP - PURCHASE OF GOODS/SERVICES - FOREIGN SUBSISTENCE,Chemical Risk Assessment Unit,REDFERN TRAVEL LTD,1011700226,209.41,INV 1908 TRAVEL & SUBSISTENCE WEEK 25,BD1 1PL,ADMIN
FOOD STANDARDS AGENCY - Westminster,FOOD STANDARDS AGENCY - Westminster,2016-07-15,EXP - PURCHASE OF GOODS/SERVICES - SUBSISTENCE,Area 5 South West England - Cluster 53,REDFERN TRAVEL LTD,1011700375,204.78,INV 1720 TRAVEL & SUBSISTENCE WEEK 21,BD1 5HQ,PROGRAMME
FOOD STANDARDS AGENCY - Westminster,FOOD STANDARDS AGENCY - Westminster,2016-07-01,EXP - PURCHASE OF GOODS/SERVICES - SUBSISTENCE,Operations Local Delivery ,REDFERN TRAVEL LTD,1011700226,204.36,INV 1908 TRAVEL & SUBSISTENCE WEEK 25,BD1 1PL,ADMIN
FOOD STANDARDS AGENCY - Westminster,FOOD STANDARDS AGENCY - Westminster,2016-07-13,EXP - PURCHASE OF GOODS/SERVICES - SUBSISTENCE,Directorate Support Unit,REDFERN TRAVEL LTD,1011700358,201.96,INV 1830 TRAVEL & SUBSISTENCE WEEK 23,BD1 1PL,ADMIN
FOOD STANDARDS AGENCY - Westminster,FOOD STANDARDS AGENCY - Westminster,2016-07-15,EXP - PURCHASE OF GOODS/SERVICES - SUBSISTENCE,IT Service Delivery,REDFERN TRAVEL LTD,1011700375,199.43,INV 1720 TRAVEL & SUBSISTENCE WEEK 21,BD1 5HQ,ADMIN
FOOD STANDARDS AGENCY - Westminster,FOOD STANDARDS AGENCY - Westminster,2016-07-13,EXP - PURCHASE OF GOODS/SERVICES - RAIL TRAVEL,Chief Scientist,REDFERN TRAVEL LTD,1011700358,198,INV 1830 TRAVEL & SUBSISTENCE WEEK 23,BD1 1PL,ADMIN
FOOD STANDARDS AGENCY - Westminster,FOOD STANDARDS AGENCY - Westminster,2016-07-13,EXP - PURCHASE OF GOODS/SERVICES - FOREIGN SUBSISTENCE,Non Meat Field Ops,REDFERN TRAVEL LTD,1011700358,196.62,INV 1830 TRAVEL & SUBSISTENCE WEEK 23,BD1 1PL,PROGRAMME
FOOD STANDARDS AGENCY - Westminster,FOOD STANDARDS AGENCY - Westminster,2016-07-15,EXP - PURCHASE OF GOODS/SERVICES - SUBSISTENCE,Operations Local Delivery ,REDFERN TRAVEL LTD,1011700375,193.2,INV 1720 TRAVEL & SUBSISTENCE WEEK 21,BD1 5HQ,ADMIN
FOOD STANDARDS AGENCY - Westminster,FOOD STANDARDS AGENCY - Westminster,2016-07-01,EXP - PURCHASE OF GOODS/SERVICES - RAIL TRAVEL,Contaminants HoD,REDFERN TRAVEL LTD,1011700226,192.8,INV 1908 TRAVEL & SUBSISTENCE WEEK 25,BD1 1PL,ADMIN
FOOD STANDARDS AGENCY - Westminster,FOOD STANDARDS AGENCY - Westminster,2016-07-01,EXP - PURCHASE OF GOODS/SERVICES - RAIL TRAVEL,Finance Director & Branch,REDFERN TRAVEL LTD,1011700226,190.5,INV 1908 TRAVEL & SUBSISTENCE WEEK 25,BD1 1PL,ADMIN
FOOD STANDARDS AGENCY - Westminster,FOOD STANDARDS AGENCY - Westminster,2016-07-13,EXP - PURCHASE OF GOODS/SERVICES - RAIL TRAVEL,Regulatory & International,REDFERN TRAVEL LTD,1011700358,190.2,INV 1923 TRAVEL & SUBSISTENCE WEEK 26,BD1 1PL,ADMIN
FOOD STANDARDS AGENCY - Westminster,FOOD STANDARDS AGENCY - Westminster,2016-07-15,EXP - PURCHASE OF GOODS/SERVICES - RAIL TRAVEL,Area 3 North West England - Cluster 36,REDFERN TRAVEL LTD,1011700375,190.2,INV 2054 TRAVEL & SUBSISTENCE WEEK 28,BD1 5HQ,PROGRAMME
FOOD STANDARDS AGENCY - Westminster,FOOD STANDARDS AGENCY - Westminster,2016-07-15,EXP - PURCHASE OF GOODS/SERVICES - AIR TRAVEL,Contaminants Policy & Strategy Unit,REDFERN TRAVEL LTD,1011700375,189,INV 1720 TRAVEL & SUBSISTENCE WEEK 21,BD1 5HQ,ADMIN
FOOD STANDARDS AGENCY - Westminster,FOOD STANDARDS AGENCY - Westminster,2016-07-05,EXP - PURCHASE OF GOODS/SERVICES - OTHER ICT COSTS - COMPUTER SOFTWARE,IT Service Delivery,TRUSTMARQUE SOLUTIONS LTD,1011700284,188.38,ORDER NO SO647856,YO32 9GZ,ADMIN
FOOD STANDARDS AGENCY - Westminster,FOOD STANDARDS AGENCY - Westminster,2016-07-15,EXP - PURCHASE OF GOODS/SERVICES - RAIL TRAVEL,Procurement,REDFERN TRAVEL LTD,1011700375,187,INV 1720 TRAVEL & SUBSISTENCE WEEK 21,BD1 5HQ,ADMIN
FOOD STANDARDS AGENCY - Westminster,FOOD STANDARDS AGENCY - Westminster,2016-07-15,EXP - PURCHASE OF GOODS/SERVICES - RAIL TRAVEL,Food Incidents & Resilience - Prog,REDFERN TRAVEL LTD,1011700375,186.4,INV 1720 TRAVEL & SUBSISTENCE WEEK 21,BD1 5HQ,PROGRAMME
FOOD STANDARDS AGENCY - Westminster,FOOD STANDARDS AGENCY - Westminster,2016-07-15,EXP - PURCHASE OF GOODS/SERVICES - SUBSISTENCE,Area 4 North East England - Cluster 41,REDFERN TRAVEL LTD,1011700375,186.26,INV 1720 TRAVEL & SUBSISTENCE WEEK 21,BD1 5HQ,PROGRAMME
FOOD STANDARDS AGENCY - Westminster,FOOD STANDARDS AGENCY - Westminster,2016-07-01,EXP - PURCHASE OF GOODS/SERVICES - SUBSISTENCE,IT Information & Knowledge Management,REDFERN TRAVEL LTD,1011700226,185.75,INV 1908 TRAVEL & SUBSISTENCE WEEK 25,BD1 1PL,ADMIN
FOOD STANDARDS AGENCY - Westminster,FOOD STANDARDS AGENCY - Westminster,2016-07-15,EXP - PURCHASE OF GOODS/SERVICES - SUBSISTENCE,Area 4 North East England - Cluster 43,REDFERN TRAVEL LTD,1011700375,185.16,INV 1720 TRAVEL & SUBSISTENCE WEEK 21,BD1 5HQ,PROGRAMME
FOOD STANDARDS AGENCY - Westminster,FOOD STANDARDS AGENCY - Westminster,2016-07-13,EXP - PURCHASE OF GOODS/SERVICES - SUBSISTENCE,Planning and Performance,REDFERN TRAVEL LTD,1011700358,184.48,INV 1923 TRAVEL & SUBSISTENCE WEEK 26,BD1 1PL,ADMIN
FOOD STANDARDS AGENCY - Westminster,FOOD STANDARDS AGENCY - Westminster,2016-07-13,EXP - PURCHASE OF GOODS/SERVICES - SUBSISTENCE,Area 5 South West England - Cluster 51,REDFERN TRAVEL LTD,1011700358,180.6,INV 1923 TRAVEL & SUBSISTENCE WEEK 26,BD1 1PL,PROGRAMME
FOOD STANDARDS AGENCY - Westminster,FOOD STANDARDS AGENCY - Westminster,2016-07-05,EXP - PURCHASE OF GOODS/SERVICES - OTHER ICT COSTS - COMPUTER SOFTWARE,IT Service Delivery,TRUSTMARQUE SOLUTIONS LTD,1011700284,177.84,ORDER NO SO647856,YO32 9GZ,ADMIN
FOOD STANDARDS AGENCY - Westminster,FOOD STANDARDS AGENCY - Westminster,2016-07-15,EXP - PURCHASE OF GOODS/SERVICES - RAIL TRAVEL,Animal Feed     ,REDFERN TRAVEL LTD,1011700375,175.5,INV 1720 TRAVEL & SUBSISTENCE WEEK 21,BD1 5HQ,ADMIN
FOOD STANDARDS AGENCY - Westminster,FOOD STANDARDS AGENCY - Westminster,2016-07-15,EXP - PURCHASE OF GOODS/SERVICES - RAIL TRAVEL,Regulatory & International,REDFERN TRAVEL LTD,1011700375,174.5,INV 2054 TRAVEL & SUBSISTENCE WEEK 28,BD1 5HQ,ADMIN
FOOD STANDARDS AGENCY - Westminster,FOOD STANDARDS AGENCY - Westminster,2016-07-15,EXP - PURCHASE OF GOODS/SERVICES - FOREIGN SUBSISTENCE,Microbiological Food Safety Branch,REDFERN TRAVEL LTD,1011700375,172.64,INV 1720 TRAVEL & SUBSISTENCE WEEK 21,BD1 5HQ,ADMIN
FOOD STANDARDS AGENCY - Westminster,FOOD STANDARDS AGENCY - Westminster,2016-07-15,EXP - PURCHASE OF GOODS/SERVICES - SUBSISTENCE,Food Incidents & Resilience - Prog,REDFERN TRAVEL LTD,1011700375,171.2,INV 1720 TRAVEL & SUBSISTENCE WEEK 21,BD1 5HQ,PROGRAMME
FOOD STANDARDS AGENCY - Westminster,FOOD STANDARDS AGENCY - Westminster,2016-07-15,EXP - PURCHASE OF GOODS/SERVICES - RAIL TRAVEL,Area 5 South West England - Cluster 56,REDFERN TRAVEL LTD,1011700375,167.5,INV 2054 TRAVEL & SUBSISTENCE WEEK 28,BD1 5HQ,PROGRAMME
FOOD STANDARDS AGENCY - Westminster,FOOD STANDARDS AGENCY - Westminster,2016-07-01,EXP - PURCHASE OF GOODS/SERVICES - FOREIGN SUBSISTENCE,Operations Assurance ,REDFERN TRAVEL LTD,1011700226,167.38,INV 1908 TRAVEL & SUBSISTENCE WEEK 25,BD1 1PL,PROGRAMME
FOOD STANDARDS AGENCY - Westminster,FOOD STANDARDS AGENCY - Westminster,2016-07-13,EXP - PURCHASE OF GOODS/SERVICES - FOREIGN SUBSISTENCE,Additives,REDFERN TRAVEL LTD,1011700358,166.77,INV 1830 TRAVEL & SUBSISTENCE WEEK 23,BD1 1PL,ADMIN
FOOD STANDARDS AGENCY - Westminster,FOOD STANDARDS AGENCY - Westminster,2016-07-13,EXP - PURCHASE OF GOODS/SERVICES - SUBSISTENCE,IT Information & Knowledge Management,REDFERN TRAVEL LTD,1011700358,165.2,INV 1923 TRAVEL & SUBSISTENCE WEEK 26,BD1 1PL,ADMIN
FOOD STANDARDS AGENCY - Westminster,FOOD STANDARDS AGENCY - Westminster,2016-07-15,EXP - PURCHASE OF GOODS/SERVICES - FOREIGN SUBSISTENCE,IT Information & Knowledge Management,REDFERN TRAVEL LTD,1011700375,165.18,INV 1720 TRAVEL & SUBSISTENCE WEEK 21,BD1 5HQ,ADMIN
FOOD STANDARDS AGENCY - Westminster,FOOD STANDARDS AGENCY - Westminster,2016-07-15,EXP - PURCHASE OF GOODS/SERVICES - SUBSISTENCE,Area 5 South West England - Cluster 51,REDFERN TRAVEL LTD,1011700375,164.93,INV 2054 TRAVEL & SUBSISTENCE WEEK 28,BD1 5HQ,PROGRAMME
FOOD STANDARDS AGENCY - Westminster,FOOD STANDARDS AGENCY - Westminster,2016-07-15,EXP - PURCHASE OF GOODS/SERVICES - SUBSISTENCE,Animal Feed     ,REDFERN TRAVEL LTD,1011700375,160.88,INV 1720 TRAVEL & SUBSISTENCE WEEK 21,BD1 5HQ,ADMIN
FOOD STANDARDS AGENCY - Westminster,FOOD STANDARDS AGENCY - Westminster,2016-07-15,EXP - PURCHASE OF GOODS/SERVICES - SUBSISTENCE,Food Crime Unit - Admin,REDFERN TRAVEL LTD,1011700375,160.6,INV 2054 TRAVEL & SUBSISTENCE WEEK 28,BD1 5HQ,ADMIN
FOOD STANDARDS AGENCY - Westminster,FOOD STANDARDS AGENCY - Westminster,2016-07-15,EXP - PURCHASE OF GOODS/SERVICES - OTHER TRAVEL,Chief Executive & Private Office,REDFERN TRAVEL LTD,1011700375,159.37,INV 1720 TRAVEL & SUBSISTENCE WEEK 21,BD1 5HQ,ADMIN
FOOD STANDARDS AGENCY - Westminster,FOOD STANDARDS AGENCY - Westminster,2016-07-01,EXP - PURCHASE OF GOODS/SERVICES -  FOREIGN AIR TRAVEL,Additives,REDFERN TRAVEL LTD,1011700226,159,INV 1908 TRAVEL & SUBSISTENCE WEEK 25,BD1 1PL,ADMIN
FOOD STANDARDS AGENCY - Westminster,FOOD STANDARDS AGENCY - Westminster,2016-07-13,EXP - PURCHASE OF GOODS/SERVICES - AIR TRAVEL,Regulatory & International,REDFERN TRAVEL LTD,1011700358,159,INV 1830 TRAVEL & SUBSISTENCE WEEK 23,BD1 1PL,ADMIN
FOOD STANDARDS AGENCY - Westminster,FOOD STANDARDS AGENCY - Westminster,2016-07-15,EXP - PURCHASE OF GOODS/SERVICES - RAIL TRAVEL,Operations Assurance ,REDFERN TRAVEL LTD,1011700375,156.3,INV 1720 TRAVEL & SUBSISTENCE WEEK 21,BD1 5HQ,PROGRAMME
FOOD STANDARDS AGENCY - Westminster,FOOD STANDARDS AGENCY - Westminster,2016-07-15,EXP - PURCHASE OF GOODS/SERVICES - RAIL TRAVEL,Contaminants HoD,REDFERN TRAVEL LTD,1011700375,154.8,INV 1720 TRAVEL & SUBSISTENCE WEEK 21,BD1 5HQ,ADMIN
FOOD STANDARDS AGENCY - Westminster,FOOD STANDARDS AGENCY - Westminster,2016-07-13,EXP - PURCHASE OF GOODS/SERVICES - RAIL TRAVEL,Chief Executive & Private Office,REDFERN TRAVEL LTD,1011700358,154.5,INV 1923 TRAVEL & SUBSISTENCE WEEK 26,BD1 1PL,ADMIN
FOOD STANDARDS AGENCY - Westminster,FOOD STANDARDS AGENCY - Westminster,2016-07-25,EXP - PURCHASE OF GOODS/SERVICES - OTHER ICT COSTS,IT Service Delivery,CAPITA SECURE INFORMATION SOLUTIONS LTD,1011700448,154.06,ENCRYPTED MEMORY STICKS,SN14 0TW,ADMIN
FOOD STANDARDS AGENCY - Westminster,FOOD STANDARDS AGENCY - Westminster,2016-07-13,EXP - PURCHASE OF GOODS/SERVICES - SUBSISTENCE,Contaminants Policy & Strategy Unit,REDFERN TRAVEL LTD,1011700358,153.15,INV 1830 TRAVEL & SUBSISTENCE WEEK 23,BD1 1PL,ADMIN
FOOD STANDARDS AGENCY - Westminster,FOOD STANDARDS AGENCY - Westminster,2016-07-13,EXP - PURCHASE OF GOODS/SERVICES - SUBSISTENCE,Food Crime Unit - Prog,REDFERN TRAVEL LTD,1011700358,151.8,INV 1830 TRAVEL & SUBSISTENCE WEEK 23,BD1 1PL,PROGRAMME
FOOD STANDARDS AGENCY - Westminster,FOOD STANDARDS AGENCY - Westminster,2016-07-15,EXP - PURCHASE OF GOODS/SERVICES - SUBSISTENCE,Internal Audit,REDFERN TRAVEL LTD,1011700375,151.2,INV 2054 TRAVEL & SUBSISTENCE WEEK 28,BD1 5HQ,ADMIN
FOOD STANDARDS AGENCY - Westminster,FOOD STANDARDS AGENCY - Westminster,2016-07-13,EXP - PURCHASE OF GOODS/SERVICES - RAIL TRAVEL,Chief Executive & Private Office,REDFERN TRAVEL LTD,1011700358,149.1,INV 1923 TRAVEL & SUBSISTENCE WEEK 26,BD1 1PL,ADMIN
FOOD STANDARDS AGENCY - Westminster,FOOD STANDARDS AGENCY - Westminster,2016-07-13,EXP - PURCHASE OF GOODS/SERVICES - RAIL TRAVEL,Area 4 North East England - Cluster 48,REDFERN TRAVEL LTD,1011700358,147.6,INV 1923 TRAVEL & SUBSISTENCE WEEK 26,BD1 1PL,PROGRAMME
FOOD STANDARDS AGENCY - Westminster,FOOD STANDARDS AGENCY - Westminster,2016-07-13,EXP - PURCHASE OF GOODS/SERVICES - RAIL TRAVEL,Chair & Deputy Chair,REDFERN TRAVEL LTD,1011700358,146.65,INV 1923 TRAVEL & SUBSISTENCE WEEK 26,BD1 1PL,ADMIN
FOOD STANDARDS AGENCY - Westminster,FOOD STANDARDS AGENCY - Westminster,2016-07-01,EXP - PURCHASE OF GOODS/SERVICES - RAIL TRAVEL,Operations Assurance ,REDFERN TRAVEL LTD,1011700226,145.93,INV 1908 TRAVEL & SUBSISTENCE WEEK 25,BD1 1PL,PROGRAMME
FOOD STANDARDS AGENCY - Westminster,FOOD STANDARDS AGENCY - Westminster,2016-07-15,EXP - PURCHASE OF GOODS/SERVICES - RAIL TRAVEL,Area 4 North East England - Cluster 44,REDFERN TRAVEL LTD,1011700375,145.5,INV 1720 TRAVEL & SUBSISTENCE WEEK 21,BD1 5HQ,PROGRAMME
FOOD STANDARDS AGENCY - Westminster,FOOD STANDARDS AGENCY - Westminster,2016-07-15,EXP - PURCHASE OF GOODS/SERVICES - SUBSISTENCE,Animal Feed Branch,REDFERN TRAVEL LTD,1011700375,144.67,INV 1720 TRAVEL & SUBSISTENCE WEEK 21,BD1 5HQ,ADMIN
FOOD STANDARDS AGENCY - Westminster,FOOD STANDARDS AGENCY - Westminster,2016-07-13,EXP - PURCHASE OF GOODS/SERVICES - SUBSISTENCE,Planning and Performance,REDFERN TRAVEL LTD,1011700358,142.5,INV 1830 TRAVEL & SUBSISTENCE WEEK 23,BD1 1PL,ADMIN
FOOD STANDARDS AGENCY - Westminster,FOOD STANDARDS AGENCY - Westminster,2016-07-13,EXP - PURCHASE OF GOODS/SERVICES - RAIL TRAVEL,"Employee Relations, Systems and Data",REDFERN TRAVEL LTD,1011700358,141.1,INV 1830 TRAVEL & SUBSISTENCE WEEK 23,BD1 1PL,ADMIN
FOOD STANDARDS AGENCY - Westminster,FOOD STANDARDS AGENCY - Westminster,2016-07-01,EXP - PURCHASE OF GOODS/SERVICES - SUBSISTENCE,Finance Director & Branch,REDFERN TRAVEL LTD,1011700226,140.6,INV 1908 TRAVEL & SUBSISTENCE WEEK 25,BD1 1PL,ADMIN
FOOD STANDARDS AGENCY - Westminster,FOOD STANDARDS AGENCY - Westminster,2016-07-13,EXP - PURCHASE OF GOODS/SERVICES - RAIL TRAVEL,EU Regulatory Reform Branch,REDFERN TRAVEL LTD,1011700358,136,INV 1830 TRAVEL & SUBSISTENCE WEEK 23,BD1 1PL,ADMIN
FOOD STANDARDS AGENCY - Westminster,FOOD STANDARDS AGENCY - Westminster,2016-07-13,EXP - PURCHASE OF GOODS/SERVICES - AIR TRAVEL,Comms Directors Office,REDFERN TRAVEL LTD,1011700358,134.98,INV 1923 TRAVEL & SUBSISTENCE WEEK 26,BD1 1PL,ADMIN
FOOD STANDARDS AGENCY - Westminster,FOOD STANDARDS AGENCY - Westminster,2016-07-05,EXP - PURCHASE OF GOODS/SERVICES - OTHER ICT COSTS - COMPUTER SOFTWARE,IT Service Delivery,TRUSTMARQUE SOLUTIONS LTD,1011700284,134.64,ORDER NO SO647856,YO32 9GZ,ADMIN
FOOD STANDARDS AGENCY - Westminster,FOOD STANDARDS AGENCY - Westminster,2016-07-15,EXP - PURCHASE OF GOODS/SERVICES - OTHER TRAVEL,Operations Assurance ,REDFERN TRAVEL LTD,1011700375,131.99,INV 1720 TRAVEL & SUBSISTENCE WEEK 21,BD1 5HQ,PROGRAMME
FOOD STANDARDS AGENCY - Westminster,FOOD STANDARDS AGENCY - Westminster,2016-07-01,EXP - PURCHASE OF GOODS/SERVICES - SUBSISTENCE,Food Crime Unit - Prog,REDFERN TRAVEL LTD,1011700226,131.2,INV 1908 TRAVEL & SUBSISTENCE WEEK 25,BD1 1PL,PROGRAMME
FOOD STANDARDS AGENCY - Westminster,FOOD STANDARDS AGENCY - Westminster,2016-07-15,EXP - PURCHASE OF GOODS/SERVICES - SUBSISTENCE,Non Meat Field Ops,REDFERN TRAVEL LTD,1011700375,130.7,INV 2054 TRAVEL & SUBSISTENCE WEEK 28,BD1 5HQ,PROGRAMME
FOOD STANDARDS AGENCY - Westminster,FOOD STANDARDS AGENCY - Westminster,2016-07-01,EXP - PURCHASE OF GOODS/SERVICES - FOREIGN SUBSISTENCE,Non Meat Field Ops,REDFERN TRAVEL LTD,1011700226,128.91,INV 1908 TRAVEL & SUBSISTENCE WEEK 25,BD1 1PL,PROGRAMME
FOOD STANDARDS AGENCY - Westminster,FOOD STANDARDS AGENCY - Westminster,2016-07-13,EXP - PURCHASE OF GOODS/SERVICES - RAIL TRAVEL,Area 4 North East England - Cluster 46,REDFERN TRAVEL LTD,1011700358,128,INV 1830 TRAVEL & SUBSISTENCE WEEK 23,BD1 1PL,PROGRAMME
FOOD STANDARDS AGENCY - Westminster,FOOD STANDARDS AGENCY - Westminster,2016-07-15,EXP - PURCHASE OF GOODS/SERVICES - RAIL TRAVEL,Food Crime Unit - Prog,REDFERN TRAVEL LTD,1011700375,126.85,INV 2054 TRAVEL & SUBSISTENCE WEEK 28,BD1 5HQ,PROGRAMME
FOOD STANDARDS AGENCY - Westminster,FOOD STANDARDS AGENCY - Westminster,2016-07-15,EXP - PURCHASE OF GOODS/SERVICES - SUBSISTENCE,Area 2 Wales - Cluster 23,REDFERN TRAVEL LTD,1011700375,125.93,INV 1720 TRAVEL & SUBSISTENCE WEEK 21,BD1 5HQ,PROGRAMME
FOOD STANDARDS AGENCY - Westminster,FOOD STANDARDS AGENCY - Westminster,2016-07-13,EXP - PURCHASE OF GOODS/SERVICES - RAIL TRAVEL,Area 3 North West England - Cluster 35,REDFERN TRAVEL LTD,1011700358,125.65,INV 1923 TRAVEL & SUBSISTENCE WEEK 26,BD1 1PL,PROGRAMME
FOOD STANDARDS AGENCY - Westminster,FOOD STANDARDS AGENCY - Westminster,2016-07-01,EXP - PURCHASE OF GOODS/SERVICES - SUBSISTENCE,Comms Directors Office,REDFERN TRAVEL LTD,1011700226,125.6,INV 1908 TRAVEL & SUBSISTENCE WEEK 25,BD1 1PL,ADMIN
FOOD STANDARDS AGENCY - Westminster,FOOD STANDARDS AGENCY - Westminster,2016-07-15,EXP - PURCHASE OF GOODS/SERVICES - SUBSISTENCE,Area 6 South East England - Cluster 63,REDFERN TRAVEL LTD,1011700375,124.22,INV 1720 TRAVEL & SUBSISTENCE WEEK 21,BD1 5HQ,PROGRAMME
FOOD STANDARDS AGENCY - Westminster,FOOD STANDARDS AGENCY - Westminster,2016-07-13,EXP - PURCHASE OF GOODS/SERVICES - FOREIGN SUBSISTENCE,Additives,REDFERN TRAVEL LTD,1011700358,124.1,INV 1830 TRAVEL & SUBSISTENCE WEEK 23,BD1 1PL,ADMIN
FOOD STANDARDS AGENCY - Westminster,FOOD STANDARDS AGENCY - Westminster,2016-07-01,EXP - PURCHASE OF GOODS/SERVICES - AIR TRAVEL,Food Crime Unit - Admin,REDFERN TRAVEL LTD,1011700226,124,INV 1908 TRAVEL & SUBSISTENCE WEEK 25,BD1 1PL,ADMIN
FOOD STANDARDS AGENCY - Westminster,FOOD STANDARDS AGENCY - Westminster,2016-07-15,EXP - PURCHASE OF GOODS/SERVICES - OTHER TRAVEL,Animal Feed Branch,REDFERN TRAVEL LTD,1011700375,124,INV 1720 TRAVEL & SUBSISTENCE WEEK 21,BD1 5HQ,ADMIN
FOOD STANDARDS AGENCY - Westminster,FOOD STANDARDS AGENCY - Westminster,2016-07-01,EXP - PURCHASE OF GOODS/SERVICES - FOREIGN SUBSISTENCE,Imports & Exports Team (Admin),REDFERN TRAVEL LTD,1011700226,123.69,INV 1908 TRAVEL & SUBSISTENCE WEEK 25,BD1 1PL,ADMIN
FOOD STANDARDS AGENCY - Westminster,FOOD STANDARDS AGENCY - Westminster,2016-07-01,EXP - PURCHASE OF GOODS/SERVICES - FOREIGN SUBSISTENCE,Contaminants Policy & Strategy Unit,REDFERN TRAVEL LTD,1011700226,121.86,INV 1908 TRAVEL & SUBSISTENCE WEEK 25,BD1 1PL,ADMIN
FOOD STANDARDS AGENCY - Westminster,FOOD STANDARDS AGENCY - Westminster,2016-07-15,EXP - PURCHASE OF GOODS/SERVICES - RAIL TRAVEL,Animal Feed     ,REDFERN TRAVEL LTD,1011700375,121.5,INV 2054 TRAVEL & SUBSISTENCE WEEK 28,BD1 5HQ,ADMIN
FOOD STANDARDS AGENCY - Westminster,FOOD STANDARDS AGENCY - Westminster,2016-07-15,EXP - PURCHASE OF GOODS/SERVICES - SUBSISTENCE,Contaminants HoD,REDFERN TRAVEL LTD,1011700375,120.5,INV 2054 TRAVEL & SUBSISTENCE WEEK 28,BD1 5HQ,ADMIN
FOOD STANDARDS AGENCY - Westminster,FOOD STANDARDS AGENCY - Westminster,2016-07-13,EXP - PURCHASE OF GOODS/SERVICES - RAIL TRAVEL,Food Incidents & Resilience - Prog,REDFERN TRAVEL LTD,1011700358,120,INV 1923 TRAVEL & SUBSISTENCE WEEK 26,BD1 1PL,PROGRAMME
FOOD STANDARDS AGENCY - Westminster,FOOD STANDARDS AGENCY - Westminster,2016-07-15,EXP - PURCHASE OF GOODS/SERVICES - RAIL TRAVEL,Area 6 South East England - Cluster 63,REDFERN TRAVEL LTD,1011700375,119,INV 1720 TRAVEL & SUBSISTENCE WEEK 21,BD1 5HQ,PROGRAMME
FOOD STANDARDS AGENCY - Westminster,FOOD STANDARDS AGENCY - Westminster,2016-07-13,EXP - PURCHASE OF GOODS/SERVICES - RAIL TRAVEL,Additives,REDFERN TRAVEL LTD,1011700358,118.4,INV 1923 TRAVEL & SUBSISTENCE WEEK 26,BD1 1PL,ADMIN
FOOD STANDARDS AGENCY - Westminster,FOOD STANDARDS AGENCY - Westminster,2016-07-25,EXP - PURCHASE OF GOODS/SERVICES - OTHER ICT COSTS,IT Service Delivery,CAPITA SECURE INFORMATION SOLUTIONS LTD,1011700448,118,BUFFER STOCK MICE,SN14 0TW,ADMIN
FOOD STANDARDS AGENCY - Westminster,FOOD STANDARDS AGENCY - Westminster,2016-07-15,EXP - PURCHASE OF GOODS/SERVICES - SUBSISTENCE,Allergens,REDFERN TRAVEL LTD,1011700375,117.63,INV 1720 TRAVEL & SUBSISTENCE WEEK 21,BD1 5HQ,ADMIN
FOOD STANDARDS AGENCY - Westminster,FOOD STANDARDS AGENCY - Westminster,2016-07-15,EXP - PURCHASE OF GOODS/SERVICES - RAIL TRAVEL,Organisational Development,REDFERN TRAVEL LTD,1011700375,117.1,INV 2054 TRAVEL & SUBSISTENCE WEEK 28,BD1 5HQ,ADMIN
FOOD STANDARDS AGENCY - Westminster,FOOD STANDARDS AGENCY - Westminster,2016-07-15,EXP - PURCHASE OF GOODS/SERVICES - RAIL TRAVEL,Internal Audit,REDFERN TRAVEL LTD,1011700375,117.05,INV 2054 TRAVEL & SUBSISTENCE WEEK 28,BD1 5HQ,ADMIN
FOOD STANDARDS AGENCY - Westminster,FOOD STANDARDS AGENCY - Westminster,2016-07-15,EXP - PURCHASE OF GOODS/SERVICES - RAIL TRAVEL,Area 5 South West England - Cluster 54,REDFERN TRAVEL LTD,1011700375,114.8,INV 1720 TRAVEL & SUBSISTENCE WEEK 21,BD1 5HQ,PROGRAMME
FOOD STANDARDS AGENCY - Westminster,FOOD STANDARDS AGENCY - Westminster,2016-07-01,EXP - PURCHASE OF GOODS/SERVICES - SUBSISTENCE,Food Crime Unit - Admin,REDFERN TRAVEL LTD,1011700226,114.62,INV 1908 TRAVEL & SUBSISTENCE WEEK 25,BD1 1PL,ADMIN
FOOD STANDARDS AGENCY - Westminster,FOOD STANDARDS AGENCY - Westminster,2016-07-15,EXP - PURCHASE OF GOODS/SERVICES - AIR TRAVEL,Food Crime Unit - Admin,REDFERN TRAVEL LTD,1011700375,114,INV 1720 TRAVEL & SUBSISTENCE WEEK 21,BD1 5HQ,ADMIN
FOOD STANDARDS AGENCY - Westminster,FOOD STANDARDS AGENCY - Westminster,2016-07-13,EXP - PURCHASE OF GOODS/SERVICES - FOREIGN SUBSISTENCE,Food Crime Unit - Admin,REDFERN TRAVEL LTD,1011700358,113.5,INV 1830 TRAVEL & SUBSISTENCE WEEK 23,BD1 1PL,ADMIN
FOOD STANDARDS AGENCY - Westminster,FOOD STANDARDS AGENCY - Westminster,2016-07-05,EXP - PURCHASE OF GOODS/SERVICES - OTHER ICT COSTS - COMPUTER SOFTWARE,IT Service Delivery,TRUSTMARQUE SOLUTIONS LTD,1011700284,113.01,ORDER NO SO647856,YO32 9GZ,ADMIN
FOOD STANDARDS AGENCY - Westminster,FOOD STANDARDS AGENCY - Westminster,2016-07-15,EXP - PURCHASE OF GOODS/SERVICES - SUBSISTENCE,Food Incidents & Resilience - Prog,REDFERN TRAVEL LTD,1011700375,112.85,INV 2054 TRAVEL & SUBSISTENCE WEEK 28,BD1 5HQ,PROGRAMME
FOOD STANDARDS AGENCY - Westminster,FOOD STANDARDS AGENCY - Westminster,2016-07-15,EXP - PURCHASE OF GOODS/SERVICES - SUBSISTENCE,Operations Assurance ,REDFERN TRAVEL LTD,1011700375,112.65,INV 2054 TRAVEL & SUBSISTENCE WEEK 28,BD1 5HQ,PROGRAMME
FOOD STANDARDS AGENCY - Westminster,FOOD STANDARDS AGENCY - Westminster,2016-07-13,EXP - PURCHASE OF GOODS/SERVICES - RAIL TRAVEL,Area 6 South East England - Cluster 62,REDFERN TRAVEL LTD,1011700358,111.4,INV 1830 TRAVEL & SUBSISTENCE WEEK 23,BD1 1PL,PROGRAMME
FOOD STANDARDS AGENCY - Westminster,FOOD STANDARDS AGENCY - Westminster,2016-07-15,EXP - PURCHASE OF GOODS/SERVICES - SUBSISTENCE,Area 5 South West England - Cluster 55,REDFERN TRAVEL LTD,1011700375,110.85,INV 1720 TRAVEL & SUBSISTENCE WEEK 21,BD1 5HQ,PROGRAMME
FOOD STANDARDS AGENCY - Westminster,FOOD STANDARDS AGENCY - Westminster,2016-07-01,EXP - PURCHASE OF GOODS/SERVICES - SUBSISTENCE,Area 6 South East England - Cluster 63,REDFERN TRAVEL LTD,1011700226,110.6,INV 1908 TRAVEL & SUBSISTENCE WEEK 25,BD1 1PL,PROGRAMME
FOOD STANDARDS AGENCY - Westminster,FOOD STANDARDS AGENCY - Westminster,2016-07-15,EXP - PURCHASE OF GOODS/SERVICES - RAIL TRAVEL,Legal Branch A & Investigations,REDFERN TRAVEL LTD,1011700375,110,INV 1720 TRAVEL & SUBSISTENCE WEEK 21,BD1 5HQ,ADMIN
FOOD STANDARDS AGENCY - Westminster,FOOD STANDARDS AGENCY - Westminster,2016-07-01,EXP - PURCHASE OF GOODS/SERVICES - SUBSISTENCE,Contaminants HoD,REDFERN TRAVEL LTD,1011700226,109.23,INV 1908 TRAVEL & SUBSISTENCE WEEK 25,BD1 1PL,ADMIN
FOOD STANDARDS AGENCY - Westminster,FOOD STANDARDS AGENCY - Westminster,2016-07-01,EXP - PURCHASE OF GOODS/SERVICES - SUBSISTENCE,Microbiological Food Safety Branch,REDFERN TRAVEL LTD,1011700226,109.23,INV 1908 TRAVEL & SUBSISTENCE WEEK 25,BD1 1PL,ADMIN
FOOD STANDARDS AGENCY - Westminster,FOOD STANDARDS AGENCY - Westminster,2016-07-13,EXP - PURCHASE OF GOODS/SERVICES - SUBSISTENCE,IT Service Delivery,REDFERN TRAVEL LTD,1011700358,109.23,INV 1923 TRAVEL & SUBSISTENCE WEEK 26,BD1 1PL,ADMIN
FOOD STANDARDS AGENCY - Westminster,FOOD STANDARDS AGENCY - Westminster,2016-07-15,EXP - PURCHASE OF GOODS/SERVICES - SUBSISTENCE,Area 3 North West England - Cluster 32,REDFERN TRAVEL LTD,1011700375,109.23,INV 1720 TRAVEL & SUBSISTENCE WEEK 21,BD1 5HQ,PROGRAMME
FOOD STANDARDS AGENCY - Westminster,FOOD STANDARDS AGENCY - Westminster,2016-07-15,EXP - PURCHASE OF GOODS/SERVICES - SUBSISTENCE,Chemical Risk Assessment Unit,REDFERN TRAVEL LTD,1011700375,109.23,INV 2054 TRAVEL & SUBSISTENCE WEEK 28,BD1 5HQ,ADMIN
FOOD STANDARDS AGENCY - Westminster,FOOD STANDARDS AGENCY - Westminster,2016-07-15,EXP - PURCHASE OF GOODS/SERVICES - SUBSISTENCE,Regulatory & International,REDFERN TRAVEL LTD,1011700375,109.23,INV 2054 TRAVEL & SUBSISTENCE WEEK 28,BD1 5HQ,ADMIN
FOOD STANDARDS AGENCY - Westminster,FOOD STANDARDS AGENCY - Westminster,2016-07-15,EXP - PURCHASE OF GOODS/SERVICES - SUBSISTENCE,Finance Director & Branch,REDFERN TRAVEL LTD,1011700375,109.23,INV 2054 TRAVEL & SUBSISTENCE WEEK 28,BD1 5HQ,ADMIN
FOOD STANDARDS AGENCY - Westminster,FOOD STANDARDS AGENCY - Westminster,2016-07-15,EXP - PURCHASE OF GOODS/SERVICES - RAIL TRAVEL,Area 6 South East England - Cluster 64,REDFERN TRAVEL LTD,1011700375,109.1,INV 2054 TRAVEL & SUBSISTENCE WEEK 28,BD1 5HQ,PROGRAMME
FOOD STANDARDS AGENCY - Westminster,FOOD STANDARDS AGENCY - Westminster,2016-07-15,EXP - PURCHASE OF GOODS/SERVICES - SUBSISTENCE,Area 2 Wales - Cluster 23,REDFERN TRAVEL LTD,1011700375,108.6,INV 2054 TRAVEL & SUBSISTENCE WEEK 28,BD1 5HQ,PROGRAMME
FOOD STANDARDS AGENCY - Westminster,FOOD STANDARDS AGENCY - Westminster,2016-07-01,EXP - PURCHASE OF GOODS/SERVICES - FOREIGN SUBSISTENCE,Food Crime Unit - Admin,REDFERN TRAVEL LTD,1011700226,107.85,INV 1908 TRAVEL & SUBSISTENCE WEEK 25,BD1 1PL,ADMIN
FOOD STANDARDS AGENCY - Westminster,FOOD STANDARDS AGENCY - Westminster,2016-07-15,EXP - PURCHASE OF GOODS/SERVICES - RAIL TRAVEL,EU Regulatory Reform Branch,REDFERN TRAVEL LTD,1011700375,107,INV 2054 TRAVEL & SUBSISTENCE WEEK 28,BD1 5HQ,ADMIN
FOOD STANDARDS AGENCY - Westminster,FOOD STANDARDS AGENCY - Westminster,2016-07-15,EXP - PURCHASE OF GOODS/SERVICES - SUBSISTENCE,Area 3 North West England - Cluster 34,REDFERN TRAVEL LTD,1011700375,106.82,INV 1720 TRAVEL & SUBSISTENCE WEEK 21,BD1 5HQ,PROGRAMME
FOOD STANDARDS AGENCY - Westminster,FOOD STANDARDS AGENCY - Westminster,2016-07-13,EXP - PURCHASE OF GOODS/SERVICES - RAIL TRAVEL,Imports & Exports Team (Admin),REDFERN TRAVEL LTD,1011700358,105.4,INV 1923 TRAVEL & SUBSISTENCE WEEK 26,BD1 1PL,ADMIN
FOOD STANDARDS AGENCY - Westminster,FOOD STANDARDS AGENCY - Westminster,2016-07-01,EXP - PURCHASE OF GOODS/SERVICES - RAIL TRAVEL,Procurement,REDFERN TRAVEL LTD,1011700226,104.65,INV 1908 TRAVEL & SUBSISTENCE WEEK 25,BD1 1PL,ADMIN
FOOD STANDARDS AGENCY - Westminster,FOOD STANDARDS AGENCY - Westminster,2016-07-13,EXP - PURCHASE OF GOODS/SERVICES - RAIL TRAVEL,Contaminants HoD,REDFERN TRAVEL LTD,1011700358,104.5,INV 1923 TRAVEL & SUBSISTENCE WEEK 26,BD1 1PL,ADMIN
FOOD STANDARDS AGENCY - Westminster,FOOD STANDARDS AGENCY - Westminster,2016-07-15,EXP - PURCHASE OF GOODS/SERVICES - RAIL TRAVEL,Imports & Exports Team (Admin),REDFERN TRAVEL LTD,1011700375,102,INV 2054 TRAVEL & SUBSISTENCE WEEK 28,BD1 5HQ,ADMIN
FOOD STANDARDS AGENCY - Westminster,FOOD STANDARDS AGENCY - Westminster,2016-07-13,EXP - PURCHASE OF GOODS/SERVICES - SUBSISTENCE,Operations Local Delivery ,REDFERN TRAVEL LTD,1011700358,101.28,INV 1830 TRAVEL & SUBSISTENCE WEEK 23,BD1 1PL,ADMIN
FOOD STANDARDS AGENCY - Westminster,FOOD STANDARDS AGENCY - Westminster,2016-07-13,EXP - PURCHASE OF GOODS/SERVICES - SUBSISTENCE,Food Crime Unit - Prog,REDFERN TRAVEL LTD,1011700358,101.28,INV 1830 TRAVEL & SUBSISTENCE WEEK 23,BD1 1PL,PROGRAMME
FOOD STANDARDS AGENCY - Westminster,FOOD STANDARDS AGENCY - Westminster,2016-07-15,EXP - PURCHASE OF GOODS/SERVICES - RAIL TRAVEL,Food Hygiene Policy Branch,REDFERN TRAVEL LTD,1011700375,100.9,INV 1720 TRAVEL & SUBSISTENCE WEEK 21,BD1 5HQ,ADMIN
FOOD STANDARDS AGENCY - Westminster,FOOD STANDARDS AGENCY - Westminster,2016-07-13,EXP - PURCHASE OF GOODS/SERVICES - SUBSISTENCE,Area 6 South East England - Cluster 62,REDFERN TRAVEL LTD,1011700358,100.6,INV 1923 TRAVEL & SUBSISTENCE WEEK 26,BD1 1PL,PROGRAMME
FOOD STANDARDS AGENCY - Westminster,FOOD STANDARDS AGENCY - Westminster,2016-07-13,EXP - PURCHASE OF GOODS/SERVICES - RAIL TRAVEL,Food Crime Unit - Prog,REDFERN TRAVEL LTD,1011700358,100,INV 1923 TRAVEL & SUBSISTENCE WEEK 26,BD1 1PL,PROGRAMME
FOOD STANDARDS AGENCY - Westminster,FOOD STANDARDS AGENCY - Westminster,2016-07-13,EXP - PURCHASE OF GOODS/SERVICES - FOREIGN SUBSISTENCE,Animal Feed Branch,REDFERN TRAVEL LTD,1011700358,100,INV 1830 TRAVEL & SUBSISTENCE WEEK 23,BD1 1PL,ADMIN
FOOD STANDARDS AGENCY - Westminster,FOOD STANDARDS AGENCY - Westminster,2016-07-01,EXP - PURCHASE OF GOODS/SERVICES - SUBSISTENCE,Contaminants Policy & Strategy Unit,REDFERN TRAVEL LTD,1011700226,99.6,INV 1908 TRAVEL & SUBSISTENCE WEEK 25,BD1 1PL,ADMIN
FOOD STANDARDS AGENCY - Westminster,FOOD STANDARDS AGENCY - Westminster,2016-07-13,EXP - PURCHASE OF GOODS/SERVICES - SUBSISTENCE,Area 4 North East England - Cluster 48,REDFERN TRAVEL LTD,1011700358,99.6,INV 1923 TRAVEL & SUBSISTENCE WEEK 26,BD1 1PL,PROGRAMME
FOOD STANDARDS AGENCY - Westminster,FOOD STANDARDS AGENCY - Westminster,2016-07-01,EXP - PURCHASE OF GOODS/SERVICES - AIR TRAVEL,Non Meat Field Ops,REDFERN TRAVEL LTD,1011700226,99,INV 1908 TRAVEL & SUBSISTENCE WEEK 25,BD1 1PL,PROGRAMME
FOOD STANDARDS AGENCY - Westminster,FOOD STANDARDS AGENCY - Westminster,2016-07-01,EXP - PURCHASE OF GOODS/SERVICES - RAIL TRAVEL,Area 5 South West England - Cluster 53,REDFERN TRAVEL LTD,1011700226,98.2,INV 1908 TRAVEL & SUBSISTENCE WEEK 25,BD1 1PL,PROGRAMME
FOOD STANDARDS AGENCY - Westminster,FOOD STANDARDS AGENCY - Westminster,2016-07-13,EXP - PURCHASE OF GOODS/SERVICES - RAIL TRAVEL,Area 4 North East England - Cluster 41,REDFERN TRAVEL LTD,1011700358,98,INV 1923 TRAVEL & SUBSISTENCE WEEK 26,BD1 1PL,PROGRAMME
FOOD STANDARDS AGENCY - Westminster,FOOD STANDARDS AGENCY - Westminster,2016-07-15,EXP - PURCHASE OF GOODS/SERVICES - AIR TRAVEL,Animal Feed Branch,REDFERN TRAVEL LTD,1011700375,98,INV 1720 TRAVEL & SUBSISTENCE WEEK 21,BD1 5HQ,ADMIN
FOOD STANDARDS AGENCY - Westminster,FOOD STANDARDS AGENCY - Westminster,2016-07-13,EXP - PURCHASE OF GOODS/SERVICES - SUBSISTENCE,IT Information & Knowledge Management,REDFERN TRAVEL LTD,1011700358,97.6,INV 1830 TRAVEL & SUBSISTENCE WEEK 23,BD1 1PL,ADMIN
FOOD STANDARDS AGENCY - Westminster,FOOD STANDARDS AGENCY - Westminster,2016-07-15,EXP - PURCHASE OF GOODS/SERVICES - SUBSISTENCE,Area 3 North West England - Cluster 32,REDFERN TRAVEL LTD,1011700375,97.55,INV 2054 TRAVEL & SUBSISTENCE WEEK 28,BD1 5HQ,PROGRAMME
FOOD STANDARDS AGENCY - Westminster,FOOD STANDARDS AGENCY - Westminster,2016-07-15,EXP - PURCHASE OF GOODS/SERVICES - SUBSISTENCE,Legal Branch A & Investigations,REDFERN TRAVEL LTD,1011700375,97.55,INV 2054 TRAVEL & SUBSISTENCE WEEK 28,BD1 5HQ,ADMIN
FOOD STANDARDS AGENCY - Westminster,FOOD STANDARDS AGENCY - Westminster,2016-07-15,EXP - PURCHASE OF GOODS/SERVICES - OTHER TRAVEL,Organisational Development,REDFERN TRAVEL LTD,1011700375,97.14,INV 1720 TRAVEL & SUBSISTENCE WEEK 21,BD1 5HQ,ADMIN
FOOD STANDARDS AGENCY - Westminster,FOOD STANDARDS AGENCY - Westminster,2016-07-01,EXP - PURCHASE OF GOODS/SERVICES - RAIL TRAVEL,IT Information & Knowledge Management,REDFERN TRAVEL LTD,1011700226,96.78,INV 1908 TRAVEL & SUBSISTENCE WEEK 25,BD1 1PL,ADMIN
FOOD STANDARDS AGENCY - Westminster,FOOD STANDARDS AGENCY - Westminster,2016-07-05,EXP - PURCHASE OF GOODS/SERVICES - OTHER ICT COSTS - COMPUTER SOFTWARE,IT Service Delivery,TRUSTMARQUE SOLUTIONS LTD,1011700284,96.58,ORDER NO SO647856,YO32 9GZ,ADMIN
FOOD STANDARDS AGENCY - Westminster,FOOD STANDARDS AGENCY - Westminster,2016-07-01,EXP - PURCHASE OF GOODS/SERVICES - RAIL TRAVEL,Chief Scientist,REDFERN TRAVEL LTD,1011700226,96.5,INV 1908 TRAVEL & SUBSISTENCE WEEK 25,BD1 1PL,ADMIN
FOOD STANDARDS AGENCY - Westminster,FOOD STANDARDS AGENCY - Westminster,2016-07-01,EXP - PURCHASE OF GOODS/SERVICES - RAIL TRAVEL,Contaminants HoD,REDFERN TRAVEL LTD,1011700226,95.6,INV 1908 TRAVEL & SUBSISTENCE WEEK 25,BD1 1PL,ADMIN
FOOD STANDARDS AGENCY - Westminster,FOOD STANDARDS AGENCY - Westminster,2016-07-13,EXP - PURCHASE OF GOODS/SERVICES - SUBSISTENCE,Regulatory & International,REDFERN TRAVEL LTD,1011700358,93.27,INV 1923 TRAVEL & SUBSISTENCE WEEK 26,BD1 1PL,ADMIN
FOOD STANDARDS AGENCY - Westminster,FOOD STANDARDS AGENCY - Westminster,2016-07-13,EXP - PURCHASE OF GOODS/SERVICES - SUBSISTENCE,Procurement,REDFERN TRAVEL LTD,1011700358,92.88,INV 1830 TRAVEL & SUBSISTENCE WEEK 23,BD1 1PL,ADMIN
FOOD STANDARDS AGENCY - Westminster,FOOD STANDARDS AGENCY - Westminster,2016-07-15,EXP - PURCHASE OF GOODS/SERVICES - SUBSISTENCE,Food Production Branch,REDFERN TRAVEL LTD,1011700375,92.3,INV 1720 TRAVEL & SUBSISTENCE WEEK 21,BD1 5HQ,ADMIN
FOOD STANDARDS AGENCY - Westminster,FOOD STANDARDS AGENCY - Westminster,2016-07-01,EXP - PURCHASE OF GOODS/SERVICES - RAIL TRAVEL,Area 6 South East England - Cluster 63,REDFERN TRAVEL LTD,1011700226,91.2,INV 1908 TRAVEL & SUBSISTENCE WEEK 25,BD1 1PL,PROGRAMME
FOOD STANDARDS AGENCY - Westminster,FOOD STANDARDS AGENCY - Westminster,2016-07-13,EXP - PURCHASE OF GOODS/SERVICES - RAIL TRAVEL,Animal Feed     ,REDFERN TRAVEL LTD,1011700358,90,INV 1830 TRAVEL & SUBSISTENCE WEEK 23,BD1 1PL,ADMIN
FOOD STANDARDS AGENCY - Westminster,FOOD STANDARDS AGENCY - Westminster,2016-07-15,EXP - PURCHASE OF GOODS/SERVICES - RAIL TRAVEL,Area 5 South West England - Cluster 53,REDFERN TRAVEL LTD,1011700375,89.9,INV 2054 TRAVEL & SUBSISTENCE WEEK 28,BD1 5HQ,PROGRAMME
FOOD STANDARDS AGENCY - Westminster,FOOD STANDARDS AGENCY - Westminster,2016-07-15,EXP - PURCHASE OF GOODS/SERVICES - SUBSISTENCE,Internal Audit,REDFERN TRAVEL LTD,1011700375,89.6,INV 1720 TRAVEL & SUBSISTENCE WEEK 21,BD1 5HQ,ADMIN
FOOD STANDARDS AGENCY - Westminster,FOOD STANDARDS AGENCY - Westminster,2016-07-13,EXP - PURCHASE OF GOODS/SERVICES - RAIL TRAVEL,Area 6 South East England - Cluster 66,REDFERN TRAVEL LTD,1011700358,89.31,INV 1923 TRAVEL & SUBSISTENCE WEEK 26,BD1 1PL,PROGRAMME
FOOD STANDARDS AGENCY - Westminster,FOOD STANDARDS AGENCY - Westminster,2016-07-13,EXP - PURCHASE OF GOODS/SERVICES - RAIL TRAVEL,Area 6 South East England - Cluster 61,REDFERN TRAVEL LTD,1011700358,88.1,INV 1923 TRAVEL & SUBSISTENCE WEEK 26,BD1 1PL,PROGRAMME
FOOD STANDARDS AGENCY - Westminster,FOOD STANDARDS AGENCY - Westminster,2016-07-13,EXP - PURCHASE OF GOODS/SERVICES - RAIL TRAVEL,Area 6 South East England - Cluster 63,REDFERN TRAVEL LTD,1011700358,87.5,INV 1923 TRAVEL & SUBSISTENCE WEEK 26,BD1 1PL,PROGRAMME
FOOD STANDARDS AGENCY - Westminster,FOOD STANDARDS AGENCY - Westminster,2016-07-15,EXP - PURCHASE OF GOODS/SERVICES - RAIL TRAVEL,Area 6 South East England - Cluster 63,REDFERN TRAVEL LTD,1011700375,87.5,INV 2054 TRAVEL & SUBSISTENCE WEEK 28,BD1 5HQ,PROGRAMME
FOOD STANDARDS AGENCY - Westminster,FOOD STANDARDS AGENCY - Westminster,2016-07-13,EXP - PURCHASE OF GOODS/SERVICES - RAIL TRAVEL,Area 5 South West England - Cluster 56,REDFERN TRAVEL LTD,1011700358,86.9,INV 1923 TRAVEL & SUBSISTENCE WEEK 26,BD1 1PL,PROGRAMME
FOOD STANDARDS AGENCY - Westminster,FOOD STANDARDS AGENCY - Westminster,2016-07-13,EXP - PURCHASE OF GOODS/SERVICES - RAIL TRAVEL,IT Service Delivery,REDFERN TRAVEL LTD,1011700358,86.5,INV 1923 TRAVEL & SUBSISTENCE WEEK 26,BD1 1PL,ADMIN
FOOD STANDARDS AGENCY - Westminster,FOOD STANDARDS AGENCY - Westminster,2016-07-15,EXP - PURCHASE OF GOODS/SERVICES - SUBSISTENCE,Chief Scientist,REDFERN TRAVEL LTD,1011700375,85.6,INV 1720 TRAVEL & SUBSISTENCE WEEK 21,BD1 5HQ,ADMIN
FOOD STANDARDS AGENCY - Westminster,FOOD STANDARDS AGENCY - Westminster,2016-07-15,EXP - PURCHASE OF GOODS/SERVICES - SUBSISTENCE,Regulating our Future,REDFERN TRAVEL LTD,1011700375,85.6,INV 1720 TRAVEL & SUBSISTENCE WEEK 21,BD1 5HQ,ADMIN
FOOD STANDARDS AGENCY - Westminster,FOOD STANDARDS AGENCY - Westminster,2016-07-13,EXP - PURCHASE OF GOODS/SERVICES - SUBSISTENCE,Contaminants HoD,REDFERN TRAVEL LTD,1011700358,84.6,INV 1923 TRAVEL & SUBSISTENCE WEEK 26,BD1 1PL,ADMIN
FOOD STANDARDS AGENCY - Westminster,FOOD STANDARDS AGENCY - Westminster,2016-07-13,EXP - PURCHASE OF GOODS/SERVICES - RAIL TRAVEL,Chief Scientist,REDFERN TRAVEL LTD,1011700358,84.2,INV 1923 TRAVEL & SUBSISTENCE WEEK 26,BD1 1PL,ADMIN
FOOD STANDARDS AGENCY - Westminster,FOOD STANDARDS AGENCY - Westminster,2016-07-15,EXP - PURCHASE OF GOODS/SERVICES - RAIL TRAVEL,Contaminants Policy & Strategy Unit,REDFERN TRAVEL LTD,1011700375,84,INV 2054 TRAVEL & SUBSISTENCE WEEK 28,BD1 5HQ,ADMIN
FOOD STANDARDS AGENCY - Westminster,FOOD STANDARDS AGENCY - Westminster,2016-07-01,EXP - PURCHASE OF GOODS/SERVICES - RAIL TRAVEL,Legal Branch A & Investigations,REDFERN TRAVEL LTD,1011700226,83.6,INV 1908 TRAVEL & SUBSISTENCE WEEK 25,BD1 1PL,ADMIN
FOOD STANDARDS AGENCY - Westminster,FOOD STANDARDS AGENCY - Westminster,2016-07-13,EXP - PURCHASE OF GOODS/SERVICES - RAIL TRAVEL,Animal Feed     ,REDFERN TRAVEL LTD,1011700358,83,INV 1923 TRAVEL & SUBSISTENCE WEEK 26,BD1 1PL,ADMIN
FOOD STANDARDS AGENCY - Westminster,FOOD STANDARDS AGENCY - Westminster,2016-07-01,EXP - PURCHASE OF GOODS/SERVICES - SUBSISTENCE,Animal Feed     ,REDFERN TRAVEL LTD,1011700226,82.6,INV 1908 TRAVEL & SUBSISTENCE WEEK 25,BD1 1PL,ADMIN
FOOD STANDARDS AGENCY - Westminster,FOOD STANDARDS AGENCY - Westminster,2016-07-01,EXP - PURCHASE OF GOODS/SERVICES - SUBSISTENCE,Organisational Development,REDFERN TRAVEL LTD,1011700226,82.6,INV 1908 TRAVEL & SUBSISTENCE WEEK 25,BD1 1PL,ADMIN
FOOD STANDARDS AGENCY - Westminster,FOOD STANDARDS AGENCY - Westminster,2016-07-01,EXP - PURCHASE OF GOODS/SERVICES - SUBSISTENCE,IT Information & Knowledge Management,REDFERN TRAVEL LTD,1011700226,82.6,INV 1908 TRAVEL & SUBSISTENCE WEEK 25,BD1 1PL,ADMIN
FOOD STANDARDS AGENCY - Westminster,FOOD STANDARDS AGENCY - Westminster,2016-07-15,EXP - PURCHASE OF GOODS/SERVICES - SUBSISTENCE,Area 3 North West England - Cluster 31,REDFERN TRAVEL LTD,1011700375,82.6,INV 2054 TRAVEL & SUBSISTENCE WEEK 28,BD1 5HQ,PROGRAMME
FOOD STANDARDS AGENCY - Westminster,FOOD STANDARDS AGENCY - Westminster,2016-07-15,EXP - PURCHASE OF GOODS/SERVICES - SUBSISTENCE,Area 4 North East England - Cluster 44,REDFERN TRAVEL LTD,1011700375,82.6,INV 2054 TRAVEL & SUBSISTENCE WEEK 28,BD1 5HQ,PROGRAMME
FOOD STANDARDS AGENCY - Westminster,FOOD STANDARDS AGENCY - Westminster,2016-07-15,EXP - PURCHASE OF GOODS/SERVICES - RAIL TRAVEL,Area 4 North East England - Cluster 47,REDFERN TRAVEL LTD,1011700375,82,INV 1720 TRAVEL & SUBSISTENCE WEEK 21,BD1 5HQ,PROGRAMME
FOOD STANDARDS AGENCY - Westminster,FOOD STANDARDS AGENCY - Westminster,2016-07-15,EXP - PURCHASE OF GOODS/SERVICES - RAIL TRAVEL,Area 6 South East England - Cluster 61,REDFERN TRAVEL LTD,1011700375,82,INV 2054 TRAVEL & SUBSISTENCE WEEK 28,BD1 5HQ,PROGRAMME
FOOD STANDARDS AGENCY - Westminster,FOOD STANDARDS AGENCY - Westminster,2016-07-15,EXP - PURCHASE OF GOODS/SERVICES - RAIL TRAVEL,Area 3 North West England - Cluster 35,REDFERN TRAVEL LTD,1011700375,81.5,INV 1720 TRAVEL & SUBSISTENCE WEEK 21,BD1 5HQ,PROGRAMME
FOOD STANDARDS AGENCY - Westminster,FOOD STANDARDS AGENCY - Westminster,2016-07-25,EXP - PURCHASE OF GOODS/SERVICES - OTHER ICT COSTS - COMPUTER SOFTWARE,IT Service Delivery,CAPITA SECURE INFORMATION SOLUTIONS LTD,1011700448,81.4,ADOBE PRO LICENCE,SN14 0TW,ADMIN
FOOD STANDARDS AGENCY - Westminster,FOOD STANDARDS AGENCY - Westminster,2016-07-15,EXP - PURCHASE OF GOODS/SERVICES - RAIL TRAVEL,Area 6 South East England - Cluster 61,REDFERN TRAVEL LTD,1011700375,81,INV 1720 TRAVEL & SUBSISTENCE WEEK 21,BD1 5HQ,PROGRAMME
FOOD STANDARDS AGENCY - Westminster,FOOD STANDARDS AGENCY - Westminster,2016-07-25,EXP - PURCHASE OF GOODS/SERVICES - OTHER ICT COSTS - COMPUTER HARDWARE,IT Service Delivery,CAPITA SECURE INFORMATION SOLUTIONS LTD,1011700448,80.5,REPLACEMENT OF PLANT ROUTER,SN14 0TW,ADMIN
FOOD STANDARDS AGENCY - Westminster,FOOD STANDARDS AGENCY - Westminster,2016-07-01,EXP - PURCHASE OF GOODS/SERVICES - RAIL TRAVEL,Contaminants Policy & Strategy Unit,REDFERN TRAVEL LTD,1011700226,79.6,INV 1908 TRAVEL & SUBSISTENCE WEEK 25,BD1 1PL,ADMIN
FOOD STANDARDS AGENCY - Westminster,FOOD STANDARDS AGENCY - Westminster,2016-07-01,EXP - PURCHASE OF GOODS/SERVICES - FOREIGN SUBSISTENCE,Regulatory & International,REDFERN TRAVEL LTD,1011700226,79,INV 1908 TRAVEL & SUBSISTENCE WEEK 25,BD1 1PL,ADMIN
FOOD STANDARDS AGENCY - Westminster,FOOD STANDARDS AGENCY - Westminster,2016-07-15,EXP - PURCHASE OF GOODS/SERVICES - RAIL TRAVEL,Area 3 North West England - Cluster 32,REDFERN TRAVEL LTD,1011700375,78.7,INV 2054 TRAVEL & SUBSISTENCE WEEK 28,BD1 5HQ,PROGRAMME
FOOD STANDARDS AGENCY - Westminster,FOOD STANDARDS AGENCY - Westminster,2016-07-25,EXP - PURCHASE OF GOODS/SERVICES - OTHER ICT COSTS - COMPUTER SOFTWARE,IT Service Delivery,CAPITA SECURE INFORMATION SOLUTIONS LTD,1011700448,77.52,ADOBE PRO LICENCE,SN14 0TW,ADMIN
FOOD STANDARDS AGENCY - Westminster,FOOD STANDARDS AGENCY - Westminster,2016-07-15,EXP - PURCHASE OF GOODS/SERVICES - OTHER TRAVEL,Area 3 North West England - Cluster 32,REDFERN TRAVEL LTD,1011700375,77.45,INV 1720 TRAVEL & SUBSISTENCE WEEK 21,BD1 5HQ,PROGRAMME
FOOD STANDARDS AGENCY - Westminster,FOOD STANDARDS AGENCY - Westminster,2016-07-15,EXP - PURCHASE OF GOODS/SERVICES - RAIL TRAVEL,Area 2 Wales - Cluster 23,REDFERN TRAVEL LTD,1011700375,76.6,INV 2054 TRAVEL & SUBSISTENCE WEEK 28,BD1 5HQ,PROGRAMME
FOOD STANDARDS AGENCY - Westminster,FOOD STANDARDS AGENCY - Westminster,2016-07-15,EXP - PURCHASE OF GOODS/SERVICES - SUBSISTENCE,Food Crime Unit - Admin,REDFERN TRAVEL LTD,1011700375,76.6,INV 1720 TRAVEL & SUBSISTENCE WEEK 21,BD1 5HQ,ADMIN
FOOD STANDARDS AGENCY - Westminster,FOOD STANDARDS AGENCY - Westminster,2016-07-01,EXP - PURCHASE OF GOODS/SERVICES - SUBSISTENCE,Imports & Exports Team (Admin),REDFERN TRAVEL LTD,1011700226,75.6,INV 1908 TRAVEL & SUBSISTENCE WEEK 25,BD1 1PL,ADMIN
FOOD STANDARDS AGENCY - Westminster,FOOD STANDARDS AGENCY - Westminster,2016-07-05,EXP - PURCHASE OF GOODS/SERVICES - OTHER ICT COSTS - COMPUTER SOFTWARE,IT Service Delivery,TRUSTMARQUE SOLUTIONS LTD,1011700284,75.23,ORDER NO SO647856,YO32 9GZ,ADMIN
FOOD STANDARDS AGENCY - Westminster,FOOD STANDARDS AGENCY - Westminster,2016-07-13,EXP - PURCHASE OF GOODS/SERVICES - RAIL TRAVEL,Comms Directors Office,REDFERN TRAVEL LTD,1011700358,74.7,INV 1923 TRAVEL & SUBSISTENCE WEEK 26,BD1 1PL,ADMIN
FOOD STANDARDS AGENCY - Westminster,FOOD STANDARDS AGENCY - Westminster,2016-07-01,EXP - PURCHASE OF GOODS/SERVICES - SUBSISTENCE,Area 2 Wales - Cluster 22,REDFERN TRAVEL LTD,1011700226,74.33,INV 1908 TRAVEL & SUBSISTENCE WEEK 25,BD1 1PL,PROGRAMME
FOOD STANDARDS AGENCY - Westminster,FOOD STANDARDS AGENCY - Westminster,2016-07-01,EXP - PURCHASE OF GOODS/SERVICES - RAIL TRAVEL,Resilience - Admin,REDFERN TRAVEL LTD,1011700226,73.5,INV 1908 TRAVEL & SUBSISTENCE WEEK 25,BD1 1PL,ADMIN
FOOD STANDARDS AGENCY - Westminster,FOOD STANDARDS AGENCY - Westminster,2016-07-01,EXP - PURCHASE OF GOODS/SERVICES - SUBSISTENCE,Area 2 Wales - Cluster 21,REDFERN TRAVEL LTD,1011700226,70.6,INV 1908 TRAVEL & SUBSISTENCE WEEK 25,BD1 1PL,PROGRAMME
FOOD STANDARDS AGENCY - Westminster,FOOD STANDARDS AGENCY - Westminster,2016-07-01,EXP - PURCHASE OF GOODS/SERVICES - SUBSISTENCE,Area 3 North West England - Cluster 34,REDFERN TRAVEL LTD,1011700226,70.1,INV 1908 TRAVEL & SUBSISTENCE WEEK 25,BD1 1PL,PROGRAMME
FOOD STANDARDS AGENCY - Westminster,FOOD STANDARDS AGENCY - Westminster,2016-07-01,EXP - PURCHASE OF GOODS/SERVICES - RAIL TRAVEL,Area 5 South West England - Cluster 54,REDFERN TRAVEL LTD,1011700226,70.1,INV 1908 TRAVEL & SUBSISTENCE WEEK 25,BD1 1PL,PROGRAMME
FOOD STANDARDS AGENCY - Westminster,FOOD STANDARDS AGENCY - Westminster,2016-07-05,EXP - PURCHASE OF GOODS/SERVICES - OTHER ICT COSTS - COMPUTER SOFTWARE,IT Service Delivery,TRUSTMARQUE SOLUTIONS LTD,1011700284,70.08,ORDER NO SO647856,YO32 9GZ,ADMIN
FOOD STANDARDS AGENCY - Westminster,FOOD STANDARDS AGENCY - Westminster,2016-07-15,EXP - PURCHASE OF GOODS/SERVICES - SUBSISTENCE,Area 5 South West England - Cluster 57,REDFERN TRAVEL LTD,1011700375,69.3,INV 1720 TRAVEL & SUBSISTENCE WEEK 21,BD1 5HQ,PROGRAMME
FOOD STANDARDS AGENCY - Westminster,FOOD STANDARDS AGENCY - Westminster,2016-07-13,EXP - PURCHASE OF GOODS/SERVICES - SUBSISTENCE,Area 4 North East England - Cluster 47,REDFERN TRAVEL LTD,1011700358,68.6,INV 1923 TRAVEL & SUBSISTENCE WEEK 26,BD1 1PL,PROGRAMME
FOOD STANDARDS AGENCY - Westminster,FOOD STANDARDS AGENCY - Westminster,2016-07-13,EXP - PURCHASE OF GOODS/SERVICES - AIR TRAVEL,Regulatory & International,REDFERN TRAVEL LTD,1011700358,68.15,INV 1923 TRAVEL & SUBSISTENCE WEEK 26,BD1 1PL,ADMIN
FOOD STANDARDS AGENCY - Westminster,FOOD STANDARDS AGENCY - Westminster,2016-07-15,EXP - PURCHASE OF GOODS/SERVICES - RAIL TRAVEL,Area 6 South East England - Cluster 66,REDFERN TRAVEL LTD,1011700375,67.2,INV 2054 TRAVEL & SUBSISTENCE WEEK 28,BD1 5HQ,PROGRAMME
FOOD STANDARDS AGENCY - Westminster,FOOD STANDARDS AGENCY - Westminster,2016-07-01,EXP - PURCHASE OF GOODS/SERVICES - RAIL TRAVEL,Food Hygiene Policy Branch,REDFERN TRAVEL LTD,1011700226,67,INV 1908 TRAVEL & SUBSISTENCE WEEK 25,BD1 1PL,ADMIN
FOOD STANDARDS AGENCY - Westminster,FOOD STANDARDS AGENCY - Westminster,2016-07-15,EXP - PURCHASE OF GOODS/SERVICES - RAIL TRAVEL,Chair & Deputy Chair,REDFERN TRAVEL LTD,1011700375,66.65,INV 2054 TRAVEL & SUBSISTENCE WEEK 28,BD1 5HQ,ADMIN
FOOD STANDARDS AGENCY - Westminster,FOOD STANDARDS AGENCY - Westminster,2016-07-15,EXP - PURCHASE OF GOODS/SERVICES - SUBSISTENCE,Area 5 South West England - Cluster 55,REDFERN TRAVEL LTD,1011700375,65.6,INV 2054 TRAVEL & SUBSISTENCE WEEK 28,BD1 5HQ,PROGRAMME
FOOD STANDARDS AGENCY - Westminster,FOOD STANDARDS AGENCY - Westminster,2016-07-05,EXP - PURCHASE OF GOODS/SERVICES - OTHER ICT COSTS - COMPUTER SOFTWARE,IT Service Delivery,TRUSTMARQUE SOLUTIONS LTD,1011700284,65.45,ORDER NO SO647856,YO32 9GZ,ADMIN
FOOD STANDARDS AGENCY - Westminster,FOOD STANDARDS AGENCY - Westminster,2016-07-13,EXP - PURCHASE OF GOODS/SERVICES - RAIL TRAVEL,Area 6 South East England - Cluster 64,REDFERN TRAVEL LTD,1011700358,64.9,INV 1923 TRAVEL & SUBSISTENCE WEEK 26,BD1 1PL,PROGRAMME
FOOD STANDARDS AGENCY - Westminster,FOOD STANDARDS AGENCY - Westminster,2016-07-15,EXP - PURCHASE OF GOODS/SERVICES - RAIL TRAVEL,"Employee Relations, Systems and Data",REDFERN TRAVEL LTD,1011700375,64.9,INV 1720 TRAVEL & SUBSISTENCE WEEK 21,BD1 5HQ,ADMIN
FOOD STANDARDS AGENCY - Westminster,FOOD STANDARDS AGENCY - Westminster,2016-07-13,EXP - PURCHASE OF GOODS/SERVICES - RAIL TRAVEL,Area 6 South East England - Cluster 65,REDFERN TRAVEL LTD,1011700358,64.5,INV 1923 TRAVEL & SUBSISTENCE WEEK 26,BD1 1PL,PROGRAMME
FOOD STANDARDS AGENCY - Westminster,FOOD STANDARDS AGENCY - Westminster,2016-07-01,EXP - PURCHASE OF GOODS/SERVICES - RAIL TRAVEL,Area 6 South East England - Cluster 61,REDFERN TRAVEL LTD,1011700226,64,INV 1908 TRAVEL & SUBSISTENCE WEEK 25,BD1 1PL,PROGRAMME
FOOD STANDARDS AGENCY - Westminster,FOOD STANDARDS AGENCY - Westminster,2016-07-15,EXP - PURCHASE OF GOODS/SERVICES - RAIL TRAVEL,Area 3 North West England - Cluster 32,REDFERN TRAVEL LTD,1011700375,63.7,INV 1720 TRAVEL & SUBSISTENCE WEEK 21,BD1 5HQ,PROGRAMME
FOOD STANDARDS AGENCY - Westminster,FOOD STANDARDS AGENCY - Westminster,2016-07-15,EXP - PURCHASE OF GOODS/SERVICES - SUBSISTENCE,Area 4 North East England - Cluster 41,REDFERN TRAVEL LTD,1011700375,63.6,INV 2054 TRAVEL & SUBSISTENCE WEEK 28,BD1 5HQ,PROGRAMME
FOOD STANDARDS AGENCY - Westminster,FOOD STANDARDS AGENCY - Westminster,2016-07-15,EXP - PURCHASE OF GOODS/SERVICES - SUBSISTENCE,Area 5 South West England - Cluster 54,REDFERN TRAVEL LTD,1011700375,63.6,INV 2054 TRAVEL & SUBSISTENCE WEEK 28,BD1 5HQ,PROGRAMME
FOOD STANDARDS AGENCY - Westminster,FOOD STANDARDS AGENCY - Westminster,2016-07-25,EXP - PURCHASE OF GOODS/SERVICES - OTHER ICT COSTS,IT Service Delivery,CAPITA SECURE INFORMATION SOLUTIONS LTD,1011700448,61.8,LENOVO X230 LAPTOP POWER SUPPLY,SN14 0TW,ADMIN
FOOD STANDARDS AGENCY - Westminster,FOOD STANDARDS AGENCY - Westminster,2016-07-13,EXP - PURCHASE OF GOODS/SERVICES - RAIL TRAVEL,Analysis & Research Branch,REDFERN TRAVEL LTD,1011700358,61.3,INV 1830 TRAVEL & SUBSISTENCE WEEK 23,BD1 1PL,ADMIN
FOOD STANDARDS AGENCY - Westminster,FOOD STANDARDS AGENCY - Westminster,2016-07-13,EXP - PURCHASE OF GOODS/SERVICES - SUBSISTENCE,Area 2 Wales - Cluster 23,REDFERN TRAVEL LTD,1011700358,60.33,INV 1830 TRAVEL & SUBSISTENCE WEEK 23,BD1 1PL,PROGRAMME
FOOD STANDARDS AGENCY - Westminster,FOOD STANDARDS AGENCY - Westminster,2016-07-15,EXP - PURCHASE OF GOODS/SERVICES - RAIL TRAVEL,Additives,REDFERN TRAVEL LTD,1011700375,57,INV 1720 TRAVEL & SUBSISTENCE WEEK 21,BD1 5HQ,ADMIN
FOOD STANDARDS AGENCY - Westminster,FOOD STANDARDS AGENCY - Westminster,2016-07-13,EXP - PURCHASE OF GOODS/SERVICES - RAIL TRAVEL,Area 6 South East England - Cluster 64,REDFERN TRAVEL LTD,1011700358,54.3,INV 1830 TRAVEL & SUBSISTENCE WEEK 23,BD1 1PL,PROGRAMME
FOOD STANDARDS AGENCY - Westminster,FOOD STANDARDS AGENCY - Westminster,2016-07-13,EXP - PURCHASE OF GOODS/SERVICES - RAIL TRAVEL,Area 3 North West England - Cluster 34,REDFERN TRAVEL LTD,1011700358,53.5,INV 1923 TRAVEL & SUBSISTENCE WEEK 26,BD1 1PL,PROGRAMME
FOOD STANDARDS AGENCY - Westminster,FOOD STANDARDS AGENCY - Westminster,2016-07-13,EXP - PURCHASE OF GOODS/SERVICES - RAIL TRAVEL,Area 3 North West England - Cluster 31,REDFERN TRAVEL LTD,1011700358,53.3,INV 1923 TRAVEL & SUBSISTENCE WEEK 26,BD1 1PL,PROGRAMME
FOOD STANDARDS AGENCY - Westminster,FOOD STANDARDS AGENCY - Westminster,2016-07-13,EXP - PURCHASE OF GOODS/SERVICES - RAIL TRAVEL,Food Crime Unit - Prog,REDFERN TRAVEL LTD,1011700358,53,INV 1830 TRAVEL & SUBSISTENCE WEEK 23,BD1 1PL,PROGRAMME
FOOD STANDARDS AGENCY - Westminster,FOOD STANDARDS AGENCY - Westminster,2016-07-15,EXP - PURCHASE OF GOODS/SERVICES - RAIL TRAVEL,Area 4 North East England - Cluster 48,REDFERN TRAVEL LTD,1011700375,52.9,INV 2054 TRAVEL & SUBSISTENCE WEEK 28,BD1 5HQ,PROGRAMME
FOOD STANDARDS AGENCY - Westminster,FOOD STANDARDS AGENCY - Westminster,2016-07-15,EXP - PURCHASE OF GOODS/SERVICES - FOREIGN SUBSISTENCE,Area 5 South West England - Cluster 57,REDFERN TRAVEL LTD,1011700375,50.67,INV 1720 TRAVEL & SUBSISTENCE WEEK 21,BD1 5HQ,PROGRAMME
FOOD STANDARDS AGENCY - Westminster,FOOD STANDARDS AGENCY - Westminster,2016-07-01,EXP - PURCHASE OF GOODS/SERVICES - SUBSISTENCE,Area 4 North East England - Cluster 42,REDFERN TRAVEL LTD,1011700226,50.07,INV 1908 TRAVEL & SUBSISTENCE WEEK 25,BD1 1PL,PROGRAMME
FOOD STANDARDS AGENCY - Westminster,FOOD STANDARDS AGENCY - Westminster,2016-07-05,EXP - PURCHASE OF GOODS/SERVICES - OTHER ICT COSTS - COMPUTER SOFTWARE,IT Service Delivery,TRUSTMARQUE SOLUTIONS LTD,1011700284,50.05,ORDER NO SO647856,YO32 9GZ,ADMIN
FOOD STANDARDS AGENCY - Westminster,FOOD STANDARDS AGENCY - Westminster,2016-07-15,EXP - PURCHASE OF GOODS/SERVICES - RAIL TRAVEL,Chief Scientist,REDFERN TRAVEL LTD,1011700375,48.9,INV 2054 TRAVEL & SUBSISTENCE WEEK 28,BD1 5HQ,ADMIN
FOOD STANDARDS AGENCY - Westminster,FOOD STANDARDS AGENCY - Westminster,2016-07-15,EXP - PURCHASE OF GOODS/SERVICES - RAIL TRAVEL,Area 4 North East England - Cluster 41,REDFERN TRAVEL LTD,1011700375,47,INV 1720 TRAVEL & SUBSISTENCE WEEK 21,BD1 5HQ,PROGRAMME
FOOD STANDARDS AGENCY - Westminster,FOOD STANDARDS AGENCY - Westminster,2016-07-01,EXP - PURCHASE OF GOODS/SERVICES - SUBSISTENCE,Resilience - Admin,REDFERN TRAVEL LTD,1011700226,45.67,INV 1908 TRAVEL & SUBSISTENCE WEEK 25,BD1 1PL,ADMIN
FOOD STANDARDS AGENCY - Westminster,FOOD STANDARDS AGENCY - Westminster,2016-07-15,EXP - PURCHASE OF GOODS/SERVICES - SUBSISTENCE,Area 5 South West England - Cluster 56,REDFERN TRAVEL LTD,1011700375,45.63,INV 1720 TRAVEL & SUBSISTENCE WEEK 21,BD1 5HQ,PROGRAMME
FOOD STANDARDS AGENCY - Westminster,FOOD STANDARDS AGENCY - Westminster,2016-07-15,EXP - PURCHASE OF GOODS/SERVICES - SUBSISTENCE,"Employee Relations, Systems and Data",REDFERN TRAVEL LTD,1011700375,45.63,INV 1720 TRAVEL & SUBSISTENCE WEEK 21,BD1 5HQ,ADMIN
FOOD STANDARDS AGENCY - Westminster,FOOD STANDARDS AGENCY - Westminster,2016-07-13,EXP - PURCHASE OF GOODS/SERVICES - SUBSISTENCE,Area 3 North West England - Cluster 32,REDFERN TRAVEL LTD,1011700358,44.55,INV 1830 TRAVEL & SUBSISTENCE WEEK 23,BD1 1PL,PROGRAMME
FOOD STANDARDS AGENCY - Westminster,FOOD STANDARDS AGENCY - Westminster,2016-07-13,EXP - PURCHASE OF GOODS/SERVICES - RAIL TRAVEL,Area 2 Wales - Cluster 23,REDFERN TRAVEL LTD,1011700358,44.3,INV 1923 TRAVEL & SUBSISTENCE WEEK 26,BD1 1PL,PROGRAMME
FOOD STANDARDS AGENCY - Westminster,FOOD STANDARDS AGENCY - Westminster,2016-07-01,EXP - PURCHASE OF GOODS/SERVICES - RAIL TRAVEL,"Employee Relations, Systems and Data",REDFERN TRAVEL LTD,1011700226,44,INV 1908 TRAVEL & SUBSISTENCE WEEK 25,BD1 1PL,ADMIN
FOOD STANDARDS AGENCY - Westminster,FOOD STANDARDS AGENCY - Westminster,2016-07-15,EXP - PURCHASE OF GOODS/SERVICES - SUBSISTENCE,Contaminants HoD,REDFERN TRAVEL LTD,1011700375,43.2,INV 1720 TRAVEL & SUBSISTENCE WEEK 21,BD1 5HQ,ADMIN
FOOD STANDARDS AGENCY - Westminster,FOOD STANDARDS AGENCY - Westminster,2016-07-15,EXP - PURCHASE OF GOODS/SERVICES - RAIL TRAVEL,Chief Scientist,REDFERN TRAVEL LTD,1011700375,43.05,INV 1720 TRAVEL & SUBSISTENCE WEEK 21,BD1 5HQ,ADMIN
FOOD STANDARDS AGENCY - Westminster,FOOD STANDARDS AGENCY - Westminster,2016-07-01,EXP - PURCHASE OF GOODS/SERVICES - RAIL TRAVEL,Area 6 South East England - Cluster 64,REDFERN TRAVEL LTD,1011700226,42.9,INV 1908 TRAVEL & SUBSISTENCE WEEK 25,BD1 1PL,PROGRAMME
FOOD STANDARDS AGENCY - Westminster,FOOD STANDARDS AGENCY - Westminster,2016-07-13,EXP - PURCHASE OF GOODS/SERVICES - SUBSISTENCE,Area 5 South West England - Cluster 57,REDFERN TRAVEL LTD,1011700358,42.09,INV 1923 TRAVEL & SUBSISTENCE WEEK 26,BD1 1PL,PROGRAMME
FOOD STANDARDS AGENCY - Westminster,FOOD STANDARDS AGENCY - Westminster,2016-07-13,EXP - PURCHASE OF GOODS/SERVICES - RAIL TRAVEL,Animal Feed Branch,REDFERN TRAVEL LTD,1011700358,42,INV 1830 TRAVEL & SUBSISTENCE WEEK 23,BD1 1PL,ADMIN
FOOD STANDARDS AGENCY - Westminster,FOOD STANDARDS AGENCY - Westminster,2016-07-13,EXP - PURCHASE OF GOODS/SERVICES - SUBSISTENCE,"Employee Relations, Systems and Data",REDFERN TRAVEL LTD,1011700358,41.22,INV 1923 TRAVEL & SUBSISTENCE WEEK 26,BD1 1PL,ADMIN
FOOD STANDARDS AGENCY - Westminster,FOOD STANDARDS AGENCY - Westminster,2016-07-13,EXP - PURCHASE OF GOODS/SERVICES - RAIL TRAVEL,Microbiological Food Safety Branch,REDFERN TRAVEL LTD,1011700358,40.7,INV 1923 TRAVEL & SUBSISTENCE WEEK 26,BD1 1PL,ADMIN
FOOD STANDARDS AGENCY - Westminster,FOOD STANDARDS AGENCY - Westminster,2016-07-13,EXP - PURCHASE OF GOODS/SERVICES - RAIL TRAVEL,Directorate Support Unit,REDFERN TRAVEL LTD,1011700358,40.5,INV 1923 TRAVEL & SUBSISTENCE WEEK 26,BD1 1PL,ADMIN
FOOD STANDARDS AGENCY - Westminster,FOOD STANDARDS AGENCY - Westminster,2016-07-13,EXP - PURCHASE OF GOODS/SERVICES - RAIL TRAVEL,Area 5 South West England - Cluster 53,REDFERN TRAVEL LTD,1011700358,38.8,INV 1923 TRAVEL & SUBSISTENCE WEEK 26,BD1 1PL,PROGRAMME
FOOD STANDARDS AGENCY - Westminster,FOOD STANDARDS AGENCY - Westminster,2016-07-05,EXP - PURCHASE OF GOODS/SERVICES - OTHER ICT COSTS - COMPUTER SOFTWARE,IT Service Delivery,TRUSTMARQUE SOLUTIONS LTD,1011700284,38.64,ORDER NO SO647856,YO32 9GZ,ADMIN
FOOD STANDARDS AGENCY - Westminster,FOOD STANDARDS AGENCY - Westminster,2016-07-15,EXP - PURCHASE OF GOODS/SERVICES - RAIL TRAVEL,"Employee Relations, Systems and Data",REDFERN TRAVEL LTD,1011700375,38.5,INV 2054 TRAVEL & SUBSISTENCE WEEK 28,BD1 5HQ,ADMIN
FOOD STANDARDS AGENCY - Westminster,FOOD STANDARDS AGENCY - Westminster,2016-07-01,EXP - PURCHASE OF GOODS/SERVICES - RAIL TRAVEL,Animal Feed Branch,REDFERN TRAVEL LTD,1011700226,37.4,INV 1908 TRAVEL & SUBSISTENCE WEEK 25,BD1 1PL,ADMIN
FOOD STANDARDS AGENCY - Westminster,FOOD STANDARDS AGENCY - Westminster,2016-07-15,EXP - PURCHASE OF GOODS/SERVICES - RAIL TRAVEL,Non Meat Field Ops,REDFERN TRAVEL LTD,1011700375,34.3,INV 1720 TRAVEL & SUBSISTENCE WEEK 21,BD1 5HQ,PROGRAMME
FOOD STANDARDS AGENCY - Westminster,FOOD STANDARDS AGENCY - Westminster,2016-07-13,EXP - PURCHASE OF GOODS/SERVICES - AIR TRAVEL,Allergens,REDFERN TRAVEL LTD,1011700358,32.16,INV 1830 TRAVEL & SUBSISTENCE WEEK 23,BD1 1PL,ADMIN
FOOD STANDARDS AGENCY - Westminster,FOOD STANDARDS AGENCY - Westminster,2016-07-15,EXP - PURCHASE OF GOODS/SERVICES - OTHER TRAVEL,Additives,REDFERN TRAVEL LTD,1011700375,32.16,INV 1720 TRAVEL & SUBSISTENCE WEEK 21,BD1 5HQ,ADMIN
FOOD STANDARDS AGENCY - Westminster,FOOD STANDARDS AGENCY - Westminster,2016-07-15,EXP - PURCHASE OF GOODS/SERVICES - OTHER TRAVEL,Area 4 North East England - Cluster 46,REDFERN TRAVEL LTD,1011700375,31,INV 1720 TRAVEL & SUBSISTENCE WEEK 21,BD1 5HQ,PROGRAMME
FOOD STANDARDS AGENCY - Westminster,FOOD STANDARDS AGENCY - Westminster,2016-07-13,EXP - PURCHASE OF GOODS/SERVICES - RAIL TRAVEL,Food Production Branch,REDFERN TRAVEL LTD,1011700358,30.3,INV 1923 TRAVEL & SUBSISTENCE WEEK 26,BD1 1PL,ADMIN
FOOD STANDARDS AGENCY - Westminster,FOOD STANDARDS AGENCY - Westminster,2016-07-15,EXP - PURCHASE OF GOODS/SERVICES - AIR TRAVEL,Operations Assurance ,REDFERN TRAVEL LTD,1011700375,30,INV 1720 TRAVEL & SUBSISTENCE WEEK 21,BD1 5HQ,PROGRAMME
FOOD STANDARDS AGENCY - Westminster,FOOD STANDARDS AGENCY - Westminster,2016-07-15,EXP - PURCHASE OF GOODS/SERVICES - SUBSISTENCE,Area 3 North West England - Cluster 34,REDFERN TRAVEL LTD,1011700375,29.4,INV 2054 TRAVEL & SUBSISTENCE WEEK 28,BD1 5HQ,PROGRAMME
FOOD STANDARDS AGENCY - Westminster,FOOD STANDARDS AGENCY - Westminster,2016-07-01,EXP - PURCHASE OF GOODS/SERVICES - RAIL TRAVEL,Imports & Exports Team (Admin),REDFERN TRAVEL LTD,1011700226,29.1,INV 1908 TRAVEL & SUBSISTENCE WEEK 25,BD1 1PL,ADMIN
FOOD STANDARDS AGENCY - Westminster,FOOD STANDARDS AGENCY - Westminster,2016-07-13,EXP - PURCHASE OF GOODS/SERVICES - RAIL TRAVEL,Area 4 North East England - Cluster 43,REDFERN TRAVEL LTD,1011700358,29.1,INV 1830 TRAVEL & SUBSISTENCE WEEK 23,BD1 1PL,PROGRAMME
FOOD STANDARDS AGENCY - Westminster,FOOD STANDARDS AGENCY - Westminster,2016-07-15,EXP - PURCHASE OF GOODS/SERVICES - RAIL TRAVEL,Area 4 North East England - Cluster 45,REDFERN TRAVEL LTD,1011700375,28.9,INV 1720 TRAVEL & SUBSISTENCE WEEK 21,BD1 5HQ,PROGRAMME
FOOD STANDARDS AGENCY - Westminster,FOOD STANDARDS AGENCY - Westminster,2016-07-13,EXP - PURCHASE OF GOODS/SERVICES - RAIL TRAVEL,Non Meat Field Ops,REDFERN TRAVEL LTD,1011700358,28.5,INV 1830 TRAVEL & SUBSISTENCE WEEK 23,BD1 1PL,PROGRAMME
FOOD STANDARDS AGENCY - Westminster,FOOD STANDARDS AGENCY - Westminster,2016-07-15,EXP - PURCHASE OF GOODS/SERVICES - RAIL TRAVEL,Chemical Risk Assessment Unit,REDFERN TRAVEL LTD,1011700375,28.1,INV 1720 TRAVEL & SUBSISTENCE WEEK 21,BD1 5HQ,ADMIN
FOOD STANDARDS AGENCY - Westminster,FOOD STANDARDS AGENCY - Westminster,2016-07-15,EXP - PURCHASE OF GOODS/SERVICES - RAIL TRAVEL,Chief Scientist,REDFERN TRAVEL LTD,1011700375,27.7,INV 2054 TRAVEL & SUBSISTENCE WEEK 28,BD1 5HQ,ADMIN
FOOD STANDARDS AGENCY - Westminster,FOOD STANDARDS AGENCY - Westminster,2016-07-15,EXP - PURCHASE OF GOODS/SERVICES - RAIL TRAVEL,Area 2 Wales - Cluster 21,REDFERN TRAVEL LTD,1011700375,25.8,INV 2054 TRAVEL & SUBSISTENCE WEEK 28,BD1 5HQ,PROGRAMME
FOOD STANDARDS AGENCY - Westminster,FOOD STANDARDS AGENCY - Westminster,2016-07-13,EXP - PURCHASE OF GOODS/SERVICES - RAIL TRAVEL,Area 3 North West England - Cluster 34,REDFERN TRAVEL LTD,1011700358,25.1,INV 1830 TRAVEL & SUBSISTENCE WEEK 23,BD1 1PL,PROGRAMME
FOOD STANDARDS AGENCY - Westminster,FOOD STANDARDS AGENCY - Westminster,2016-07-25,EXP - PURCHASE OF GOODS/SERVICES - OTHER ICT COSTS,IT Service Delivery,CAPITA SECURE INFORMATION SOLUTIONS LTD,1011700448,25.1,BUFFER STOCK MICE,SN14 0TW,ADMIN
FOOD STANDARDS AGENCY - Westminster,FOOD STANDARDS AGENCY - Westminster,2016-07-13,EXP - PURCHASE OF GOODS/SERVICES - RAIL TRAVEL,Area 4 North East England - Cluster 41,REDFERN TRAVEL LTD,1011700358,22.8,INV 1923 TRAVEL & SUBSISTENCE WEEK 26,BD1 1PL,PROGRAMME
FOOD STANDARDS AGENCY - Westminster,FOOD STANDARDS AGENCY - Westminster,2016-07-01,EXP - PURCHASE OF GOODS/SERVICES - RAIL TRAVEL,Internal Audit,REDFERN TRAVEL LTD,1011700226,22.7,INV 1908 TRAVEL & SUBSISTENCE WEEK 25,BD1 1PL,ADMIN
FOOD STANDARDS AGENCY - Westminster,FOOD STANDARDS AGENCY - Westminster,2016-07-01,EXP - PURCHASE OF GOODS/SERVICES - RAIL TRAVEL,Area 4 North East England - Cluster 46,REDFERN TRAVEL LTD,1011700226,22.5,INV 1908 TRAVEL & SUBSISTENCE WEEK 25,BD1 1PL,PROGRAMME
FOOD STANDARDS AGENCY - Westminster,FOOD STANDARDS AGENCY - Westminster,2016-07-13,EXP - PURCHASE OF GOODS/SERVICES - RAIL TRAVEL,Chair & Deputy Chair,REDFERN TRAVEL LTD,1011700358,22.16,INV 1830 TRAVEL & SUBSISTENCE WEEK 23,BD1 1PL,ADMIN
FOOD STANDARDS AGENCY - Westminster,FOOD STANDARDS AGENCY - Westminster,2016-07-15,EXP - PURCHASE OF GOODS/SERVICES - RAIL TRAVEL,Food Crime Unit - Admin,REDFERN TRAVEL LTD,1011700375,21,INV 1720 TRAVEL & SUBSISTENCE WEEK 21,BD1 5HQ,ADMIN
FOOD STANDARDS AGENCY - Westminster,FOOD STANDARDS AGENCY - Westminster,2016-07-13,EXP - PURCHASE OF GOODS/SERVICES - SUBSISTENCE,Internal Audit,REDFERN TRAVEL LTD,1011700358,19.98,INV 1923 TRAVEL & SUBSISTENCE WEEK 26,BD1 1PL,ADMIN
FOOD STANDARDS AGENCY - Westminster,FOOD STANDARDS AGENCY - Westminster,2016-07-15,EXP - PURCHASE OF GOODS/SERVICES - RAIL TRAVEL,Area 3 North West England - Cluster 34,REDFERN TRAVEL LTD,1011700375,19.4,INV 2054 TRAVEL & SUBSISTENCE WEEK 28,BD1 5HQ,PROGRAMME
FOOD STANDARDS AGENCY - Westminster,FOOD STANDARDS AGENCY - Westminster,2016-07-13,EXP - PURCHASE OF GOODS/SERVICES - RAIL TRAVEL,Food Hygiene Policy Branch,REDFERN TRAVEL LTD,1011700358,15.7,INV 1923 TRAVEL & SUBSISTENCE WEEK 26,BD1 1PL,ADMIN
FOOD STANDARDS AGENCY - Westminster,FOOD STANDARDS AGENCY - Westminster,2016-07-13,EXP - PURCHASE OF GOODS/SERVICES - RAIL TRAVEL,Area 6 South East England - Cluster 65,REDFERN TRAVEL LTD,1011700358,14.8,INV 1830 TRAVEL & SUBSISTENCE WEEK 23,BD1 1PL,PROGRAMME
FOOD STANDARDS AGENCY - Westminster,FOOD STANDARDS AGENCY - Westminster,2016-07-15,EXP - PURCHASE OF GOODS/SERVICES - TAXI SERVICES,Operations Local Delivery ,REDFERN TRAVEL LTD,1011700375,14.45,INV 2054 TRAVEL & SUBSISTENCE WEEK 28,BD1 5HQ,ADMIN
FOOD STANDARDS AGENCY - Westminster,FOOD STANDARDS AGENCY - Westminster,2016-07-15,EXP - PURCHASE OF GOODS/SERVICES - TAXI SERVICES,Operations Local Delivery ,REDFERN TRAVEL LTD,1011700375,14.45,INV 2054 TRAVEL & SUBSISTENCE WEEK 28,BD1 5HQ,ADMIN
FOOD STANDARDS AGENCY - Westminster,FOOD STANDARDS AGENCY - Westminster,2016-07-01,EXP - PURCHASE OF GOODS/SERVICES - RAIL TRAVEL,Non Meat Field Ops,REDFERN TRAVEL LTD,1011700226,14.25,INV 1908 TRAVEL & SUBSISTENCE WEEK 25,BD1 1PL,PROGRAMME
FOOD STANDARDS AGENCY - Westminster,FOOD STANDARDS AGENCY - Westminster,2016-07-15,EXP - PURCHASE OF GOODS/SERVICES - TAXI SERVICES,Chief Executive & Private Office,REDFERN TRAVEL LTD,1011700375,13.63,INV 2054 TRAVEL & SUBSISTENCE WEEK 28,BD1 5HQ,ADMIN
FOOD STANDARDS AGENCY - Westminster,FOOD STANDARDS AGENCY - Westminster,2016-07-15,EXP - PURCHASE OF GOODS/SERVICES - RAIL TRAVEL,Directorate Support Unit,REDFERN TRAVEL LTD,1011700375,13.3,INV 1720 TRAVEL & SUBSISTENCE WEEK 21,BD1 5HQ,ADMIN
FOOD STANDARDS AGENCY - Westminster,FOOD STANDARDS AGENCY - Westminster,2016-07-13,EXP - PURCHASE OF GOODS/SERVICES - RAIL TRAVEL,Food Crime Unit - Prog,REDFERN TRAVEL LTD,1011700358,12.3,INV 1923 TRAVEL & SUBSISTENCE WEEK 26,BD1 1PL,PROGRAMME
FOOD STANDARDS AGENCY - Westminster,FOOD STANDARDS AGENCY - Westminster,2016-07-13,EXP - PURCHASE OF GOODS/SERVICES - RAIL TRAVEL,Analysis & Research Branch,REDFERN TRAVEL LTD,1011700358,11.1,INV 1923 TRAVEL & SUBSISTENCE WEEK 26,BD1 1PL,ADMIN
FOOD STANDARDS AGENCY - Westminster,FOOD STANDARDS AGENCY - Westminster,2016-07-25,EXP - PURCHASE OF GOODS/SERVICES - OTHER ICT COSTS,IT Service Delivery,CAPITA SECURE INFORMATION SOLUTIONS LTD,1011700448,10.3,ENCRYPTED MEMORY STICKS,SN14 0TW,ADMIN
FOOD STANDARDS AGENCY - Westminster,FOOD STANDARDS AGENCY - Westminster,2016-07-13,EXP - PURCHASE OF GOODS/SERVICES - RAIL TRAVEL,Area 2 Wales - Cluster 21,REDFERN TRAVEL LTD,1011700358,9.2,INV 1830 TRAVEL & SUBSISTENCE WEEK 23,BD1 1PL,PROGRAMME
FOOD STANDARDS AGENCY - Westminster,FOOD STANDARDS AGENCY - Westminster,2016-07-15,EXP - PURCHASE OF GOODS/SERVICES - TAXI SERVICES,Chair & Deputy Chair,REDFERN TRAVEL LTD,1011700375,8.68,INV 2054 TRAVEL & SUBSISTENCE WEEK 28,BD1 5HQ,ADMIN
FOOD STANDARDS AGENCY - Westminster,FOOD STANDARDS AGENCY - Westminster,2016-07-25,EXP - PURCHASE OF GOODS/SERVICES - OTHER ICT COSTS,IT Service Delivery,CAPITA SECURE INFORMATION SOLUTIONS LTD,1011700448,7.5,PLAN PRINTER BUFFER STOCK,SN14 0TW,ADMIN
FOOD STANDARDS AGENCY - Westminster,FOOD STANDARDS AGENCY - Westminster,2016-07-25,EXP - PURCHASE OF GOODS/SERVICES - OTHER ICT COSTS,IT Service Delivery,CAPITA SECURE INFORMATION SOLUTIONS LTD,1011700448,7.5,LENOVO X230 LAPTOP POWER SUPPLY,SN14 0TW,ADMIN
FOOD STANDARDS AGENCY - Westminster,FOOD STANDARDS AGENCY - Westminster,2016-07-25,EXP - PURCHASE OF GOODS/SERVICES - OTHER ICT COSTS,IT Service Delivery,CAPITA SECURE INFORMATION SOLUTIONS LTD,1011700448,7.5,BUFFER STOCK MICE,SN14 0TW,ADMIN
FOOD STANDARDS AGENCY - Westminster,FOOD STANDARDS AGENCY - Westminster,2016-07-25,EXP - PURCHASE OF GOODS/SERVICES - OTHER ICT COSTS,IT Service Delivery,CAPITA SECURE INFORMATION SOLUTIONS LTD,1011700448,7.5,PLANT PRINTERS,SN14 0TW,ADMIN
FOOD STANDARDS AGENCY - Westminster,FOOD STANDARDS AGENCY - Westminster,2016-07-01,EXP - PURCHASE OF GOODS/SERVICES - RAIL TRAVEL,Area 2 Wales - Cluster 23,REDFERN TRAVEL LTD,1011700226,4.8,INV 1908 TRAVEL & SUBSISTENCE WEEK 25,BD1 1PL,PROGRAMME
FOOD STANDARDS AGENCY - Westminster,FOOD STANDARDS AGENCY - Westminster,2016-07-13,EXP - PURCHASE OF GOODS/SERVICES - SUBSISTENCE,Operations Assurance ,REDFERN TRAVEL LTD,1011700358,4.3,INV 1830 TRAVEL & SUBSISTENCE WEEK 23,BD1 1PL,PROGRAMME
FOOD STANDARDS AGENCY - Westminster,FOOD STANDARDS AGENCY - Westminster,2016-07-13,EXP - PURCHASE OF GOODS/SERVICES - FOREIGN SUBSISTENCE,Operations Assurance ,REDFERN TRAVEL LTD,1011700358,1.2,INV 1923 TRAVEL & SUBSISTENCE WEEK 26,BD1 1PL,PROGRAMME
FOOD STANDARDS AGENCY - Westminster,FOOD STANDARDS AGENCY - Westminster,2016-07-15,EXP - PURCHASE OF GOODS/SERVICES - FOREIGN SUBSISTENCE,Food Hygiene Policy Branch,REDFERN TRAVEL LTD,1011700375,1.2,INV 1720 TRAVEL & SUBSISTENCE WEEK 21,BD1 5HQ,ADMIN
FOOD STANDARDS AGENCY - Westminster,FOOD STANDARDS AGENCY - Westminster,2016-07-01,EXP - PURCHASE OF GOODS/SERVICES - FOREIGN SUBSISTENCE,Contaminants Policy & Strategy Unit,REDFERN TRAVEL LTD,1011700226,0.6,INV 1908 TRAVEL & SUBSISTENCE WEEK 25,BD1 1PL,ADMIN
FOOD STANDARDS AGENCY - Westminster,FOOD STANDARDS AGENCY - Westminster,2016-07-01,EXP - PURCHASE OF GOODS/SERVICES - SUBSISTENCE,Food Hygiene Policy Branch,REDFERN TRAVEL LTD,1011700226,0.6,INV 1908 TRAVEL & SUBSISTENCE WEEK 25,BD1 1PL,ADMIN
FOOD STANDARDS AGENCY - Westminster,FOOD STANDARDS AGENCY - Westminster,2016-07-13,EXP - PURCHASE OF GOODS/SERVICES - SUBSISTENCE,Legal Branch A & Investigations,REDFERN TRAVEL LTD,1011700358,0.6,INV 1923 TRAVEL & SUBSISTENCE WEEK 26,BD1 1PL,ADMIN
FOOD STANDARDS AGENCY - Westminster,FOOD STANDARDS AGENCY - Westminster,2016-07-13,EXP - PURCHASE OF GOODS/SERVICES - FOREIGN SUBSISTENCE,Chief Scientist,REDFERN TRAVEL LTD,1011700358,0.6,INV 1923 TRAVEL & SUBSISTENCE WEEK 26,BD1 1PL,ADMIN
FOOD STANDARDS AGENCY - Westminster,FOOD STANDARDS AGENCY - Westminster,2016-07-13,EXP - PURCHASE OF GOODS/SERVICES - SUBSISTENCE,Chief Scientist,REDFERN TRAVEL LTD,1011700358,0.6,INV 1923 TRAVEL & SUBSISTENCE WEEK 26,BD1 1PL,ADMIN
FOOD STANDARDS AGENCY - Westminster,FOOD STANDARDS AGENCY - Westminster,2016-07-13,EXP - PURCHASE OF GOODS/SERVICES - FOREIGN SUBSISTENCE,Chief Scientist,REDFERN TRAVEL LTD,1011700358,0.6,INV 1923 TRAVEL & SUBSISTENCE WEEK 26,BD1 1PL,ADMIN
FOOD STANDARDS AGENCY - Westminster,FOOD STANDARDS AGENCY - Westminster,2016-07-13,EXP - PURCHASE OF GOODS/SERVICES - SUBSISTENCE,Operational Delivery,REDFERN TRAVEL LTD,1011700358,0.6,INV 1923 TRAVEL & SUBSISTENCE WEEK 26,BD1 1PL,PROGRAMME
FOOD STANDARDS AGENCY - Westminster,FOOD STANDARDS AGENCY - Westminster,2016-07-13,EXP - PURCHASE OF GOODS/SERVICES - FOREIGN SUBSISTENCE,Operations Assurance ,REDFERN TRAVEL LTD,1011700358,0.6,INV 1830 TRAVEL & SUBSISTENCE WEEK 23,BD1 1PL,PROGRAMME
FOOD STANDARDS AGENCY - Westminster,FOOD STANDARDS AGENCY - Westminster,2016-07-13,EXP - PURCHASE OF GOODS/SERVICES - SUBSISTENCE,Operations Assurance - Admin,REDFERN TRAVEL LTD,1011700358,0.6,INV 1923 TRAVEL & SUBSISTENCE WEEK 26,BD1 1PL,ADMIN
FOOD STANDARDS AGENCY - Westminster,FOOD STANDARDS AGENCY - Westminster,2016-07-13,EXP - PURCHASE OF GOODS/SERVICES - FOREIGN SUBSISTENCE,Animal Feed Branch,REDFERN TRAVEL LTD,1011700358,0.6,INV 1923 TRAVEL & SUBSISTENCE WEEK 26,BD1 1PL,ADMIN
FOOD STANDARDS AGENCY - Westminster,FOOD STANDARDS AGENCY - Westminster,2016-07-13,EXP - PURCHASE OF GOODS/SERVICES - FOREIGN SUBSISTENCE,Additives,REDFERN TRAVEL LTD,1011700358,0.6,INV 1923 TRAVEL & SUBSISTENCE WEEK 26,BD1 1PL,ADMIN
FOOD STANDARDS AGENCY - Westminster,FOOD STANDARDS AGENCY - Westminster,2016-07-13,EXP - PURCHASE OF GOODS/SERVICES - FOREIGN SUBSISTENCE,Regulatory & International,REDFERN TRAVEL LTD,1011700358,0.6,INV 1923 TRAVEL & SUBSISTENCE WEEK 26,BD1 1PL,ADMIN
FOOD STANDARDS AGENCY - Westminster,FOOD STANDARDS AGENCY - Westminster,2016-07-13,EXP - PURCHASE OF GOODS/SERVICES - SUBSISTENCE,Regulatory & International,REDFERN TRAVEL LTD,1011700358,0.6,INV 1830 TRAVEL & SUBSISTENCE WEEK 23,BD1 1PL,ADMIN
FOOD STANDARDS AGENCY - Westminster,FOOD STANDARDS AGENCY - Westminster,2016-07-13,EXP - PURCHASE OF GOODS/SERVICES - SUBSISTENCE,Finance Director & Branch,REDFERN TRAVEL LTD,1011700358,0.6,INV 1923 TRAVEL & SUBSISTENCE WEEK 26,BD1 1PL,ADMIN
FOOD STANDARDS AGENCY - Westminster,FOOD STANDARDS AGENCY - Westminster,2016-07-13,EXP - PURCHASE OF GOODS/SERVICES - SUBSISTENCE,Organisational Development,REDFERN TRAVEL LTD,1011700358,0.6,INV 1830 TRAVEL & SUBSISTENCE WEEK 23,BD1 1PL,ADMIN
FOOD STANDARDS AGENCY - Westminster,FOOD STANDARDS AGENCY - Westminster,2016-07-15,EXP - PURCHASE OF GOODS/SERVICES - RAIL TRAVEL,Operations Assurance ,REDFERN TRAVEL LTD,1011700375,0.6,INV 2054 TRAVEL & SUBSISTENCE WEEK 28,BD1 5HQ,PROGRAMME
FOOD STANDARDS AGENCY - Westminster,FOOD STANDARDS AGENCY - Westminster,2016-07-15,EXP - PURCHASE OF GOODS/SERVICES - FOREIGN SUBSISTENCE,Contaminants HoD,REDFERN TRAVEL LTD,1011700375,0.6,INV 1720 TRAVEL & SUBSISTENCE WEEK 21,BD1 5HQ,ADMIN
FOOD STANDARDS AGENCY - Westminster,FOOD STANDARDS AGENCY - Westminster,2016-07-15,EXP - PURCHASE OF GOODS/SERVICES - FOREIGN SUBSISTENCE,Food Production Branch,REDFERN TRAVEL LTD,1011700375,0.6,INV 1720 TRAVEL & SUBSISTENCE WEEK 21,BD1 5HQ,ADMIN
FOOD STANDARDS AGENCY - Westminster,FOOD STANDARDS AGENCY - Westminster,2016-07-15,EXP - PURCHASE OF GOODS/SERVICES - FOREIGN SUBSISTENCE,Animal Feed Branch,REDFERN TRAVEL LTD,1011700375,0.6,INV 1720 TRAVEL & SUBSISTENCE WEEK 21,BD1 5HQ,ADMIN
FOOD STANDARDS AGENCY - Westminster,FOOD STANDARDS AGENCY - Westminster,2016-07-01,EXP - PURCHASE OF GOODS/SERVICES - SUBSISTENCE,Imports & Exports Team (Admin),REDFERN TRAVEL LTD,1011700226,-0.6,INV 1908 TRAVEL & SUBSISTENCE WEEK 25,BD1 1PL,ADMIN
FOOD STANDARDS AGENCY - Westminster,FOOD STANDARDS AGENCY - Westminster,2016-07-01,EXP - PURCHASE OF GOODS/SERVICES - SUBSISTENCE,Food Hygiene Policy Branch,REDFERN TRAVEL LTD,1011700226,-1.2,INV 1908 TRAVEL & SUBSISTENCE WEEK 25,BD1 1PL,ADMIN
FOOD STANDARDS AGENCY - Westminster,FOOD STANDARDS AGENCY - Westminster,2016-07-15,EXP - PURCHASE OF GOODS/SERVICES - RAIL TRAVEL,Food Crime Unit - Prog,REDFERN TRAVEL LTD,1011700375,-1.3,INV 1720 TRAVEL & SUBSISTENCE WEEK 21,BD1 5HQ,PROGRAMME
FOOD STANDARDS AGENCY - Westminster,FOOD STANDARDS AGENCY - Westminster,2016-07-01,EXP - PURCHASE OF GOODS/SERVICES - RAIL TRAVEL,IT Information & Knowledge Management,REDFERN TRAVEL LTD,1011700226,-2.1,INV 1908 TRAVEL & SUBSISTENCE WEEK 25,BD1 1PL,ADMIN
FOOD STANDARDS AGENCY - Westminster,FOOD STANDARDS AGENCY - Westminster,2016-07-15,EXP - PURCHASE OF GOODS/SERVICES - OTHER TRAVEL,IT Information & Knowledge Management,REDFERN TRAVEL LTD,1011700375,-8.89,INV 1720 TRAVEL & SUBSISTENCE WEEK 21,BD1 5HQ,ADMIN
FOOD STANDARDS AGENCY - Westminster,FOOD STANDARDS AGENCY - Westminster,2016-07-15,EXP - PURCHASE OF GOODS/SERVICES - RAIL TRAVEL,Area 6 South East England - Cluster 65,REDFERN TRAVEL LTD,1011700375,-9.1,INV 2054 TRAVEL & SUBSISTENCE WEEK 28,BD1 5HQ,PROGRAMME
FOOD STANDARDS AGENCY - Westminster,FOOD STANDARDS AGENCY - Westminster,2016-07-13,EXP - PURCHASE OF GOODS/SERVICES - RAIL TRAVEL,Analysis & Research Branch,REDFERN TRAVEL LTD,1011700358,-9.4,INV 1923 TRAVEL & SUBSISTENCE WEEK 26,BD1 1PL,ADMIN
FOOD STANDARDS AGENCY - Westminster,FOOD STANDARDS AGENCY - Westminster,2016-07-01,EXP - PURCHASE OF GOODS/SERVICES - RAIL TRAVEL,"Employee Relations, Systems and Data",REDFERN TRAVEL LTD,1011700226,-10,INV 1908 TRAVEL & SUBSISTENCE WEEK 25,BD1 1PL,ADMIN
FOOD STANDARDS AGENCY - Westminster,FOOD STANDARDS AGENCY - Westminster,2016-07-13,EXP - PURCHASE OF GOODS/SERVICES - RAIL TRAVEL,Operations Assurance ,REDFERN TRAVEL LTD,1011700358,-13.1,INV 1923 TRAVEL & SUBSISTENCE WEEK 26,BD1 1PL,PROGRAMME
FOOD STANDARDS AGENCY - Westminster,FOOD STANDARDS AGENCY - Westminster,2016-07-13,EXP - PURCHASE OF GOODS/SERVICES - RAIL TRAVEL,Procurement,REDFERN TRAVEL LTD,1011700358,-16.6,INV 1830 TRAVEL & SUBSISTENCE WEEK 23,BD1 1PL,ADMIN
FOOD STANDARDS AGENCY - Westminster,FOOD STANDARDS AGENCY - Westminster,2016-07-13,EXP - PURCHASE OF GOODS/SERVICES - SUBSISTENCE,Operations Local Delivery ,REDFERN TRAVEL LTD,1011700358,-22.66,INV 1830 TRAVEL & SUBSISTENCE WEEK 23,BD1 1PL,ADMIN
FOOD STANDARDS AGENCY - Westminster,FOOD STANDARDS AGENCY - Westminster,2016-07-13,EXP - PURCHASE OF GOODS/SERVICES - RAIL TRAVEL,Planning and Performance,REDFERN TRAVEL LTD,1011700358,-31,INV 1830 TRAVEL & SUBSISTENCE WEEK 23,BD1 1PL,ADMIN
FOOD STANDARDS AGENCY - Westminster,FOOD STANDARDS AGENCY - Westminster,2016-07-13,EXP - PURCHASE OF GOODS/SERVICES - RAIL TRAVEL,Contaminants HoD,REDFERN TRAVEL LTD,1011700358,-36.2,INV 1923 TRAVEL & SUBSISTENCE WEEK 26,BD1 1PL,ADMIN
FOOD STANDARDS AGENCY - Westminster,FOOD STANDARDS AGENCY - Westminster,2016-07-15,EXP - PURCHASE OF GOODS/SERVICES - SUBSISTENCE,Area 5 South West England - Cluster 55,REDFERN TRAVEL LTD,1011700375,-36.75,INV 2054 TRAVEL & SUBSISTENCE WEEK 28,BD1 5HQ,PROGRAMME
FOOD STANDARDS AGENCY - Westminster,FOOD STANDARDS AGENCY - Westminster,2016-07-01,EXP - PURCHASE OF GOODS/SERVICES - SUBSISTENCE,Legal Branch A & Investigations,REDFERN TRAVEL LTD,1011700226,-37.68,INV 1908 TRAVEL & SUBSISTENCE WEEK 25,BD1 1PL,ADMIN
FOOD STANDARDS AGENCY - Westminster,FOOD STANDARDS AGENCY - Westminster,2016-07-15,EXP - PURCHASE OF GOODS/SERVICES - RAIL TRAVEL,Organisational Development,REDFERN TRAVEL LTD,1011700375,-39,INV 2054 TRAVEL & SUBSISTENCE WEEK 28,BD1 5HQ,ADMIN
FOOD STANDARDS AGENCY - Westminster,FOOD STANDARDS AGENCY - Westminster,2016-07-13,EXP - PURCHASE OF GOODS/SERVICES - SUBSISTENCE,Area 3 North West England - Cluster 35,REDFERN TRAVEL LTD,1011700358,-40.62,INV 1830 TRAVEL & SUBSISTENCE WEEK 23,BD1 1PL,PROGRAMME
FOOD STANDARDS AGENCY - Westminster,FOOD STANDARDS AGENCY - Westminster,2016-07-13,EXP - PURCHASE OF GOODS/SERVICES - RAIL TRAVEL,Comms Directors Office,REDFERN TRAVEL LTD,1011700358,-42,INV 1830 TRAVEL & SUBSISTENCE WEEK 23,BD1 1PL,ADMIN
FOOD STANDARDS AGENCY - Westminster,FOOD STANDARDS AGENCY - Westminster,2016-07-13,EXP - PURCHASE OF GOODS/SERVICES - RAIL TRAVEL,Planning and Performance,REDFERN TRAVEL LTD,1011700358,-46.1,INV 1923 TRAVEL & SUBSISTENCE WEEK 26,BD1 1PL,ADMIN
FOOD STANDARDS AGENCY - Westminster,FOOD STANDARDS AGENCY - Westminster,2016-07-15,EXP - PURCHASE OF GOODS/SERVICES - RAIL TRAVEL,Area 4 North East England - Cluster 43,REDFERN TRAVEL LTD,1011700375,-48.9,INV 2054 TRAVEL & SUBSISTENCE WEEK 28,BD1 5HQ,PROGRAMME
FOOD STANDARDS AGENCY - Westminster,FOOD STANDARDS AGENCY - Westminster,2016-07-13,EXP - PURCHASE OF GOODS/SERVICES - SUBSISTENCE,Area 5 South West England - Cluster 56,REDFERN TRAVEL LTD,1011700358,-50.07,INV 1923 TRAVEL & SUBSISTENCE WEEK 26,BD1 1PL,PROGRAMME
FOOD STANDARDS AGENCY - Westminster,FOOD STANDARDS AGENCY - Westminster,2016-07-01,EXP - PURCHASE OF GOODS/SERVICES - RAIL TRAVEL,Organisational Development,REDFERN TRAVEL LTD,1011700226,-55.5,INV 1908 TRAVEL & SUBSISTENCE WEEK 25,BD1 1PL,ADMIN
FOOD STANDARDS AGENCY - Westminster,FOOD STANDARDS AGENCY - Westminster,2016-07-15,EXP - PURCHASE OF GOODS/SERVICES - RAIL TRAVEL,Planning and Performance,REDFERN TRAVEL LTD,1011700375,-56,INV 2054 TRAVEL & SUBSISTENCE WEEK 28,BD1 5HQ,ADMIN
FOOD STANDARDS AGENCY - Westminster,FOOD STANDARDS AGENCY - Westminster,2016-07-13,EXP - PURCHASE OF GOODS/SERVICES - SUBSISTENCE,Area 5 South West England - Cluster 54,REDFERN TRAVEL LTD,1011700358,-58.02,INV 1923 TRAVEL & SUBSISTENCE WEEK 26,BD1 1PL,PROGRAMME
FOOD STANDARDS AGENCY - Westminster,FOOD STANDARDS AGENCY - Westminster,2016-07-15,EXP - PURCHASE OF GOODS/SERVICES - RAIL TRAVEL,Area 6 South East England - Cluster 62,REDFERN TRAVEL LTD,1011700375,-58.4,INV 2054 TRAVEL & SUBSISTENCE WEEK 28,BD1 5HQ,PROGRAMME
FOOD STANDARDS AGENCY - Westminster,FOOD STANDARDS AGENCY - Westminster,2016-07-15,EXP - PURCHASE OF GOODS/SERVICES - RAIL TRAVEL,Procurement,REDFERN TRAVEL LTD,1011700375,-65,INV 2054 TRAVEL & SUBSISTENCE WEEK 28,BD1 5HQ,ADMIN
FOOD STANDARDS AGENCY - Westminster,FOOD STANDARDS AGENCY - Westminster,2016-07-15,EXP - PURCHASE OF GOODS/SERVICES - RAIL TRAVEL,Legal Branch A & Investigations,REDFERN TRAVEL LTD,1011700375,-86,INV 2054 TRAVEL & SUBSISTENCE WEEK 28,BD1 5HQ,ADMIN
FOOD STANDARDS AGENCY - Westminster,FOOD STANDARDS AGENCY - Westminster,2016-07-13,EXP - PURCHASE OF GOODS/SERVICES - SUBSISTENCE,Directorate Support Unit,REDFERN TRAVEL LTD,1011700358,-87,INV 1830 TRAVEL & SUBSISTENCE WEEK 23,BD1 1PL,ADMIN
FOOD STANDARDS AGENCY - Westminster,FOOD STANDARDS AGENCY - Westminster,2016-07-15,EXP - PURCHASE OF GOODS/SERVICES - SUBSISTENCE,Organisational Development,REDFERN TRAVEL LTD,1011700375,-96,INV 2054 TRAVEL & SUBSISTENCE WEEK 28,BD1 5HQ,ADMIN
FOOD STANDARDS AGENCY - Westminster,FOOD STANDARDS AGENCY - Westminster,2016-07-13,EXP - PURCHASE OF GOODS/SERVICES - RAIL TRAVEL,Operational Delivery,REDFERN TRAVEL LTD,1011700358,-102.8,INV 1830 TRAVEL & SUBSISTENCE WEEK 23,BD1 1PL,PROGRAMME
FOOD STANDARDS AGENCY - Westminster,FOOD STANDARDS AGENCY - Westminster,2016-07-13,EXP - PURCHASE OF GOODS/SERVICES - SUBSISTENCE,Finance Director & Branch,REDFERN TRAVEL LTD,1011700358,-108.63,INV 1830 TRAVEL & SUBSISTENCE WEEK 23,BD1 1PL,ADMIN
FOOD STANDARDS AGENCY - Westminster,FOOD STANDARDS AGENCY - Westminster,2016-07-15,EXP - PURCHASE OF GOODS/SERVICES - SUBSISTENCE,IT Service Delivery,REDFERN TRAVEL LTD,1011700375,-108.63,INV 2054 TRAVEL & SUBSISTENCE WEEK 28,BD1 5HQ,ADMIN
FOOD STANDARDS AGENCY - Westminster,FOOD STANDARDS AGENCY - Westminster,2016-07-15,EXP - PURCHASE OF GOODS/SERVICES - RAIL TRAVEL,IT Service Delivery,REDFERN TRAVEL LTD,1011700375,-110,INV 2054 TRAVEL & SUBSISTENCE WEEK 28,BD1 5HQ,ADMIN
FOOD STANDARDS AGENCY - Westminster,FOOD STANDARDS AGENCY - Westminster,2016-07-15,EXP - PURCHASE OF GOODS/SERVICES - RAIL TRAVEL,Internal Audit,REDFERN TRAVEL LTD,1011700375,-110,INV 2054 TRAVEL & SUBSISTENCE WEEK 28,BD1 5HQ,ADMIN
FOOD STANDARDS AGENCY - Westminster,FOOD STANDARDS AGENCY - Westminster,2016-07-13,EXP - PURCHASE OF GOODS/SERVICES - RAIL TRAVEL,Internal Audit,REDFERN TRAVEL LTD,1011700358,-114,INV 1923 TRAVEL & SUBSISTENCE WEEK 26,BD1 1PL,ADMIN
FOOD STANDARDS AGENCY - Westminster,FOOD STANDARDS AGENCY - Westminster,2016-07-15,EXP - PURCHASE OF GOODS/SERVICES - RAIL TRAVEL,Operational Delivery,REDFERN TRAVEL LTD,1011700375,-117.3,INV 2054 TRAVEL & SUBSISTENCE WEEK 28,BD1 5HQ,PROGRAMME
FOOD STANDARDS AGENCY - Westminster,FOOD STANDARDS AGENCY - Westminster,2016-07-13,EXP - PURCHASE OF GOODS/SERVICES - RAIL TRAVEL,Organisational Development,REDFERN TRAVEL LTD,1011700358,-123.1,INV 1830 TRAVEL & SUBSISTENCE WEEK 23,BD1 1PL,ADMIN
FOOD STANDARDS AGENCY - Westminster,FOOD STANDARDS AGENCY - Westminster,2016-07-13,EXP - PURCHASE OF GOODS/SERVICES - RAIL TRAVEL,Finance Director & Branch,REDFERN TRAVEL LTD,1011700358,-145.5,INV 1923 TRAVEL & SUBSISTENCE WEEK 26,BD1 1PL,ADMIN
FOOD STANDARDS AGENCY - Westminster,FOOD STANDARDS AGENCY - Westminster,2016-07-13,EXP - PURCHASE OF GOODS/SERVICES - RAIL TRAVEL,Operations Assurance ,REDFERN TRAVEL LTD,1011700358,-165.5,INV 1830 TRAVEL & SUBSISTENCE WEEK 23,BD1 1PL,PROGRAMME
FOOD STANDARDS AGENCY - Westminster,FOOD STANDARDS AGENCY - Westminster,2016-07-13,EXP - PURCHASE OF GOODS/SERVICES - RAIL TRAVEL,Operations Local Delivery ,REDFERN TRAVEL LTD,1011700358,-250.2,INV 1830 TRAVEL & SUBSISTENCE WEEK 23,BD1 1PL,ADMIN
FOOD STANDARDS AGENCY - Westminster,FOOD STANDARDS AGENCY - Westminster,2016-07-13,EXP - PURCHASE OF GOODS/SERVICES - RAIL TRAVEL,Operations Local Delivery ,REDFERN TRAVEL LTD,1011700358,-350,INV 1923 TRAVEL & SUBSISTENCE WEEK 26,BD1 1PL,ADMIN
